Reference No,Department Family,Entity,Date of Payment,Expense Type,Expense Area,Supplier,Voluntary & Community Sector,SME Class,Sole Trader,D-U-N-S Number,Transaction number,PSPES Level 2,Narrative,Postal Code,Amount in Sterling,Grant?
2,Communities & Local Government,DCLG,01/12/2014,Electricity,Finance & Corporate Services,BRITISH GAS BUSINESS,,,,,5106208563,Energy,Paradise Circus Electricity 2014/15,GU95 1AW,567.20,
3,Communities & Local Government,DCLG,01/12/2014,Electricity,Finance & Corporate Services,NPOWER YORKSHIRE LTD,,Large,,239483634,5106208562,Energy,WM Wolverhampton RCC Metering 2014-15,LS14 3HS,378.00,
4,Communities & Local Government,DCLG,01/12/2014,Fixed Maintenance,Finance & Corporate Services,ARC FIREPRO LIMITED,,Micro,,211358733,5106208551,Property Occupation,Signage for 2 Marsham Street Quote 1779,TN4 8TE,864.00,
5,Communities & Local Government,DCLG,01/12/2014,"IT - PC, Network & Hardware",Finance & Corporate Services,COMPUTACENTER (UK) LTD,,Large,,226023463,5106208550,ICT Hardware,Dragon USB Headset,AL10 9TW,183.41,
6,Communities & Local Government,DCLG,01/12/2014,IT - Service Contracts,Finance & Corporate Services,FUJITSU SERVICES LTD,,Large,,423375062,5106208564,IT Managed / Outsourced Services,FY 14/15 New Requirements,WA3 9BD,"1,450.00",
7,Communities & Local Government,DCLG,01/12/2014,IT - Service Contracts,Finance & Corporate Services,FUJITSU SERVICES LTD,,Large,,423375062,5106208565,IT Managed / Outsourced Services,FY 14/15 New Requirements,WA3 9BD,"54,731.00",
8,Communities & Local Government,DCLG,01/12/2014,IT - Service Contracts,Finance & Corporate Services,FUJITSU SERVICES LTD,,Large,,423375062,5106208566,IT Managed / Outsourced Services,FY 14/15 New Requirements,WA3 9BD,"2,500.00",
9,Communities & Local Government,DCLG,01/12/2014,IT - Service Contracts,Finance & Corporate Services,FUJITSU SERVICES LTD,,Large,,423375062,5106208567,IT Managed / Outsourced Services,FY 14/15 New Requirements,WA3 9BD,"6,058.50",
10,Communities & Local Government,DCLG,01/12/2014,IT - Service Contracts,Finance & Corporate Services,FUJITSU SERVICES LTD,,Large,,423375062,5106208568,IT Managed / Outsourced Services,FY 14/15 New Requirements,WA3 9BD,"4,368.51",
11,Communities & Local Government,DCLG,01/12/2014,IT - Service Contracts,Finance & Corporate Services,FUJITSU SERVICES LTD,,Large,,423375062,5106208569,IT Managed / Outsourced Services,FY 14/15 New Requirements,WA3 9BD,"2,907.00",
12,Communities & Local Government,DCLG,01/12/2014,IT - Service Contracts,Finance & Corporate Services,FUJITSU SERVICES LTD,,Large,,423375062,5106208570,IT Managed / Outsourced Services,FY 14/15 New Requirements,WA3 9BD,450.00,
13,Communities & Local Government,DCLG,01/12/2014,IT - Service Contracts,Finance & Corporate Services,FUJITSU SERVICES LTD,,Large,,423375062,5106208572,IT Managed / Outsourced Services,FY 14/15 New Requirements,WA3 9BD,"6,764.00",
14,Communities & Local Government,DCLG,01/12/2014,IT - Service Contracts,Finance & Corporate Services,FUJITSU SERVICES LTD,,Large,,423375062,5106208573,IT Managed / Outsourced Services,FY 14/15 New Requirements,WA3 9BD,723.50,
15,Communities & Local Government,DCLG,01/12/2014,IT - Service Contracts,Finance & Corporate Services,FUJITSU SERVICES LTD,,Large,,423375062,5106208574,IT Managed / Outsourced Services,FY 14/15 New Requirements,WA3 9BD,"70,605.43",
16,Communities & Local Government,DCLG,01/12/2014,IT - Service Contracts,Finance & Corporate Services,FUJITSU SERVICES LTD,,Large,,423375062,5106208575,IT Managed / Outsourced Services,FY 14/15 New Requirements,WA3 9BD,"2,353.00",
17,Communities & Local Government,DCLG,01/12/2014,IT - Service Contracts,Finance & Corporate Services,FUJITSU SERVICES LTD,,Large,,423375062,5106208576,IT Managed / Outsourced Services,FY 14/15 New Requirements,WA3 9BD,"4,822.00",
18,Communities & Local Government,DCLG,01/12/2014,IT - Service Contracts,Finance & Corporate Services,FUJITSU SERVICES LTD,,Large,,423375062,5106208577,IT Managed / Outsourced Services,FY 14/15 New Requirements,WA3 9BD,"8,932.50",
19,Communities & Local Government,DCLG,01/12/2014,IT - Service Contracts,Finance & Corporate Services,FUJITSU SERVICES LTD,,Large,,423375062,5106208578,IT Managed / Outsourced Services,FY 14/15 New Requirements,WA3 9BD,685.00,
20,Communities & Local Government,DCLG,01/12/2014,IT - Service Contracts,Finance & Corporate Services,FUJITSU SERVICES LTD,,Large,,423375062,5106208579,IT Managed / Outsourced Services,FY 14/15 New Requirements,WA3 9BD,"8,040.00",
21,Communities & Local Government,DCLG,01/12/2014,IT - Service Contracts,Finance & Corporate Services,FUJITSU SERVICES LTD,,Large,,423375062,5106208580,IT Managed / Outsourced Services,FY 14/15 New Requirements,WA3 9BD,271.20,
22,Communities & Local Government,DCLG,01/12/2014,Legal Fees,Finance & Corporate Services,SIMMONS & SIMMONS,,Large,,216616279,5106208536,Legal,Legal Advice,EC2Y 9SS,900.00,
23,Communities & Local Government,DCLG,01/12/2014,Software Licences,Finance & Corporate Services,COMPUTACENTER (UK) LTD,,Large,,226023463,5106208550,Software,Read&WriteGold V11 single user windows,AL10 9TW,"1,328.83",
24,Communities & Local Government,DCLG,01/12/2014,Telecoms equipment (non-capitalised),Localism,B T PAYMENT SERVICES LTD,,Large,,215591378,5106208405,Telecoms,Late payment charges,DH98 1BT,13.50,
25,Communities & Local Government,DCLG,01/12/2014,Telecoms equipment (non-capitalised),Localism,B T PAYMENT SERVICES LTD,,Large,,215591378,5106208405,Telecoms,SDSL Lines (HH),DH98 1BT,"3,575.40",
26,Communities & Local Government,DCLG,01/12/2014,Training,Finance & Corporate Services,CAPITA BUS. SERV. LTD (CSL),,Large,,215580993,5106208592,Development and Training,Crossing Thresholds Programme Grades 6&7,DL1 9HB,"1,567.00",
27,Communities & Local Government,DCLG,01/12/2014,Vehicle hire,"Strategy, Communications and Private Office",GOVERNMENT CAR & DESPATCH AGENCY,,Public Bodies,,,5106208589,Vehicle Hire and Lease,Ministerial Cars 2014-15,SW8 5AX,445.50,
28,Communities & Local Government,DCLG,01/12/2014,Vehicle hire,"Strategy, Communications and Private Office",GOVERNMENT CAR & DESPATCH AGENCY,,Public Bodies,,,5106208590,Vehicle Hire and Lease,Ministerial Duty Car 1(LT118) 2014-15,SW8 5AX,"1,698.75",
29,Communities & Local Government,DCLG,01/12/2014,Work In Progress Pre-Cert 40373 Spend,Neighbourhoods,BIORENEWABLES DEVELOPMENT CENTRE LT,,,,,7600010895,,Revenue Grant To Be Paid,YO10 5NY,"101,748.89",Yes
30,Communities & Local Government,DCLG,01/12/2014,Work In Progress Pre-Cert 40373 Spend,Neighbourhoods,BOLSOVER DISTRICT COUNCIL,,Large,,,7600010887,,Revenue Grant To Be Paid,S44 6NF,"3,919.11",Yes
31,Communities & Local Government,DCLG,01/12/2014,Work In Progress Pre-Cert 40373 Spend,Neighbourhoods,EEEGR,,,,,7600010891,,Revenue Grant To Be Paid,NR32 1XH,"37,525.46",Yes
32,Communities & Local Government,DCLG,01/12/2014,Work In Progress Pre-Cert 40373 Spend,Neighbourhoods,INSTITUTE FOR PUBLIC POLICY RESEARC,,Small,,,7600010894,,Revenue Grant To Be Paid,WC2N 6DF,639.91,Yes
33,Communities & Local Government,DCLG,01/12/2014,Work In Progress Pre-Cert 40373 Spend,Neighbourhoods,LEICESTER CITY COUNCIL,,Large,,,7600010897,,Revenue Grant To Be Paid,LE1 6ZG,"2,560.68",Yes
34,Communities & Local Government,DCLG,01/12/2014,Work In Progress Pre-Cert 40373 Spend,Neighbourhoods,NEWCASTLE CITY COUNCIL,,,,,7600010885,,Revenue Grant To Be Paid,NE1 8QN,"64,328.30",Yes
35,Communities & Local Government,DCLG,01/12/2014,Work In Progress Pre-Cert 40373 Spend,Neighbourhoods,NORTH YORKSHIRE COUNTY COUNCIL,,Large,,,7600010892,,Revenue Grant To Be Paid,DL7 8AL,"122,108.45",Yes
36,Communities & Local Government,DCLG,01/12/2014,Work In Progress Pre-Cert 40373 Spend,Neighbourhoods,NORTH YORKSHIRE COUNTY COUNCIL,,Large,,,7600010896,,Revenue Grant To Be Paid,DL7 8AL,"40,504.07",Yes
37,Communities & Local Government,DCLG,01/12/2014,Work In Progress Pre-Cert 40373 Spend,Neighbourhoods,SERCO REGIONAL SERVICES LTD,,,,,7600010893,,Revenue Grant Clawback Offset,PL6 8LU,-0.12,Yes
38,Communities & Local Government,DCLG,01/12/2014,Work In Progress Pre-Cert 40373 Spend,Neighbourhoods,SERCO REGIONAL SERVICES LTD,,,,,7600010893,,Revenue Grant To Be Paid,PL6 8LU,"277,671.59",Yes
39,Communities & Local Government,DCLG,01/12/2014,Work In Progress Pre-Cert 40373 Spend,Neighbourhoods,UNIVERSITY OF NORTHUM'BLD AT NEWC'S,,,,,7600010883,,Revenue Grant To Be Paid,NE1 8ST,"64,445.36",Yes
40,Communities & Local Government,DCLG,01/12/2014,Work In Progress Pre-Cert 40373 Spend,Neighbourhoods,UNIVERSITY OF SUNDERLAND,,,,,7600010882,,Revenue Grant To Be Paid,SR1 3SD,"40,212.23",Yes
41,Communities & Local Government,DCLG,01/12/2014,Work In Progress Pre-Cert 40373 Spend,Neighbourhoods,WILTSHIRE COUNCIL,,Large,,,7600010890,,Revenue Grant To Be Paid,BA14 8JN,"50,352.80",Yes
42,Communities & Local Government,DCLG,01/12/2014,Work In Progress Pre-Cert 40467 Spend,Neighbourhoods,APPLE AVIATION LTD,,,,,7600010886,,Capital Grant To Be Paid,WA7 3EH,"42,009.80",Yes
43,Communities & Local Government,DCLG,01/12/2014,Work In Progress Pre-Cert 40467 Spend,Neighbourhoods,BIORENEWABLES DEVELOPMENT CENTRE LT,,,,,7600010895,,Capital Grant To Be Paid,YO10 5NY,"52,248.32",Yes
44,Communities & Local Government,DCLG,01/12/2014,Work In Progress Pre-Cert 40467 Spend,Neighbourhoods,CARNELL MANAGMENT SERVICES LTD,,,,,7600010889,,Capital Grant To Be Paid,WF2 7AW,"143,753.16",Yes
45,Communities & Local Government,DCLG,01/12/2014,Work In Progress Pre-Cert 40467 Spend,Neighbourhoods,JARRANG LTD,,,,,7600010888,,Capital Grant To Be Paid,TR11 4SZ,"19,192.42",Yes
46,Communities & Local Government,DCLG,01/12/2014,Work In Progress Pre-Cert 40467 Spend,Neighbourhoods,LEICESTER CITY COUNCIL,,Large,,,7600010897,,Capital Grant To Be Paid,LE1 6ZG,"3,893.33",Yes
47,Communities & Local Government,DCLG,01/12/2014,Work In Progress Pre-Cert 40467 Spend,Neighbourhoods,NORTH YORKSHIRE COUNTY COUNCIL,,Large,,,7600010892,,Capital Grant Clawback Offset,DL7 8AL,"-50,585.17",Yes
48,Communities & Local Government,DCLG,01/12/2014,Work In Progress Pre-Cert 40467 Spend,Neighbourhoods,NORTH YORKSHIRE COUNTY COUNCIL,,Large,,,7600010892,,Capital Grant To Be Paid,DL7 8AL,"11,529.23",Yes
49,Communities & Local Government,DCLG,01/12/2014,Work In Progress Pre-Cert 40467 Spend,Neighbourhoods,NORTH YORKSHIRE COUNTY COUNCIL,,Large,,,7600010896,,Capital Grant To Be Paid,DL7 8AL,"1,402,590.70",Yes
50,Communities & Local Government,DCLG,01/12/2014,Work In Progress Pre-Cert 40467 Spend,Neighbourhoods,NOTTINGHAM UNIVERSITY,,Large,,,2300002200,,University of Nottingham,NG7 2RD,"-131,163.85",Yes
51,Communities & Local Government,DCLG,01/12/2014,Work In Progress Pre-Cert 40467 Spend,Neighbourhoods,SERCO REGIONAL SERVICES LTD,,,,,7600010893,,Capital Grant To Be Paid,PL6 8LU,"4,736.00",Yes
52,Communities & Local Government,DCLG,01/12/2014,Work In Progress Pre-Cert 40467 Spend,Neighbourhoods,TORBAY ECONOMIC DEVELOPMENT COMPANY,,,,,7600010884,,Capital Grant To Be Paid,TQ2 5QW,"3,598.07",Yes
53,Communities & Local Government,DCLG,01/12/2014,Work In Progress Pre-Cert 40467 Spend,Neighbourhoods,WILTSHIRE COUNCIL,,Large,,,7600010890,,Capital Grant To Be Paid,BA14 8JN,"7,473.42",Yes
54,Communities & Local Government,DCLG,02/12/2014,Advertising,"Strategy, Communications and Private Office",TULLO MARSHALL WARREN LTD,,Medium,,,5106208554,Advertising,Right to Buy Marketing Contract,W1F 9NB,"1,470.00",
55,Communities & Local Government,DCLG,02/12/2014,Advertising,"Strategy, Communications and Private Office",TULLO MARSHALL WARREN LTD,,Medium,,,5106208558,Advertising,Right to Buy Marketing Contract,W1F 9NB,"6,220.28",
56,Communities & Local Government,DCLG,02/12/2014,Advertising,"Strategy, Communications and Private Office",TULLO MARSHALL WARREN LTD,,Medium,,,5106208560,Advertising,Right to Buy Marketing Contract,W1F 9NB,"7,110.00",
57,Communities & Local Government,DCLG,02/12/2014,Agency Staff,Finance & Corporate Services,ALLEN LANE FINANCIAL RECRUITMENT,,Medium,Yes,738603443,5106208611,Contingent Labour,Interim Accountant (Ext 02),,"3,036.86",
58,Communities & Local Government,DCLG,02/12/2014,Agency Staff,Neighbourhoods,LOCAL PARTNERSHIPS LLP,,,,211702438,5106208630,Contingent Labour,Extension to Commercial Advisor,SW1P 3HZ,"22,997.88",
59,Communities & Local Government,DCLG,02/12/2014,Current (non AEF) Grants to Local Authorities,Troubled Families,ROYAL BOROUGH OF KENSINGTON & CHELS,,,,211124466,5000266194,,Overpayment of Grant recovered by Exchequer,W8 7NX,"-29,100.00",Yes
60,Communities & Local Government,DCLG,02/12/2014,Electricity,Localism,SCOTTISH & SOUTHERN ENERGY,,Large,,214085008,5106182375,Energy,SE RCC Electricity 11-12,PO9 5JB,"-2,683.46",
61,Communities & Local Government,DCLG,02/12/2014,IT - Service Contracts,Finance & Corporate Services,FUJITSU SERVICES LTD,,Large,,423375062,5106208629,IT Managed / Outsourced Services,Invoice for Multiprotocol Label Switching  Migration Phase 1,WA3 9BD,"100,000.00",
62,Communities & Local Government,DCLG,02/12/2014,IT - Service Contracts,Neighbourhoods,DEXTROUS WEB LTD,,Micro,,211267270,5106208615,IT Managed / Outsourced Services,Hosting support and RAMP,N1 7NG,868.80,
63,Communities & Local Government,DCLG,02/12/2014,Legal Fees,Finance & Corporate Services,TREASURY SOLICITOR,,Public Bodies,,215580680,2100248718,Legal,Legal Advice,WC2B 4TS,"4,033.72",
64,Communities & Local Government,DCLG,02/12/2014,Professional services,Finance & Corporate Services,E C HARRIS LLP,,Large,,,5106208502,Construction Service Providers,"PAMU Com 126 Rivergate 1F,2F,3F Refurbs",N1 9AB,"10,429.50",
65,Communities & Local Government,DCLG,02/12/2014,Professional services,Finance & Corporate Services,GVA GRIMLEY LTD,,Large,,210158990,5106208525,Business Support,Com 149 Sectiion 44a Relief-Eland House,B1 2JB,"60,000.00",
66,Communities & Local Government,DCLG,02/12/2014,Professional services,Finance & Corporate Services,GVA GRIMLEY LTD,,Large,,210158990,5106208525,Business Support,Com 149 Section 44a Relief-Bridge House,B1 2JB,"14,109.65",
67,Communities & Local Government,DCLG,02/12/2014,Professional services,Finance & Corporate Services,GVA GRIMLEY LTD,,Large,,210158990,5106208525,Business Support,Com 149 Compiled List AppeaL - Citygate,B1 2JB,"4,896.00",
68,Communities & Local Government,DCLG,02/12/2014,Professional services,Localism,GOVT ACTUARYS DEPARTMENT,,Public Bodies,,217789766,5106208538,Financial,Budget 14/15,EC4A 1AB,"85,286.62",
69,Communities & Local Government,DCLG,02/12/2014,Professional services,Neighbourhoods,BUILDING RESEARCH ESTABLISHMENT,,Large,,896495033,5106208595,Technical Services,Call off Contract Maintenance,WD25 9XX,744.00,
70,Communities & Local Government,DCLG,02/12/2014,Professional services,Neighbourhoods,GOVT ACTUARYS DEPARTMENT,,Public Bodies,,217789766,5106208493,Financial,GAD contract on Pension Compariosons,EC4A 1AB,"1,130.76",
71,Communities & Local Government,DCLG,02/12/2014,Professional services,Neighbourhoods,VALUATION OFFICE AGENCY,,Public Bodies,,215253886,5106208635,Financial,Valuation Fees,W1B 5BU,633.60,
72,Communities & Local Government,DCLG,02/12/2014,Research,Finance & Corporate Services,ECORYS UK LTD,,Medium,,,5106208640,Research,Research - Troubled Families ,B1 2RA,"20,179.20",
73,Communities & Local Government,DCLG,02/12/2014,Research,Finance & Corporate Services,REGENERIS CONSULTING LTD,,Small,,738194666,5106208555,Research,Research - European Regional Development Fund 2014-2020,M1 4DY,"12,636.00",
74,Communities & Local Government,DCLG,02/12/2014,Research,Neighbourhoods,BUILDING RESEARCH ESTABLISHMENT,,Large,,896495033,5106208637,Research,Nov 2014 Site Visit,WD25 9XX,"5,571.60",
75,Communities & Local Government,DCLG,02/12/2014,Steady State Service Provision,Finance & Corporate Services,CGI IT UK LIMITED,,Large,,239881618,5106208620,Business Process Outsourcing Services,Payroll Services & Licences  14/15,CF31 9AP,"7,321.25",
76,Communities & Local Government,DCLG,02/12/2014,Steady State Service Provision,Localism,MOTT MACDONALD LTD,,Large,,423676980,5106208598,Business Process Outsourcing Services,Core Service Period 1 (Jun 13-May 15),BN1 4FY,"55,872.92",
77,Communities & Local Government,DCLG,02/12/2014,Telecoms equipment (non-capitalised),Finance & Corporate Services,DAMOVO UK LTD,,Large,,221481042,5106208634,Telecoms,Recurring Damovo  telephony contract monthly charge,RH12 4QP,"1,367.47",
78,Communities & Local Government,DCLG,02/12/2014,Training,Finance & Corporate Services,CAPITA BUS. SERV. LTD (CSL),,Large,,215580993,5106208605,Development and Training,PRINCE2  Foundation and Practitioner,DL1 9HB,662.00,
79,Communities & Local Government,DCLG,02/12/2014,Training,Finance & Corporate Services,CAPITA BUS. SERV. LTD (CSL),,Large,,215580993,5106208608,Development and Training,Managing People: Recruitment and Selecti,DL1 9HB,345.00,
80,Communities & Local Government,DCLG,02/12/2014,Training,Finance & Corporate Services,CAPITA BUSINESS SERVICES,,Small,,,5106208610,Development and Training,Attendence at Prince 2 Foundation & Practitioner course,RG24 8WD,662.00,
81,Communities & Local Government,DCLG,02/12/2014,Web Services,"Strategy, Communications and Private Office",DEXTROUS WEB LTD,,Micro,,211267270,5106208626,ICT Services,Additional Work,N1 7NG,540.00,
82,Communities & Local Government,DCLG,02/12/2014,Work In Progress Pre-Cert 40373 Spend,Neighbourhoods,ACCORD HOUSING ASSOCIATION LTD,,Large,,,7600010944,,Revenue Grant To Be Paid,B70 6QG,"52,559.39",Yes
83,Communities & Local Government,DCLG,02/12/2014,Work In Progress Pre-Cert 40373 Spend,Neighbourhoods,ASTON UNIVERSITY,,Large,,,7600010908,,Revenue Grant To Be Paid,B4 7ET,"27,533.59",Yes
84,Communities & Local Government,DCLG,02/12/2014,Work In Progress Pre-Cert 40373 Spend,Neighbourhoods,ASTON UNIVERSITY,,Large,,,7600010934,,Revenue Grant To Be Paid,B4 7ET,"6,446.94",Yes
85,Communities & Local Government,DCLG,02/12/2014,Work In Progress Pre-Cert 40373 Spend,Neighbourhoods,ASTON UNIVERSITY,,Large,,,7600010946,,Revenue Grant To Be Paid,B4 7ET,"13,254.27",Yes
86,Communities & Local Government,DCLG,02/12/2014,Work In Progress Pre-Cert 40373 Spend,Neighbourhoods,BIRMINGHAM CITY COUNCIL (NOT RATES),,Large,,,7600010904,,Revenue Grant To Be Paid,B1 1BB,"5,850.62",Yes
87,Communities & Local Government,DCLG,02/12/2014,Work In Progress Pre-Cert 40373 Spend,Neighbourhoods,BIRMINGHAM CITY COUNCIL (NOT RATES),,Large,,,7600010937,,Revenue Grant To Be Paid,B1 1BB,"20,377.21",Yes
88,Communities & Local Government,DCLG,02/12/2014,Work In Progress Pre-Cert 40373 Spend,Neighbourhoods,BIRMINGHAM CITY COUNCIL (NOT RATES),,Large,,,7600010942,,Revenue Grant To Be Paid,B1 1BB,"78,799.39",Yes
89,Communities & Local Government,DCLG,02/12/2014,Work In Progress Pre-Cert 40373 Spend,Neighbourhoods,BISHOP GROSSETESTE UNIV COLL LINCOL,,Large,,,7600010938,,Revenue Grant To Be Paid,LN1 3DY,"5,372.14",Yes
90,Communities & Local Government,DCLG,02/12/2014,Work In Progress Pre-Cert 40373 Spend,Neighbourhoods,BUSINESS IN THE COMMUNITY EAST MIDL,,Small,,,7600010913,,Revenue Grant To Be Paid,NG1 7AB,"4,186.13",Yes
91,Communities & Local Government,DCLG,02/12/2014,Work In Progress Pre-Cert 40373 Spend,Neighbourhoods,CHESTERFIELD BOROUGH COUNCIL,,Large,,,7600010911,,Revenue Grant To Be Paid,S40 1LP,"4,888.46",Yes
92,Communities & Local Government,DCLG,02/12/2014,Work In Progress Pre-Cert 40373 Spend,Neighbourhoods,CHESTERFIELD BOROUGH COUNCIL,,Large,,,7600010950,,Revenue Grant To Be Paid,S40 1LP,"1,731.61",Yes
93,Communities & Local Government,DCLG,02/12/2014,Work In Progress Pre-Cert 40373 Spend,Neighbourhoods,COVENTRY UNIVERSITY ENTERPRISES LTD,,Medium,,,7600010917,,Revenue Grant To Be Paid,CV1 2TT,"36,695.29",Yes
94,Communities & Local Government,DCLG,02/12/2014,Work In Progress Pre-Cert 40373 Spend,Neighbourhoods,CREATIVE ENGLAND LTD,,Medium,,,7600010921,,Revenue Grant To Be Paid,BS1 5SP,"8,648.62",Yes
95,Communities & Local Government,DCLG,02/12/2014,Work In Progress Pre-Cert 40373 Spend,Neighbourhoods,DEPT FOR BUSINESS INNOVATION & SKIL,,,,,7600010898,,Revenue Grant To Be Paid,SW1H 0ET,"16,557.38",Yes
96,Communities & Local Government,DCLG,02/12/2014,Work In Progress Pre-Cert 40373 Spend,Neighbourhoods,GROUNDWORK SHEFFIELD,Yes,Small,,,7600010939,,Revenue Grant To Be Paid,S1 4DP,"12,937.46",Yes
97,Communities & Local Government,DCLG,02/12/2014,Work In Progress Pre-Cert 40373 Spend,Neighbourhoods,GROUNDWORK SHEFFIELD,Yes,Small,,,7600010940,,Revenue Grant To Be Paid,S1 4DP,"13,125.73",Yes
98,Communities & Local Government,DCLG,02/12/2014,Work In Progress Pre-Cert 40373 Spend,Neighbourhoods,GROUNDWORK SHEFFIELD,Yes,Small,,,7600010941,,Revenue Grant To Be Paid,S1 4DP,"14,308.47",Yes
99,Communities & Local Government,DCLG,02/12/2014,Work In Progress Pre-Cert 40373 Spend,Neighbourhoods,IN COMMUNITIES GROUP LTD,,Large,,,7600010926,,Revenue Grant Clawback Offset,BD18 3NT,"-1,945.13",Yes
100,Communities & Local Government,DCLG,02/12/2014,Work In Progress Pre-Cert 40373 Spend,Neighbourhoods,IN COMMUNITIES GROUP LTD,,Large,,,7600010926,,Revenue Grant To Be Paid,BD18 3NT,"26,422.86",Yes
101,Communities & Local Government,DCLG,02/12/2014,Work In Progress Pre-Cert 40373 Spend,Neighbourhoods,IN COMMUNITIES GROUP LTD,,Large,,,7600010927,,Revenue Grant Clawback Offset,BD18 3NT,"-1,849.40",Yes
102,Communities & Local Government,DCLG,02/12/2014,Work In Progress Pre-Cert 40373 Spend,Neighbourhoods,IN COMMUNITIES GROUP LTD,,Large,,,7600010927,,Revenue Grant To Be Paid,BD18 3NT,"12,007.68",Yes
103,Communities & Local Government,DCLG,02/12/2014,Work In Progress Pre-Cert 40373 Spend,Neighbourhoods,LEICESTER CITY COUNCIL,,Large,,,7600010901,,Revenue Grant To Be Paid,LE1 6ZG,"4,544.61",Yes
104,Communities & Local Government,DCLG,02/12/2014,Work In Progress Pre-Cert 40373 Spend,Neighbourhoods,LINCONSHIRE COUNTY COUNCIL,,Large,,,7600010902,,Revenue Grant To Be Paid,LN1 1YT,"5,706.66",Yes
105,Communities & Local Government,DCLG,02/12/2014,Work In Progress Pre-Cert 40373 Spend,Neighbourhoods,LOUGHBOROUGH UNIVERSITY,,Large,,,7600010899,,Revenue Grant Clawback Offset,LE11 3TU,"-1,537.98",Yes
106,Communities & Local Government,DCLG,02/12/2014,Work In Progress Pre-Cert 40373 Spend,Neighbourhoods,LOUGHBOROUGH UNIVERSITY,,Large,,,7600010899,,Revenue Grant To Be Paid,LE11 3TU,"58,220.45",Yes
107,Communities & Local Government,DCLG,02/12/2014,Work In Progress Pre-Cert 40373 Spend,Neighbourhoods,MERCIA FUND 1 GENERAL PARTNER LTD,,Micro,,,7600010945,,Revenue Grant To Be Paid,B95 5AA,"5,105.44",Yes
108,Communities & Local Government,DCLG,02/12/2014,Work In Progress Pre-Cert 40373 Spend,Neighbourhoods,SANDWELL MBC,,Large,,,7600010900,,Revenue Grant To Be Paid,B69 3BS,"34,967.43",Yes
109,Communities & Local Government,DCLG,02/12/2014,Work In Progress Pre-Cert 40373 Spend,Neighbourhoods,SERCO REGIONAL SERVICES LTD,,,,,7600010918,,Revenue Grant To Be Paid,PL6 8LU,"112,527.27",Yes
110,Communities & Local Government,DCLG,02/12/2014,Work In Progress Pre-Cert 40373 Spend,Neighbourhoods,SHROPSHIRE COUNCIL,,Public Bodies,,,7600010914,,Revenue Grant Clawback Offset,SY2 6ND,-47.06,Yes
111,Communities & Local Government,DCLG,02/12/2014,Work In Progress Pre-Cert 40373 Spend,Neighbourhoods,SHROPSHIRE COUNCIL,,Public Bodies,,,7600010914,,Revenue Grant To Be Paid,SY2 6ND,"6,535.87",Yes
112,Communities & Local Government,DCLG,02/12/2014,Work In Progress Pre-Cert 40373 Spend,Neighbourhoods,SHROPSHIRE COUNCIL,,Public Bodies,,,7600010915,,Revenue Grant To Be Paid,SY2 6ND,"6,677.45",Yes
113,Communities & Local Government,DCLG,02/12/2014,Work In Progress Pre-Cert 40373 Spend,Neighbourhoods,SHROPSHIRE COUNCIL,,Public Bodies,,,7600010916,,Revenue Grant To Be Paid,SY2 6ND,"4,374.86",Yes
114,Communities & Local Government,DCLG,02/12/2014,Work In Progress Pre-Cert 40373 Spend,Neighbourhoods,SHROPSHIRE COUNCIL,,Public Bodies,,,7600010923,,Revenue Grant To Be Paid,SY2 6ND,"21,615.54",Yes
115,Communities & Local Government,DCLG,02/12/2014,Work In Progress Pre-Cert 40373 Spend,Neighbourhoods,STH WEST MANUFACTURING ADV SERVICE,,,,,7600010925,,Revenue Grant To Be Paid,TA6 6DF,"120,058.85",Yes
116,Communities & Local Government,DCLG,02/12/2014,Work In Progress Pre-Cert 40373 Spend,Neighbourhoods,STOKE-ON-TRENT CITY COUNCIL,,Large,,,7600010922,,Revenue Grant To Be Paid,ST4 1HP,"12,052.61",Yes
117,Communities & Local Government,DCLG,02/12/2014,Work In Progress Pre-Cert 40373 Spend,Neighbourhoods,TELFORD & WREKIN COUNCIL,,,,,7600010924,,Revenue Grant To Be Paid,TF3 4NT,"13,312.72",Yes
118,Communities & Local Government,DCLG,02/12/2014,Work In Progress Pre-Cert 40373 Spend,Neighbourhoods,UNIVERSITY OF SHEFFIELD,,,,,7600010928,,Revenue Grant To Be Paid,S60 5TZ,"36,492.66",Yes
119,Communities & Local Government,DCLG,02/12/2014,Work In Progress Pre-Cert 40373 Spend,Neighbourhoods,UNIVERSITY OF SHEFFIELD,,,,,7600010929,,Revenue Grant To Be Paid,S60 5TZ,"24,378.69",Yes
120,Communities & Local Government,DCLG,02/12/2014,Work In Progress Pre-Cert 40373 Spend,Neighbourhoods,UNIVERSITY OF SHEFFIELD,,,,,7600010930,,Revenue Grant To Be Paid,S60 5TZ,"21,391.48",Yes
121,Communities & Local Government,DCLG,02/12/2014,Work In Progress Pre-Cert 40373 Spend,Neighbourhoods,UNIVERSITY OF SHEFFIELD,,,,,7600010931,,Revenue Grant To Be Paid,S60 5TZ,"31,249.13",Yes
122,Communities & Local Government,DCLG,02/12/2014,Work In Progress Pre-Cert 40373 Spend,Neighbourhoods,UNIVERSITY OF SHEFFIELD,,,,,7600010932,,Revenue Grant To Be Paid,S60 5TZ,"10,396.73",Yes
123,Communities & Local Government,DCLG,02/12/2014,Work In Progress Pre-Cert 40373 Spend,Neighbourhoods,UNIVERSITY OF SHEFFIELD,,,,,7600010933,,Revenue Grant To Be Paid,S60 5TZ,"18,535.00",Yes
124,Communities & Local Government,DCLG,02/12/2014,Work In Progress Pre-Cert 40373 Spend,Neighbourhoods,UNIVERSITY OF SHEFFIELD,,,,,7600010935,,Revenue Grant To Be Paid,S60 5TZ,"20,795.05",Yes
125,Communities & Local Government,DCLG,02/12/2014,Work In Progress Pre-Cert 40373 Spend,Neighbourhoods,UNIVERSITY OF SHEFFIELD,,,,,7600010936,,Revenue Grant To Be Paid,S60 5TZ,"23,476.76",Yes
126,Communities & Local Government,DCLG,02/12/2014,Work In Progress Pre-Cert 40373 Spend,Neighbourhoods,UNIVERSITY OF WOLVERHAMPTON,,Large,,,7600010903,,Revenue Grant To Be Paid,WV1 1SB,"60,116.92",Yes
127,Communities & Local Government,DCLG,02/12/2014,Work In Progress Pre-Cert 40373 Spend,Neighbourhoods,UNIVERSITY OF WOLVERHAMPTON,,Large,,,7600010905,,Revenue Grant To Be Paid,WV1 1SB,"69,948.65",Yes
128,Communities & Local Government,DCLG,02/12/2014,Work In Progress Pre-Cert 40373 Spend,Neighbourhoods,UNIVERSITY OF WOLVERHAMPTON,,Large,,,7600010906,,Revenue Grant To Be Paid,WV1 1SB,"79,317.18",Yes
129,Communities & Local Government,DCLG,02/12/2014,Work In Progress Pre-Cert 40373 Spend,Neighbourhoods,UNIVERSITY OF WOLVERHAMPTON,,Large,,,7600010907,,Revenue Grant Clawback Offset,WV1 1SB,-994.12,Yes
130,Communities & Local Government,DCLG,02/12/2014,Work In Progress Pre-Cert 40373 Spend,Neighbourhoods,UNIVERSITY OF WOLVERHAMPTON,,Large,,,7600010907,,Revenue Grant To Be Paid,WV1 1SB,"28,025.50",Yes
131,Communities & Local Government,DCLG,02/12/2014,Work In Progress Pre-Cert 40373 Spend,Neighbourhoods,UNIVERSITY OF WOLVERHAMPTON,,Large,,,7600010919,,Revenue Grant To Be Paid,WV1 1SB,"151,866.99",Yes
132,Communities & Local Government,DCLG,02/12/2014,Work In Progress Pre-Cert 40373 Spend,Neighbourhoods,UNIVERSITY OF WOLVERHAMPTON,,Large,,,7600010920,,Revenue Grant To Be Paid,WV1 1SB,"59,365.86",Yes
133,Communities & Local Government,DCLG,02/12/2014,Work In Progress Pre-Cert 40373 Spend,Neighbourhoods,WORCESTERSHIRE COUNTY COUNCIL,,Public Bodies,,,7600010909,,Revenue Grant To Be Paid,WR5 2NP,"54,214.94",Yes
134,Communities & Local Government,DCLG,02/12/2014,Work In Progress Pre-Cert 40373 Spend,Neighbourhoods,WORCESTERSHIRE COUNTY COUNCIL,,Public Bodies,,,7600010912,,Revenue Grant To Be Paid,WR5 2NP,"20,541.99",Yes
135,Communities & Local Government,DCLG,02/12/2014,Work In Progress Pre-Cert 40373 Spend,Neighbourhoods,YTKO LIMITED,,,,,7600010910,,Revenue Grant To Be Paid,CB4 2QH,"70,090.74",Yes
136,Communities & Local Government,DCLG,02/12/2014,Work In Progress Pre-Cert 40467 Spend,Neighbourhoods,BIRMINGHAM CITY COUNCIL (NOT RATES),,Large,,,7600010942,,Capital Grant To Be Paid,B1 1BB,"256,319.81",Yes
137,Communities & Local Government,DCLG,02/12/2014,Work In Progress Pre-Cert 40467 Spend,Neighbourhoods,CALDERDALE METROPOLITAN BOROUGH COU,,Large,,,7600010947,,Capital Grant To Be Paid,HX1 1UN,"198,018.61",Yes
138,Communities & Local Government,DCLG,02/12/2014,Work In Progress Pre-Cert 40467 Spend,Neighbourhoods,CHESTERFIELD BOROUGH COUNCIL,,Large,,,7600010911,,Capital Grant To Be Paid,S40 1LP,"47,740.05",Yes
139,Communities & Local Government,DCLG,02/12/2014,Work In Progress Pre-Cert 40467 Spend,Neighbourhoods,DERBYSHIRE COUNTY COUNCIL,,Large,,,7600010951,,Capital Grant To Be Paid,DE4 3AG,"100,514.67",Yes
140,Communities & Local Government,DCLG,02/12/2014,Work In Progress Pre-Cert 40467 Spend,Neighbourhoods,MARSHALL CONSTRUCTION (WEST YORKS),,Large,,,7600010943,,Capital Grant To Be Paid,HX5 9BW,"89,456.54",Yes
141,Communities & Local Government,DCLG,02/12/2014,Work In Progress Pre-Cert 40467 Spend,Neighbourhoods,SANDWELL MBC,,Large,,,7600010900,,Capital Grant Clawback Offset,B69 3BS,"-7,222.05",Yes
142,Communities & Local Government,DCLG,02/12/2014,Work In Progress Pre-Cert 40467 Spend,Neighbourhoods,SANDWELL MBC,,Large,,,7600010900,,Capital Grant To Be Paid,B69 3BS,"133,193.01",Yes
143,Communities & Local Government,DCLG,02/12/2014,Work In Progress Pre-Cert 40467 Spend,Neighbourhoods,SCREEN YORKSHIRE LIMITED,,,,,7600010948,,Capital Grant To Be Paid,LS2 7EY,"1,187,777.88",Yes
144,Communities & Local Government,DCLG,02/12/2014,Work In Progress Pre-Cert 40467 Spend,Neighbourhoods,SHROPSHIRE COUNCIL,,Public Bodies,,,7600010916,,Capital Grant To Be Paid,SY2 6ND,"55,233.05",Yes
145,Communities & Local Government,DCLG,02/12/2014,Work In Progress Pre-Cert 40467 Spend,Neighbourhoods,ST MATTHEWS HOUSE,,Micro,,,7600010949,,Capital Grant To Be Paid,S2 4QZ,"57,677.67",Yes
146,Communities & Local Government,DCLG,03/12/2014,Advertising,"Strategy, Communications and Private Office",TULLO MARSHALL WARREN LTD,,Medium,,,5106208561,Advertising,Right to Buy Marketing Contract,W1F 9NB,"6,220.28",
147,Communities & Local Government,DCLG,03/12/2014,Agency Staff,Finance & Corporate Services,SQUARE ONE RESOURCES LTD,,Medium,,491410288,5106208642,Contingent Labour,SAP Support until closedown,EC2A 2AD,"2,858.82",
148,Communities & Local Government,DCLG,03/12/2014,Agency Staff,Localism,CAPITA RESOURCING LTD,,Large,,215581006,5106208648,Contingent Labour,Expenses (Line 70 Amend),SL6 1DP,229.02,
149,Communities & Local Government,DCLG,03/12/2014,Agency Staff,Localism,CAPITA RESOURCING LTD,,Large,,215581006,5106208648,Contingent Labour,Interim Manager - Ext 02,SL6 1DP,558.90,
150,Communities & Local Government,DCLG,03/12/2014,Agency Staff,Neighbourhoods,CAPITA RESOURCING LTD,,Large,,215581006,5106208647,Contingent Labour,Contractors Ext10 PRS Guarantees Commercial Advice,SL6 1DP,"3,959.94",
151,Communities & Local Government,DCLG,03/12/2014,Agency Staff,Neighbourhoods,CAPITA RESOURCING LTD,,Large,,215581006,5106208652,Contingent Labour,Interim Manager,SL6 1DP,"2,616.00",
152,Communities & Local Government,DCLG,03/12/2014,Current (non AEF) Grants to Local Authorities,Neighbourhoods,LANCASHIRE COUNTY COUNCIL,,Large,,233047435,2100248780,,Rent Officer Services and Pensions Liability,PR1 0LD,"3,329.62",Yes
153,Communities & Local Government,DCLG,03/12/2014,Current (non AEF) Grants to Local Authorities,Neighbourhoods,WOLVERHAMPTON MBC,,,,,2100248781,,Rent Officer Services and Pensions Liability,WV1 1RL,"2,282.00",Yes
154,Communities & Local Government,DCLG,03/12/2014,Current Grants to Non Profit Bodies,Localism,NCVS,,Small,,235063497,2100248789,,Nottingham North Rebalancing Project,NG1 3FB,"30,000.00",Yes
155,Communities & Local Government,DCLG,03/12/2014,Current Grants to Non Profit Bodies,Neighbourhoods,HOMELESS LINK,Yes,,,,5000272100,,Preventing Homelessness Grant (VOL),SE11 4AP,"74,750.00",Yes
156,Communities & Local Government,DCLG,03/12/2014,Current Grants to Non Profit Bodies,Neighbourhoods,IMPROVEMENT & DEVELOPMENT AGENCY,Yes,Public Bodies,,236810359,2100248779,,Planning Advisory Service,EC1M 5LG,"18,980.63",Yes
157,Communities & Local Government,DCLG,03/12/2014,Current Grants to Non Profit Bodies,Neighbourhoods,SHELTER NAT CAMPAIGN HOMELESS PEOPL,,Large,,,5000272101,,Preventing Homelessness Grant (VOL),EC1V 9HU,"749,917.00",Yes
158,Communities & Local Government,DCLG,03/12/2014,Government Procurement Card (expense),"Strategy, Communications and Private Office",DCLG GOVERNMENT PROCUREMENT CARD,,,,,1000004002,,Subscription to FT online,TN37 7GA,270.00,
159,Communities & Local Government,DCLG,03/12/2014,Printing,"Strategy, Communications and Private Office",STATIONERY OFFICE LTD,,Large,,779375633,5106208667,Printing Services,Statutory Instruments Print: Non-Vatable,NR3 1PD,165.00,
160,Communities & Local Government,DCLG,03/12/2014,Printing,"Strategy, Communications and Private Office",STATIONERY OFFICE LTD,,Large,,779375633,5106208667,Printing Services,Statutory Instruments Print: Vatable,NR3 1PD,130.00,
161,Communities & Local Government,DCLG,03/12/2014,Professional services,Neighbourhoods,RICARDO-AEA LTD,,Large,,,5106208601,Technical Services,Online Planning Tools,OX11 0QR,"4,292.40",
162,Communities & Local Government,DCLG,03/12/2014,Professional services,Neighbourhoods,RICARDO-AEA LTD,,Large,,,5106208601,Technical Services,Online Planning Tools,OX11 0QR,"3,024.00",
163,Communities & Local Government,DCLG,03/12/2014,Publications,Finance & Corporate Services,JONES YARRELL LEADENHALL LTD,,Large,,505670265,5106208668,Learning and Development Materials,Journal and Newspaper supply 2014-15,E3 3JH,326.43,
164,Communities & Local Government,DCLG,03/12/2014,Publicity,"Strategy, Communications and Private Office",JONES YARRELL LEADENHALL LTD,,Large,,505670265,5106208651,Advertising,Newspaper and Magazines 14/15,E3 3JH,486.11,
165,Communities & Local Government,DCLG,03/12/2014,Research,Finance & Corporate Services,OXFORD CONS SOCIAL INCLUSION LTD,,Micro,,735385184,5106208662,Research,Research - Economic Deprivation Index,BN1 4GQ,"36,125.00",
166,Communities & Local Government,DCLG,03/12/2014,Training,Finance & Corporate Services,CHARTERED INST OF HOUSING,Yes,Medium,,497178731,5106208655,Development and Training,SLCNG Annual Anti-social Behavior (ASB),CV4 8JP,440.00,
167,Communities & Local Government,DCLG,03/12/2014,Training,Finance & Corporate Services,LSR TRAINING AND DEVELOPMENT,,Micro,,,5106208654,Development and Training,Senior Leaders: Creating Analytical Impa,S44 6UQ,830.00,
168,Communities & Local Government,DCLG,03/12/2014,Training,Finance & Corporate Services,SOUTH WEST COUNCILS,,,,339425373,5106208641,Development and Training,Local Government Pension Scheme Event,TA1 1SH,500.00,
169,Communities & Local Government,DCLG,03/12/2014,Work In Progress Pre-Cert 40373 Spend,Neighbourhoods,ACCESS TO BUSINESS,,Small,,,7600010997,,Revenue Grant To Be Paid,WV2 1AA,"34,904.93",Yes
170,Communities & Local Government,DCLG,03/12/2014,Work In Progress Pre-Cert 40373 Spend,Neighbourhoods,BARNSLEY METROPOLITAN BC,,Public Bodies,,,7600011015,,Revenue Grant To Be Paid,S70 9OO,"21,590.95",Yes
171,Communities & Local Government,DCLG,03/12/2014,Work In Progress Pre-Cert 40373 Spend,Neighbourhoods,BIRMINGHAM CITY COUNCIL (NOT RATES),,Large,,,7600011001,,Revenue Grant To Be Paid,B1 1BB,"24,397.82",Yes
172,Communities & Local Government,DCLG,03/12/2014,Work In Progress Pre-Cert 40373 Spend,Neighbourhoods,BIRMINGHAM CITY COUNCIL (NOT RATES),,Large,,,7600011002,,Revenue Grant To Be Paid,B1 1BB,"20,158.21",Yes
173,Communities & Local Government,DCLG,03/12/2014,Work In Progress Pre-Cert 40373 Spend,Neighbourhoods,CARBON LIMITING TECHNOLOGIES LTD,,Small,,,7600010992,,Revenue Grant To Be Paid,GU51 5SY,"48,384.65",Yes
174,Communities & Local Government,DCLG,03/12/2014,Work In Progress Pre-Cert 40373 Spend,Neighbourhoods,CASE-DA,,Micro,,,7600011023,,Revenue Grant To Be Paid,LE1 7EA,"13,631.16",Yes
175,Communities & Local Government,DCLG,03/12/2014,Work In Progress Pre-Cert 40373 Spend,Neighbourhoods,CHESTERFIELD BOROUGH COUNCIL,,Large,,,7600011026,,Revenue Grant To Be Paid,S40 1LP,"1,891.73",Yes
176,Communities & Local Government,DCLG,03/12/2014,Work In Progress Pre-Cert 40373 Spend,Neighbourhoods,COVENTRY CITY COUNCIL,,Large,,,7600010977,,Revenue Grant To Be Paid,CV1 5RR,"26,403.13",Yes
177,Communities & Local Government,DCLG,03/12/2014,Work In Progress Pre-Cert 40373 Spend,Neighbourhoods,COVENTRY CITY COUNCIL,,Large,,,7600010989,,Revenue Grant To Be Paid,CV1 5RR,"91,872.65",Yes
178,Communities & Local Government,DCLG,03/12/2014,Work In Progress Pre-Cert 40373 Spend,Neighbourhoods,COVENTRY UNIVERSITY ENTERPRISES LTD,,Medium,,,7600010959,,Revenue Grant To Be Paid,CV1 2TT,"55,006.49",Yes
179,Communities & Local Government,DCLG,03/12/2014,Work In Progress Pre-Cert 40373 Spend,Neighbourhoods,COVENTRY UNIVERSITY ENTERPRISES LTD,,Medium,,,7600010974,,Revenue Grant To Be Paid,CV1 2TT,"44,088.36",Yes
180,Communities & Local Government,DCLG,03/12/2014,Work In Progress Pre-Cert 40373 Spend,Neighbourhoods,CREATIVE ART HOUSE,,Small,,,7600010994,,Revenue Grant To Be Paid,WF1 2TE,"6,287.24",Yes
181,Communities & Local Government,DCLG,03/12/2014,Work In Progress Pre-Cert 40373 Spend,Neighbourhoods,DNCC LIMITED,,Medium,,,7600010987,,Revenue Grant To Be Paid,S41 7NA,"141,152.42",Yes
182,Communities & Local Government,DCLG,03/12/2014,Work In Progress Pre-Cert 40373 Spend,Neighbourhoods,DONCASTER METROPOLITAN BC,,,,,7600011009,,Revenue Grant To Be Paid,DN1 1DE,"9,405.22",Yes
183,Communities & Local Government,DCLG,03/12/2014,Work In Progress Pre-Cert 40373 Spend,Neighbourhoods,DUDLEY METROPOLITAN BC,,Public Bodies,,,7600010954,,Revenue Grant Clawback Offset,DY8 2AA,-28.07,Yes
184,Communities & Local Government,DCLG,03/12/2014,Work In Progress Pre-Cert 40373 Spend,Neighbourhoods,DUDLEY METROPOLITAN BC,,Public Bodies,,,7600010954,,Revenue Grant To Be Paid,DY8 2AA,"5,084.88",Yes
185,Communities & Local Government,DCLG,03/12/2014,Work In Progress Pre-Cert 40373 Spend,Neighbourhoods,DUDLEY METROPOLITAN BC,,Public Bodies,,,7600010960,,Revenue Grant To Be Paid,DY8 2AA,"5,177.89",Yes
186,Communities & Local Government,DCLG,03/12/2014,Work In Progress Pre-Cert 40373 Spend,Neighbourhoods,DUDLEY METROPOLITAN BC,,Public Bodies,,,7600010990,,Revenue Grant To Be Paid,DY8 2AA,"14,118.66",Yes
187,Communities & Local Government,DCLG,03/12/2014,Work In Progress Pre-Cert 40373 Spend,Neighbourhoods,EAST MALLING RESEARCH,,Medium,,,7600010995,,Revenue Grant To Be Paid,ME19 6BJ,"71,326.14",Yes
188,Communities & Local Government,DCLG,03/12/2014,Work In Progress Pre-Cert 40373 Spend,Neighbourhoods,EAST MIDLANDS INCUBATION NETWORK (E,,Small,,,7600010973,,Revenue Grant To Be Paid,DE65 5GJ,"43,613.26",Yes
189,Communities & Local Government,DCLG,03/12/2014,Work In Progress Pre-Cert 40373 Spend,Neighbourhoods,EAST RIDING OF YORKSHIRE COUNCIL,,,,,7600010999,,Revenue Grant Clawback Offset,HU17 9BA,-474.60,Yes
190,Communities & Local Government,DCLG,03/12/2014,Work In Progress Pre-Cert 40373 Spend,Neighbourhoods,EAST RIDING OF YORKSHIRE COUNCIL,,,,,7600010999,,Revenue Grant To Be Paid,HU17 9BA,"52,941.92",Yes
191,Communities & Local Government,DCLG,03/12/2014,Work In Progress Pre-Cert 40373 Spend,Neighbourhoods,FOOD &  DRINK FORUM LTD (I-NET),,Small,,,7600010984,,Revenue Grant To Be Paid,NG5 9RG,"11,715.44",Yes
192,Communities & Local Government,DCLG,03/12/2014,Work In Progress Pre-Cert 40373 Spend,Neighbourhoods,FOOD &  DRINK FORUM LTD (I-NET),,Small,,,7600010986,,Revenue Grant To Be Paid,NG5 9RG,"1,422.55",Yes
193,Communities & Local Government,DCLG,03/12/2014,Work In Progress Pre-Cert 40373 Spend,Neighbourhoods,ISLE OF WIGHT COUNCIL,,Public Bodies,,,7600011016,,Revenue Grant To Be Paid,PO30 1UD,"5,790.98",Yes
194,Communities & Local Government,DCLG,03/12/2014,Work In Progress Pre-Cert 40373 Spend,Neighbourhoods,LEEDS CITY COUNCIL,,,,,7600011028,,Revenue Grant To Be Paid,LS1 1UR,"4,964.84",Yes
195,Communities & Local Government,DCLG,03/12/2014,Work In Progress Pre-Cert 40373 Spend,Neighbourhoods,LEICESTER CITY COUNCIL,,Large,,,7600010967,,Revenue Grant To Be Paid,LE1 6ZG,"2,379.32",Yes
196,Communities & Local Government,DCLG,03/12/2014,Work In Progress Pre-Cert 40373 Spend,Neighbourhoods,LEICESTER CITY COUNCIL,,Large,,,7600010968,,Revenue Grant To Be Paid,LE1 6ZG,"2,955.30",Yes
197,Communities & Local Government,DCLG,03/12/2014,Work In Progress Pre-Cert 40373 Spend,Neighbourhoods,LEICESTER CITY COUNCIL,,Large,,,7600011010,,Revenue Grant Clawback Offset,LE1 6ZG,-22.12,Yes
198,Communities & Local Government,DCLG,03/12/2014,Work In Progress Pre-Cert 40373 Spend,Neighbourhoods,LEICESTER CITY COUNCIL,,Large,,,7600011010,,Revenue Grant To Be Paid,LE1 6ZG,"17,065.27",Yes
199,Communities & Local Government,DCLG,03/12/2014,Work In Progress Pre-Cert 40373 Spend,Neighbourhoods,LEICESTER CITY COUNCIL,,Large,,,7600011021,,Revenue Grant To Be Paid,LE1 6ZG,"91,147.53",Yes
200,Communities & Local Government,DCLG,03/12/2014,Work In Progress Pre-Cert 40373 Spend,Neighbourhoods,LEICESTER UNIVERSITY,,Large,,,7600010964,,Revenue Grant To Be Paid,LE1 7RH,"9,945.16",Yes
201,Communities & Local Government,DCLG,03/12/2014,Work In Progress Pre-Cert 40373 Spend,Neighbourhoods,LEICESTER UNIVERSITY,,Large,,,7600010969,,Revenue Grant To Be Paid,LE1 7RH,"7,422.80",Yes
202,Communities & Local Government,DCLG,03/12/2014,Work In Progress Pre-Cert 40373 Spend,Neighbourhoods,LINCONSHIRE COUNTY COUNCIL,,Large,,,7600011030,,Revenue Grant To Be Paid,LN1 1YT,"95,878.00",Yes
203,Communities & Local Government,DCLG,03/12/2014,Work In Progress Pre-Cert 40373 Spend,Neighbourhoods,LINCONSHIRE COUNTY COUNCIL,,Large,,,7600011031,,Revenue Grant To Be Paid,LN1 1YT,"68,314.12",Yes
204,Communities & Local Government,DCLG,03/12/2014,Work In Progress Pre-Cert 40373 Spend,Neighbourhoods,LOUGHBOROUGH UNIVERSITY,,Large,,,7600010975,,Revenue Grant To Be Paid,LE11 3TU,"27,263.33",Yes
205,Communities & Local Government,DCLG,03/12/2014,Work In Progress Pre-Cert 40373 Spend,Neighbourhoods,LOUGHBOROUGH UNIVERSITY,,Large,,,7600010980,,Revenue Grant To Be Paid,LE11 3TU,"1,492.01",Yes
206,Communities & Local Government,DCLG,03/12/2014,Work In Progress Pre-Cert 40373 Spend,Neighbourhoods,MARKETING DERBY,,Micro,,,7600010958,,Revenue Grant To Be Paid,DE24 8QR,"26,714.95",Yes
207,Communities & Local Government,DCLG,03/12/2014,Work In Progress Pre-Cert 40373 Spend,Neighbourhoods,MIGHTY CREATIVES,,Small,,,7600010979,,Revenue Grant To Be Paid,LE1 1RE,"8,179.18",Yes
208,Communities & Local Government,DCLG,03/12/2014,Work In Progress Pre-Cert 40373 Spend,Neighbourhoods,NGAGE SOLUTIONS LTD,,Medium,,,7600010981,,Revenue Grant To Be Paid,HP14 4BF,"37,621.26",Yes
209,Communities & Local Government,DCLG,03/12/2014,Work In Progress Pre-Cert 40373 Spend,Neighbourhoods,NGAGE SOLUTIONS LTD,,Medium,,,7600011013,,Revenue Grant To Be Paid,HP14 4BF,"19,288.48",Yes
210,Communities & Local Government,DCLG,03/12/2014,Work In Progress Pre-Cert 40373 Spend,Neighbourhoods,NGAGE SOLUTIONS LTD,,Medium,,,7600011017,,Revenue Grant To Be Paid,HP14 4BF,"29,526.60",Yes
211,Communities & Local Government,DCLG,03/12/2014,Work In Progress Pre-Cert 40373 Spend,Neighbourhoods,NGAGE SOLUTIONS LTD,,Medium,,,7600011020,,Revenue Grant To Be Paid,HP14 4BF,"4,726.49",Yes
212,Communities & Local Government,DCLG,03/12/2014,Work In Progress Pre-Cert 40373 Spend,Neighbourhoods,NGAGE SOLUTIONS LTD,,Medium,,,7600011024,,Revenue Grant To Be Paid,HP14 4BF,"23,062.48",Yes
213,Communities & Local Government,DCLG,03/12/2014,Work In Progress Pre-Cert 40373 Spend,Neighbourhoods,NORTH LINCOLNSHIRE COUNCIL,,Public Bodies,,,7600011018,,Revenue Grant To Be Paid,DN16 1AB,"23,781.18",Yes
214,Communities & Local Government,DCLG,03/12/2014,Work In Progress Pre-Cert 40373 Spend,Neighbourhoods,NOTTINGHAM CITY COUNCIL,,Large,,,7600010978,,Revenue Grant To Be Paid,NG2 3NG,"78,389.90",Yes
215,Communities & Local Government,DCLG,03/12/2014,Work In Progress Pre-Cert 40373 Spend,Neighbourhoods,NOTTINGHAM CITY COUNCIL,,Large,,,7600011027,,Revenue Grant To Be Paid,NG2 3NG,"27,617.04",Yes
216,Communities & Local Government,DCLG,03/12/2014,Work In Progress Pre-Cert 40373 Spend,Neighbourhoods,NOTTINGHAM COMMUNITY & VOL SERVICE,Yes,Small,,,7600010952,,Revenue Grant To Be Paid,NG1 3FB,"12,342.30",Yes
217,Communities & Local Government,DCLG,03/12/2014,Work In Progress Pre-Cert 40373 Spend,Neighbourhoods,NOTTINGHAM COMMUNITY & VOL SERVICE,Yes,Small,,,7600010953,,Revenue Grant To Be Paid,NG1 3FB,"12,340.65",Yes
218,Communities & Local Government,DCLG,03/12/2014,Work In Progress Pre-Cert 40373 Spend,Neighbourhoods,NOTTINGHAM COMMUNITY & VOL SERVICE,Yes,Small,,,7600010957,,Revenue Grant To Be Paid,NG1 3FB,"12,339.77",Yes
219,Communities & Local Government,DCLG,03/12/2014,Work In Progress Pre-Cert 40373 Spend,Neighbourhoods,NOTTINGHAM TRENT UNIVERSITY,,Large,,,7600010991,,Revenue Grant To Be Paid,NG1 4FZ,"3,094.89",Yes
220,Communities & Local Government,DCLG,03/12/2014,Work In Progress Pre-Cert 40373 Spend,Neighbourhoods,ONE EAST MIDLANDS,,,,,7600010988,,Revenue Grant Clawback Offset,NG1 3FB,-6.05,Yes
221,Communities & Local Government,DCLG,03/12/2014,Work In Progress Pre-Cert 40373 Spend,Neighbourhoods,ONE EAST MIDLANDS,,,,,7600010988,,Revenue Grant To Be Paid,NG1 3FB,"7,640.59",Yes
222,Communities & Local Government,DCLG,03/12/2014,Work In Progress Pre-Cert 40373 Spend,Neighbourhoods,PRINCES TRUST,,Large,,,7600010982,,Revenue Grant To Be Paid,LS2 8NG,"13,419.19",Yes
223,Communities & Local Government,DCLG,03/12/2014,Work In Progress Pre-Cert 40373 Spend,Neighbourhoods,PRINCES TRUST,,Large,,,7600010983,,Revenue Grant To Be Paid,LS2 8NG,"5,140.64",Yes
224,Communities & Local Government,DCLG,03/12/2014,Work In Progress Pre-Cert 40373 Spend,Neighbourhoods,RACE EQUALITY CENTRE,,,,,7600010956,,Revenue Grant To Be Paid,LE1 3SH,"17,824.77",Yes
225,Communities & Local Government,DCLG,03/12/2014,Work In Progress Pre-Cert 40373 Spend,Neighbourhoods,SCARBOROUGH BOROUGH COUNCIL,,,,,7600011011,,Revenue Grant To Be Paid,YO11 2HG,"8,010.52",Yes
226,Communities & Local Government,DCLG,03/12/2014,Work In Progress Pre-Cert 40373 Spend,Neighbourhoods,SHEFFIELD CITY COUNCIL,,,,,7600010998,,Revenue Grant To Be Paid,S1 2SH,"56,595.21",Yes
227,Communities & Local Government,DCLG,03/12/2014,Work In Progress Pre-Cert 40373 Spend,Neighbourhoods,SHEFFIELD CITY COUNCIL,,,,,7600011000,,Revenue Grant To Be Paid,S1 2SH,"9,973.96",Yes
228,Communities & Local Government,DCLG,03/12/2014,Work In Progress Pre-Cert 40373 Spend,Neighbourhoods,SHEFFIELD CITY COUNCIL,,,,,7600011019,,Revenue Grant To Be Paid,S1 2SH,"27,367.89",Yes
229,Communities & Local Government,DCLG,03/12/2014,Work In Progress Pre-Cert 40373 Spend,Neighbourhoods,SOUTHAMPTON CITY COUNCIL,,Public Bodies,,,7600011012,,Revenue Grant To Be Paid,SO14 7LR,"10,815.60",Yes
230,Communities & Local Government,DCLG,03/12/2014,Work In Progress Pre-Cert 40373 Spend,Neighbourhoods,STH YORKS PROPERTY INV CO LTD (2),,Micro,,,7600010963,,Revenue Grant To Be Paid,S1 2HH,"2,621.29",Yes
231,Communities & Local Government,DCLG,03/12/2014,Work In Progress Pre-Cert 40373 Spend,Neighbourhoods,SUSTRANS LIMITED,,Large,,,7600011008,,Revenue Grant To Be Paid,BS1 5DD,"28,984.18",Yes
232,Communities & Local Government,DCLG,03/12/2014,Work In Progress Pre-Cert 40373 Spend,Neighbourhoods,TELFORD & WREKIN COUNCIL,,,,,7600010970,,Revenue Grant To Be Paid,TF3 4NT,"1,519.04",Yes
233,Communities & Local Government,DCLG,03/12/2014,Work In Progress Pre-Cert 40373 Spend,Neighbourhoods,UNIVERSITY OF BIRMINGHAM,,Large,,,7600010972,,Revenue Grant To Be Paid,B15 2TT,"16,178.49",Yes
234,Communities & Local Government,DCLG,03/12/2014,Work In Progress Pre-Cert 40373 Spend,Neighbourhoods,UNIVERSITY OF BIRMINGHAM,,Large,,,7600011007,,Revenue Grant To Be Paid,B15 2TT,"46,725.35",Yes
235,Communities & Local Government,DCLG,03/12/2014,Work In Progress Pre-Cert 40373 Spend,Neighbourhoods,UNIVERSITY OF BRADFORD,,,,,7600010961,,Revenue Grant To Be Paid,BD7 1DP,"9,029.26",Yes
236,Communities & Local Government,DCLG,03/12/2014,Work In Progress Pre-Cert 40373 Spend,Neighbourhoods,UNIVERSITY OF BRADFORD,,,,,7600010962,,Revenue Grant To Be Paid,BD7 1DP,"44,583.15",Yes
237,Communities & Local Government,DCLG,03/12/2014,Work In Progress Pre-Cert 40373 Spend,Neighbourhoods,UNIVERSITY OF LEEDS,,,,,7600011003,,Revenue Grant To Be Paid,LS2 9JT,"8,537.59",Yes
238,Communities & Local Government,DCLG,03/12/2014,Work In Progress Pre-Cert 40373 Spend,Neighbourhoods,UNIVERSITY OF LEEDS,,,,,7600011004,,Revenue Grant To Be Paid,LS2 9JT,"18,003.28",Yes
239,Communities & Local Government,DCLG,03/12/2014,Work In Progress Pre-Cert 40373 Spend,Neighbourhoods,UNIVERSITY OF LEEDS,,,,,7600011005,,Revenue Grant To Be Paid,LS2 9JT,"7,035.77",Yes
240,Communities & Local Government,DCLG,03/12/2014,Work In Progress Pre-Cert 40373 Spend,Neighbourhoods,UNIVERSITY OF LEEDS,,,,,7600011006,,Revenue Grant To Be Paid,LS2 9JT,"18,409.66",Yes
241,Communities & Local Government,DCLG,03/12/2014,Work In Progress Pre-Cert 40373 Spend,Neighbourhoods,UNIVERSITY OF PLYMOUTH GENERAL A/C,,,,,7600010955,,Revenue Grant To Be Paid,PL4 8AA,"126,885.27",Yes
242,Communities & Local Government,DCLG,03/12/2014,Work In Progress Pre-Cert 40373 Spend,Neighbourhoods,UNIVERSITY OF WARWICK,,Large,,,7600010971,,Revenue Grant To Be Paid,CV4 8UW,"48,394.61",Yes
243,Communities & Local Government,DCLG,03/12/2014,Work In Progress Pre-Cert 40373 Spend,Neighbourhoods,WAKEFIELD COUNCIL,,Large,,,7600010976,,Revenue Grant To Be Paid,WF1 2EB,"32,823.43",Yes
244,Communities & Local Government,DCLG,03/12/2014,Work In Progress Pre-Cert 40467 Spend,Neighbourhoods,BIRMINGHAM CITY COUNCIL (NOT RATES),,Large,,,7600011001,,Capital Grant To Be Paid,B1 1BB,"263,577.88",Yes
245,Communities & Local Government,DCLG,03/12/2014,Work In Progress Pre-Cert 40467 Spend,Neighbourhoods,CORNWALL SUSTAINABLE BUILDING TRUST,,Micro,,,7600010965,,Capital Grant To Be Paid,PL25 9DY,"12,953.18",Yes
246,Communities & Local Government,DCLG,03/12/2014,Work In Progress Pre-Cert 40467 Spend,Neighbourhoods,COVENTRY CITY COUNCIL,,Large,,,7600010977,,Capital Grant To Be Paid,CV1 5RR,"150,409.37",Yes
247,Communities & Local Government,DCLG,03/12/2014,Work In Progress Pre-Cert 40467 Spend,Neighbourhoods,COVENTRY CITY COUNCIL,,Large,,,7600010989,,Capital Grant To Be Paid,CV1 5RR,"343,021.15",Yes
248,Communities & Local Government,DCLG,03/12/2014,Work In Progress Pre-Cert 40467 Spend,Neighbourhoods,COVENTRY UNIVERSITY ENTERPRISES LTD,,Medium,,,7600010974,,Capital Grant To Be Paid,CV1 2TT,"9,999.99",Yes
249,Communities & Local Government,DCLG,03/12/2014,Work In Progress Pre-Cert 40467 Spend,Neighbourhoods,CREATIVE ART HOUSE,,Small,,,7600010994,,Capital Grant To Be Paid,WF1 2TE,"119,917.37",Yes
250,Communities & Local Government,DCLG,03/12/2014,Work In Progress Pre-Cert 40467 Spend,Neighbourhoods,CTP (WAKEFIELD) LTD,,,,,7600010993,,Capital Grant To Be Paid,M15 4PY,"884,002.91",Yes
251,Communities & Local Government,DCLG,03/12/2014,Work In Progress Pre-Cert 40467 Spend,Neighbourhoods,DUDLEY METROPOLITAN BC,,Public Bodies,,,7600010954,,Capital Grant Clawback Offset,DY8 2AA,"-5,549.83",Yes
252,Communities & Local Government,DCLG,03/12/2014,Work In Progress Pre-Cert 40467 Spend,Neighbourhoods,DUDLEY METROPOLITAN BC,,Public Bodies,,,7600010954,,Capital Grant To Be Paid,DY8 2AA,"55,217.25",Yes
253,Communities & Local Government,DCLG,03/12/2014,Work In Progress Pre-Cert 40467 Spend,Neighbourhoods,DUDLEY METROPOLITAN BC,,Public Bodies,,,7600010960,,Capital Grant To Be Paid,DY8 2AA,"28,507.19",Yes
254,Communities & Local Government,DCLG,03/12/2014,Work In Progress Pre-Cert 40467 Spend,Neighbourhoods,DUDLEY METROPOLITAN BC,,Public Bodies,,,7600010990,,Capital Grant To Be Paid,DY8 2AA,"54,122.77",Yes
255,Communities & Local Government,DCLG,03/12/2014,Work In Progress Pre-Cert 40467 Spend,Neighbourhoods,FORTDOWN DEVELOPMENTS LTD,,Micro,,,7600010966,,Capital Grant To Be Paid,TR8 5RU,"10,305.91",Yes
256,Communities & Local Government,DCLG,03/12/2014,Work In Progress Pre-Cert 40467 Spend,Neighbourhoods,KROWJI LTD,,,,,7600010985,,Capital Grant To Be Paid,TR15 3AJ,"145,336.48",Yes
257,Communities & Local Government,DCLG,03/12/2014,Work In Progress Pre-Cert 40467 Spend,Neighbourhoods,LEICESTER CITY COUNCIL,,Large,,,7600011021,,Capital Grant To Be Paid,LE1 6ZG,"156,203.99",Yes
258,Communities & Local Government,DCLG,03/12/2014,Work In Progress Pre-Cert 40467 Spend,Neighbourhoods,LEICESTER CITY COUNCIL,,Large,,,7600011025,,Capital Grant To Be Paid,LE1 6ZG,"27,321.88",Yes
259,Communities & Local Government,DCLG,03/12/2014,Work In Progress Pre-Cert 40467 Spend,Neighbourhoods,LINCONSHIRE COUNTY COUNCIL,,Large,,,7600011030,,Capital Grant To Be Paid,LN1 1YT,"212,732.23",Yes
260,Communities & Local Government,DCLG,03/12/2014,Work In Progress Pre-Cert 40467 Spend,Neighbourhoods,LINCONSHIRE COUNTY COUNCIL,,Large,,,7600011031,,Capital Grant To Be Paid,LN1 1YT,"38,734.20",Yes
261,Communities & Local Government,DCLG,03/12/2014,Work In Progress Pre-Cert 40467 Spend,Neighbourhoods,LOUGHBOROUGH UNIVERSITY,,Large,,,7600010980,,Capital Grant To Be Paid,LE11 3TU,"17,790.34",Yes
262,Communities & Local Government,DCLG,03/12/2014,Work In Progress Pre-Cert 40467 Spend,Neighbourhoods,MERCIA FUND 1 GENERAL PARTNER LTD,,Micro,,,7600011029,,Capital Grant To Be Paid,B95 5AA,"173,497.10",Yes
263,Communities & Local Government,DCLG,03/12/2014,Work In Progress Pre-Cert 40467 Spend,Neighbourhoods,NGAGE SOLUTIONS LTD,,Medium,,,7600011017,,Capital Grant To Be Paid,HP14 4BF,"22,044.65",Yes
264,Communities & Local Government,DCLG,03/12/2014,Work In Progress Pre-Cert 40467 Spend,Neighbourhoods,NGAGE SOLUTIONS LTD,,Medium,,,7600011020,,Capital Grant To Be Paid,HP14 4BF,"23,997.40",Yes
265,Communities & Local Government,DCLG,03/12/2014,Work In Progress Pre-Cert 40467 Spend,Neighbourhoods,NOTTINGHAM CITY COUNCIL,,Large,,,7600010978,,Capital Grant To Be Paid,NG2 3NG,"102,692.09",Yes
266,Communities & Local Government,DCLG,03/12/2014,Work In Progress Pre-Cert 40467 Spend,Neighbourhoods,NOTTINGHAM CITY COUNCIL,,Large,,,7600011022,,Capital Grant To Be Paid,NG2 3NG,"257,996.67",Yes
267,Communities & Local Government,DCLG,03/12/2014,Work In Progress Pre-Cert 40467 Spend,Neighbourhoods,TELFORD & WREKIN COUNCIL,,,,,7600010970,,Capital Grant To Be Paid,TF3 4NT,"93,839.54",Yes
268,Communities & Local Government,DCLG,03/12/2014,Work In Progress Pre-Cert 40467 Spend,Neighbourhoods,UNIVERSITY OF BIRMINGHAM,,Large,,,7600010972,,Capital Grant To Be Paid,B15 2TT,"241,227.58",Yes
269,Communities & Local Government,DCLG,03/12/2014,Work In Progress Pre-Cert 40467 Spend,Neighbourhoods,UNIVERSITY OF BIRMINGHAM,,Large,,,7600011007,,Capital Grant To Be Paid,B15 2TT,"485,209.19",Yes
270,Communities & Local Government,DCLG,03/12/2014,Work In Progress Pre-Cert 40467 Spend,Neighbourhoods,WAKEFIELD COUNCIL,,Large,,,7600010976,,Capital Grant To Be Paid,WF1 2EB,723.15,Yes
271,Communities & Local Government,DCLG,03/12/2014,Work In Progress Pre-Cert 40467 Spend,Neighbourhoods,WELBECK ESTATES COMPANY LTD,,Large,,,7600011014,,Capital Grant To Be Paid,S80 3LL,"5,519.29",Yes
272,Communities & Local Government,DCLG,03/12/2014,Work In Progress Pre-Cert 40467 Spend,Neighbourhoods,WYKELAND PROPERTIES LTD,,,,,7600010996,,Capital Grant To Be Paid,HU1 1UU,"1,559.31",Yes
273,Communities & Local Government,DCLG,04/12/2014,Accommodation Service Charges,Neighbourhoods,GVA GRIMLEY LTD,,Large,,210158990,5106208633,Business Support,ERDF YH LDU Valuation Services to Dec 13,B1 2JB,"2,832.00",
274,Communities & Local Government,DCLG,04/12/2014,Advertising,"Strategy, Communications and Private Office",ENTER HERE LLP,,Medium,,672098311,5106208703,Advertising,Fire Kills extension 14/15,EC1R 0JH,"5,000.00",
275,Communities & Local Government,DCLG,04/12/2014,Current Grants to Non Profit Bodies,Localism,INFORM,Yes,Micro,,503220907,2100248589,,Provides information on new religious movements,WC2A 2AE,"130,000.00",Yes
276,Communities & Local Government,DCLG,04/12/2014,Current Grants to Non Profit Bodies,Neighbourhoods,CHERWELL DC,,,,211168208,2100248725,,Right to Build Vanguards - Cherwell DC,OX15 4AA,"90,000.00",Yes
277,Communities & Local Government,DCLG,04/12/2014,Current Grants to Non Profit Bodies,Neighbourhoods,OLDHAM MBC,,,,213015574,2100248729,,Right to Build Vanguards - Oldham City Council,OL1 1UH,"15,000.00",Yes
278,Communities & Local Government,DCLG,04/12/2014,Current Grants to Non Profit Bodies,Neighbourhoods,PENDLE BC,,,,,2100248731,,Right to Build Vanguards - Pendle Borough Council,BB9 0LX,"46,000.00",Yes
279,Communities & Local Government,DCLG,04/12/2014,Current Grants to Non Profit Bodies,Neighbourhoods,SHEFFIELD CITY COUNCIL,,Large,,210659905,2100248732,,Right to Build Vanguards - Sheffield City Council,S1 2HH,"99,585.00",Yes
280,Communities & Local Government,DCLG,04/12/2014,Current Grants to Non Profit Bodies,Neighbourhoods,SHROPSHIRE UNITARY COUNCIL,,,,,2100248728,,Right to Build Vanguards - Shropshire Council,SY1 9DP,"10,200.00",Yes
281,Communities & Local Government,DCLG,04/12/2014,Current Grants to Non Profit Bodies,Neighbourhoods,SOUTH CAMBRIDGESHIRE DC,,Public Bodies,,236369484,2100248726,,Right to Build Vanguards - South Cambridgeshire DC,CB23 6EA,"50,000.00",Yes
282,Communities & Local Government,DCLG,04/12/2014,Current Grants to Non Profit Bodies,Neighbourhoods,SOUTH NORFOLK DC,,Large,,232605717,2100248733,,Right to Build Vanguards - South Norfolk Council,NR15 2XE,"25,000.00",Yes
283,Communities & Local Government,DCLG,04/12/2014,Current Grants to Non Profit Bodies,Neighbourhoods,STOKE ON TRENT CITY COUNCIL,,,,232789425,2100248734,,Right to Build Vanguards - Stoke on Trent Council,ST4 1RF,"79,500.00",Yes
284,Communities & Local Government,DCLG,04/12/2014,Current Grants to Non Profit Bodies,Neighbourhoods,TEIGNBRIDGE DC,,,,236440475,2100248727,,Right to Build Vanguards - Teignbridge DC,TQ12 4XX,"100,000.00",Yes
285,Communities & Local Government,DCLG,04/12/2014,Current Grants to Non Profit Bodies,Neighbourhoods,WEST LINDSEY DC,,Public Bodies,,227471026,2100248730,,Right to Build Vanguards - West Lindsey DC,DN21 2NA,"5,000.00",Yes
286,Communities & Local Government,DCLG,04/12/2014,Electricity,Finance & Corporate Services,EDF ENERGY 1 LIMITED,,Large,,230840469,5106208556,Energy,EoE Waterbeach Electricity 2013-14 0%VAT,PL3 5XQ,3.01,
287,Communities & Local Government,DCLG,04/12/2014,Electricity,Finance & Corporate Services,EDF ENERGY 1 LIMITED,,Large,,230840469,5106208556,Energy,EoE Waterbeach Electricity 2014-15,PL3 5XQ,"3,698.08",
288,Communities & Local Government,DCLG,04/12/2014,IT - Service Contracts,Finance & Corporate Services,FUJITSU SERVICES LTD,,Large,,423375062,5106208689,IT Managed / Outsourced Services,CNFJDCLG017 Y1 Horizon Service Charges,WA3 9BD,"6,444.06",
289,Communities & Local Government,DCLG,04/12/2014,IT - Service Contracts,Finance & Corporate Services,VODAFONE LTD FORMELY CABLE  & WIREL,,Large,,239869688,5106208706,IT Managed / Outsourced Services,Management Charges 2012-2014,MK3 5JP,"90,812.32",
290,Communities & Local Government,DCLG,04/12/2014,Management Consultancy,Neighbourhoods,DTZ DEBENHAM TIE LEUNG,,Large,,215585409,5106208684,Consultancy,EZ   Humber SLA DTZ (3)14,B4 6AJ,"6,362.40",
291,Communities & Local Government,DCLG,04/12/2014,Management Consultancy,Neighbourhoods,DTZ DEBENHAM TIE LEUNG,,Large,,215585409,5106208684,Consultancy,EZ   Sheffield SLA DTZ (2)14,B4 6AJ,"5,121.60",
292,Communities & Local Government,DCLG,04/12/2014,Management Consultancy,Neighbourhoods,DTZ DEBENHAM TIE LEUNG,,Large,,215585409,5106208684,Consultancy,EZ - Tees SLA DTZ (4)14,B4 6AJ,"3,578.40",
293,Communities & Local Government,DCLG,04/12/2014,Professional services,Finance & Corporate Services,GVA GRIMLEY LTD,,Large,,210158990,5106208593,Business Support,Senior Surveyor - Estates Sup - Com 125,B1 2JB,"3,060.00",
294,Communities & Local Government,DCLG,04/12/2014,Professional services,Finance & Corporate Services,GVA GRIMLEY LTD,,Large,,210158990,5106208594,Business Support,Senior Surveyor Estate Support - Com 132,B1 2JB,"5,400.00",
295,Communities & Local Government,DCLG,04/12/2014,Professional services,Finance & Corporate Services,GVA GRIMLEY LTD,,Large,,210158990,5106208597,Business Support,Senior Surveyor - Estates Sup - Com 125,B1 2JB,"3,825.00",
296,Communities & Local Government,DCLG,04/12/2014,Professional services,Finance & Corporate Services,GVA GRIMLEY LTD,,Large,,210158990,5106208600,Business Support,Senior Surveyor Estate Support - Com 132,B1 2JB,"6,075.00",
297,Communities & Local Government,DCLG,04/12/2014,Professional services,Neighbourhoods,MR R S MILNE,,,,,2100248839,Environmental Services,PAYMENT OF INVOICE DATED 27 NOVEMBER 2014,,"1,133.00",
298,Communities & Local Government,DCLG,04/12/2014,Professional services,Neighbourhoods,MS E M COCHRANE,,,,,2100248838,Environmental Services,PAYMENT OF INVOICE DATED 27 NOVEMBER 2014,,"1,359.60",
299,Communities & Local Government,DCLG,04/12/2014,Recruitment,Finance & Corporate Services,HM REVENUE & CUSTOMS,,Public Bodies,,365117972,5106208673,Business Process Outsourcing Services,Fast Stream funding model,BN12 4XH,"157,947.13",
300,Communities & Local Government,DCLG,04/12/2014,Research,Finance & Corporate Services,VALUATION OFFICE AGENCY,,Public Bodies,,215253886,5106208707,Research,Research - Land Valuation Data,W1B 5BU,"93,000.00",
301,Communities & Local Government,DCLG,04/12/2014,Travel and Subsistence Account,"Strategy, Communications and Private Office",DIAL A CAB,,Medium,,225338235,2100248841,Business Travel,Travel November 2014,N1 6AH,100.84,
302,Communities & Local Government,DCLG,04/12/2014,Travel and Subsistence Account,"Strategy, Communications and Private Office",DIAL A CAB,,Medium,,225338235,2100248841,Business Travel,Travel November 2014,N1 6AH,189.19,
303,Communities & Local Government,DCLG,04/12/2014,Travel and Subsistence Account,"Strategy, Communications and Private Office",DIAL A CAB,,Medium,,225338235,2100248841,Business Travel,Travel November 2014,N1 6AH,22.93,
304,Communities & Local Government,DCLG,04/12/2014,Vehicle Maintenance,Localism,BABCOCK CRITICAL SERVICES LTD,,Large,,215597451,5106208644,Fleet Management,Planned Vehicle Maintenance 14/15,NG15 0DR,"551,329.19",
305,Communities & Local Government,DCLG,04/12/2014,Vehicle Maintenance,Localism,BABCOCK CRITICAL SERVICES LTD,,Large,,215597451,5106208685,Fleet Management,Unplanned Vehicle Maintenance 14/15,NG15 0DR,808.36,
306,Communities & Local Government,DCLG,04/12/2014,Water,Finance & Corporate Services,SEVERN TRENT WATER LTD,,Large,,234404465,5106208686,Operation of Water Supplies and Distribution,Paradise Circus 22 May to 24 Dec 14,CV3 9FJ,"1,434.62",
307,Communities & Local Government,DCLG,04/12/2014,Work In Progress Pre-Cert 40373 Spend,Neighbourhoods,ASTON UNIVERSITY,,Large,,,7600011032,,Revenue Grant To Be Paid,B4 7ET,"13,863.62",Yes
308,Communities & Local Government,DCLG,04/12/2014,Work In Progress Pre-Cert 40373 Spend,Neighbourhoods,ASTON UNIVERSITY,,Large,,,7600011051,,Revenue Grant To Be Paid,B4 7ET,"20,745.17",Yes
309,Communities & Local Government,DCLG,04/12/2014,Work In Progress Pre-Cert 40373 Spend,Neighbourhoods,ASTON UNIVERSITY,,Large,,,7600011055,,Revenue Grant Clawback Offset,B4 7ET,"-2,068.99",Yes
310,Communities & Local Government,DCLG,04/12/2014,Work In Progress Pre-Cert 40373 Spend,Neighbourhoods,ASTON UNIVERSITY,,Large,,,7600011055,,Revenue Grant To Be Paid,B4 7ET,"7,061.39",Yes
311,Communities & Local Government,DCLG,04/12/2014,Work In Progress Pre-Cert 40373 Spend,Neighbourhoods,BARNSLEY METROPOLITAN BC,,Public Bodies,,,7600011057,,Revenue Grant To Be Paid,S70 9OO,"72,620.59",Yes
312,Communities & Local Government,DCLG,04/12/2014,Work In Progress Pre-Cert 40373 Spend,Neighbourhoods,BASSETLAW DISTRICT COUNCIL,,Large,,,7600011050,,Revenue Grant To Be Paid,S81 2AH,"12,553.24",Yes
313,Communities & Local Government,DCLG,04/12/2014,Work In Progress Pre-Cert 40373 Spend,Neighbourhoods,BIRMINGHAM CITY COUNCIL (NOT RATES),,Large,,,7600011036,,Revenue Grant To Be Paid,B1 1BB,"351,574.58",Yes
314,Communities & Local Government,DCLG,04/12/2014,Work In Progress Pre-Cert 40373 Spend,Neighbourhoods,BIRMINGHAM CITY COUNCIL (NOT RATES),,Large,,,7600011040,,Revenue Grant To Be Paid,B1 1BB,"776,432.95",Yes
315,Communities & Local Government,DCLG,04/12/2014,Work In Progress Pre-Cert 40373 Spend,Neighbourhoods,BIRMINGHAM CITY COUNCIL (NOT RATES),,Large,,,7600011047,,Revenue Grant To Be Paid,B1 1BB,"211,241.16",Yes
316,Communities & Local Government,DCLG,04/12/2014,Work In Progress Pre-Cert 40373 Spend,Neighbourhoods,CALDERDALE METROPOLITAN BOROUGH COU,,Large,,,7600011054,,Revenue Grant Clawback Offset,HX1 1UN,"-1,552.99",Yes
317,Communities & Local Government,DCLG,04/12/2014,Work In Progress Pre-Cert 40373 Spend,Neighbourhoods,CALDERDALE METROPOLITAN BOROUGH COU,,Large,,,7600011054,,Revenue Grant To Be Paid,HX1 1UN,"114,862.53",Yes
318,Communities & Local Government,DCLG,04/12/2014,Work In Progress Pre-Cert 40373 Spend,Neighbourhoods,CENTRAL BEDFORDSHIRE COUNCIL,,Public Bodies,,,7600011035,,Revenue Grant To Be Paid,SG17 5TQ,"23,626.53",Yes
319,Communities & Local Government,DCLG,04/12/2014,Work In Progress Pre-Cert 40373 Spend,Neighbourhoods,CENTRAL BEDFORDSHIRE COUNCIL,,Public Bodies,,,7600011052,,Revenue Grant To Be Paid,SG17 5TQ,"3,183.13",Yes
320,Communities & Local Government,DCLG,04/12/2014,Work In Progress Pre-Cert 40373 Spend,Neighbourhoods,COMMUNITY ACTION DERBY,,,,,7600011043,,Revenue Grant To Be Paid,DE1 2GT,"7,368.51",Yes
321,Communities & Local Government,DCLG,04/12/2014,Work In Progress Pre-Cert 40373 Spend,Neighbourhoods,CORNWALL COUNCIL,,,,,7600011034,,Revenue Grant Clawback Offset,TR1 3AY,"-3,061.44",Yes
322,Communities & Local Government,DCLG,04/12/2014,Work In Progress Pre-Cert 40373 Spend,Neighbourhoods,CORNWALL COUNCIL,,,,,7600011034,,Revenue Grant To Be Paid,TR1 3AY,"5,805.09",Yes
323,Communities & Local Government,DCLG,04/12/2014,Work In Progress Pre-Cert 40373 Spend,Neighbourhoods,COVENTRY CITY COUNCIL,,Large,,,7600011049,,Revenue Grant To Be Paid,CV1 5RR,"2,572.99",Yes
324,Communities & Local Government,DCLG,04/12/2014,Work In Progress Pre-Cert 40373 Spend,Neighbourhoods,DUDLEY METROPOLITAN BC,,Public Bodies,,,7600011045,,Revenue Grant To Be Paid,DY8 2AA,"10,397.89",Yes
325,Communities & Local Government,DCLG,04/12/2014,Work In Progress Pre-Cert 40373 Spend,Neighbourhoods,EAST ANGLIA UNIVERSITY,,,,,7600011056,,Revenue Grant To Be Paid,NR4 7TJ,"5,305.12",Yes
326,Communities & Local Government,DCLG,04/12/2014,Work In Progress Pre-Cert 40373 Spend,Neighbourhoods,EDEN PROJECT CAMPAIGNS LTD,,,,,7600011041,,Revenue Grant Clawback Offset,PL24 2SG,-569.97,Yes
327,Communities & Local Government,DCLG,04/12/2014,Work In Progress Pre-Cert 40373 Spend,Neighbourhoods,EDEN PROJECT CAMPAIGNS LTD,,,,,7600011041,,Revenue Grant To Be Paid,PL24 2SG,"39,027.44",Yes
328,Communities & Local Government,DCLG,04/12/2014,Work In Progress Pre-Cert 40373 Spend,Neighbourhoods,HEBDEN BRIDGE COMMUNITY ASSOC LTD,,Micro,,,7600011037,,Revenue Grant To Be Paid,HX7 7BY,"23,111.83",Yes
329,Communities & Local Government,DCLG,04/12/2014,Work In Progress Pre-Cert 40373 Spend,Neighbourhoods,LEICESTER CITY COUNCIL,,Large,,,7600011048,,Revenue Grant To Be Paid,LE1 6ZG,"80,117.52",Yes
330,Communities & Local Government,DCLG,04/12/2014,Work In Progress Pre-Cert 40373 Spend,Neighbourhoods,LEICESTER CITY COUNCIL,,Large,,,7600011059,,Revenue Grant To Be Paid,LE1 6ZG,"2,685.80",Yes
331,Communities & Local Government,DCLG,04/12/2014,Work In Progress Pre-Cert 40373 Spend,Neighbourhoods,NORTH EAST FINANCE (HOLDCO),,,,,7600011046,,Revenue Grant To Be Paid,NE1 4AD,"174,209.72",Yes
332,Communities & Local Government,DCLG,04/12/2014,Work In Progress Pre-Cert 40373 Spend,Neighbourhoods,NOTTINGHAM CITY COUNCIL,,Large,,,7600011062,,Revenue Grant To Be Paid,NG2 3NG,"12,878.08",Yes
333,Communities & Local Government,DCLG,04/12/2014,Work In Progress Pre-Cert 40373 Spend,Neighbourhoods,NOTTINGHAM UNIVERSITY,,Large,,,7600011060,,Revenue Grant To Be Paid,NG7 2RD,"13,796.43",Yes
334,Communities & Local Government,DCLG,04/12/2014,Work In Progress Pre-Cert 40373 Spend,Neighbourhoods,NOTTINGHAMSHIRE COUNTY COUNCIL,,Large,,,7600011063,,Revenue Grant To Be Paid,NG2 7QP,"5,500.00",Yes
335,Communities & Local Government,DCLG,04/12/2014,Work In Progress Pre-Cert 40373 Spend,Neighbourhoods,UNIVERSITY OF BRADFORD,,,,,7600011038,,Revenue Grant To Be Paid,BD7 1DP,"11,338.92",Yes
336,Communities & Local Government,DCLG,04/12/2014,Work In Progress Pre-Cert 40373 Spend,Neighbourhoods,UNIVERSITY OF BRADFORD,,,,,7600011039,,Revenue Grant To Be Paid,BD7 1DP,"57,071.90",Yes
337,Communities & Local Government,DCLG,04/12/2014,Work In Progress Pre-Cert 40373 Spend,Neighbourhoods,YORKSHIRE UNIVERSITIES,,Micro,,,7600011061,,Revenue Grant To Be Paid,LS2 9JY,"34,888.71",Yes
338,Communities & Local Government,DCLG,04/12/2014,Work In Progress Pre-Cert 40373 Spend,Neighbourhoods,YTKO LIMITED,,,,,7600011033,,Revenue Grant To Be Paid,CB4 2QH,"51,213.46",Yes
339,Communities & Local Government,DCLG,04/12/2014,Work In Progress Pre-Cert 40467 Spend,Neighbourhoods,BALANUS ASSETS LTD,,Micro,,,7600011044,,Capital Grant To Be Paid,NR20 5LG,"376,382.21",Yes
340,Communities & Local Government,DCLG,04/12/2014,Work In Progress Pre-Cert 40467 Spend,Neighbourhoods,COVENTRY CITY COUNCIL,,Large,,,7600011049,,Capital Grant To Be Paid,CV1 5RR,"4,831.66",Yes
341,Communities & Local Government,DCLG,04/12/2014,Work In Progress Pre-Cert 40467 Spend,Neighbourhoods,DUDLEY METROPOLITAN BC,,Public Bodies,,,7600011045,,Capital Grant Clawback Offset,DY8 2AA,"-76,691.76",Yes
342,Communities & Local Government,DCLG,04/12/2014,Work In Progress Pre-Cert 40467 Spend,Neighbourhoods,DUDLEY METROPOLITAN BC,,Public Bodies,,,7600011045,,Capital Grant To Be Paid,DY8 2AA,"392,220.00",Yes
343,Communities & Local Government,DCLG,04/12/2014,Work In Progress Pre-Cert 40467 Spend,Neighbourhoods,EAST ANGLIA UNIVERSITY,,,,,7600011056,,Capital Grant To Be Paid,NR4 7TJ,"427,984.94",Yes
344,Communities & Local Government,DCLG,04/12/2014,Work In Progress Pre-Cert 40467 Spend,Neighbourhoods,HEBDEN BRIDGE COMMUNITY ASSOC LTD,,Micro,,,7600011037,,Capital Grant To Be Paid,HX7 7BY,"96,007.11",Yes
345,Communities & Local Government,DCLG,04/12/2014,Work In Progress Pre-Cert 40467 Spend,Neighbourhoods,HORNCASTLE GROUP PLC,,Medium,,,7600011042,,Capital Grant To Be Paid,HU15 2AT,"282,377.62",Yes
346,Communities & Local Government,DCLG,04/12/2014,Work In Progress Pre-Cert 40467 Spend,Neighbourhoods,LEICESTER CITY COUNCIL,,Large,,,7600011048,,Capital Grant To Be Paid,LE1 6ZG,"66,337.07",Yes
347,Communities & Local Government,DCLG,04/12/2014,Work In Progress Pre-Cert 40467 Spend,Neighbourhoods,LEICESTER CITY COUNCIL,,Large,,,7600011059,,Capital Grant To Be Paid,LE1 6ZG,"2,487.21",Yes
348,Communities & Local Government,DCLG,04/12/2014,Work In Progress Pre-Cert 40467 Spend,Neighbourhoods,MARSHALL CONSTRUCTION (WEST YORKS),,Large,,,7600011058,,Capital Grant To Be Paid,HX5 9BW,"88,729.80",Yes
349,Communities & Local Government,DCLG,04/12/2014,Work In Progress Pre-Cert 40467 Spend,Neighbourhoods,NOTTINGHAM CITY COUNCIL,,Large,,,7600011062,,Capital Grant To Be Paid,NG2 3NG,"12,967.27",Yes
350,Communities & Local Government,DCLG,04/12/2014,Work In Progress Pre-Cert 40467 Spend,Neighbourhoods,NOTTINGHAMSHIRE COUNTY COUNCIL,,Large,,,7600011063,,Capital Grant To Be Paid,NG2 7QP,"50,517.85",Yes
351,Communities & Local Government,DCLG,04/12/2014,Work In Progress Pre-Cert 40467 Spend,Neighbourhoods,SOUTH YORKS PASSENGER TRANS EXEC,,,,,7600011053,,Capital Grant To Be Paid,S1 2BQ,"500,346.12",Yes
352,Communities & Local Government,DCLG,05/12/2014,Advertising,"Strategy, Communications and Private Office",TULLO MARSHALL WARREN LTD,,Medium,,,5106208675,Advertising,Right to Buy Marketing Contract,W1F 9NB,"2,850.00",
353,Communities & Local Government,DCLG,05/12/2014,Advertising,"Strategy, Communications and Private Office",TULLO MARSHALL WARREN LTD,,Medium,,,5106208676,Advertising,Right to Buy Marketing Contract,W1F 9NB,"3,040.00",
354,Communities & Local Government,DCLG,05/12/2014,Agency Staff,Finance & Corporate Services,CAPITA BUS. SERV. LTD (CON LAB),,Large,,,5106208724,Contingent Labour,Interim Manager,DL1 9HB,"9,007.92",
355,Communities & Local Government,DCLG,05/12/2014,Agency Staff,Localism,CAPITA BUS. SERV. LTD (CON LAB),,Large,,,5106208714,Contingent Labour,Interim Manager,DL1 9HB,"5,119.87",
356,Communities & Local Government,DCLG,05/12/2014,Agency Staff,Localism,CAPITA BUS. SERV. LTD (CON LAB),,Large,,,5106208715,Contingent Labour,Interim and Specialist Contractor,DL1 9HB,"2,528.75",
357,Communities & Local Government,DCLG,05/12/2014,Agency Staff,Localism,CAPITA BUS. SERV. LTD (CON LAB),,Large,,,5106208716,Contingent Labour,Interim and Specialist Contractor,DL1 9HB,"15,231.74",
358,Communities & Local Government,DCLG,05/12/2014,Agency Staff,Neighbourhoods,CAPITA BUS. SERV. LTD (CON LAB),,Large,,,5106208708,Contingent Labour,Interim and Specialist Contractor,DL1 9HB,"4,527.84",
359,Communities & Local Government,DCLG,05/12/2014,Agency Staff,Neighbourhoods,CAPITA BUS. SERV. LTD (CON LAB),,Large,,,5106208713,Contingent Labour,Interim and Specialist Contractor,DL1 9HB,"4,527.84",
360,Communities & Local Government,DCLG,05/12/2014,Agency Staff,Neighbourhoods,CAPITA BUS. SERV. LTD (CON LAB),,Large,,,5106208718,Contingent Labour,Interim and Specialist Contractor,DL1 9HB,"6,654.84",
361,Communities & Local Government,DCLG,05/12/2014,Agency Staff,Neighbourhoods,CAPITA BUS. SERV. LTD (CON LAB),,Large,,,5106208719,Contingent Labour,ERDF: Quality Assurance Officer,DL1 9HB,"3,558.72",
362,Communities & Local Government,DCLG,05/12/2014,Agency Staff,Neighbourhoods,REED EMPLOYMENT SERVICES,,Large,,292193364,5106208722,Contingent Labour,Extension 6 months,SW20 0BA,571.76,
363,Communities & Local Government,DCLG,05/12/2014,Agency Staff,Neighbourhoods,CAPITA BUS. SERV. LTD (CON LAB),,Large,,,5106208711,Contingent Labour,Interim Manager,DL1 9HB,"10,393.19",
364,Communities & Local Government,DCLG,05/12/2014,Cap Grants to Local Authorities (DEL),Neighbourhoods,ARUN DISTRICT COUNCIL,,,,,2100248787,,Coastal Communities Fund - Arun,BN17 6SL,"340,498.00",Yes
365,Communities & Local Government,DCLG,05/12/2014,Cap Grants to Local Authorities (DEL),Neighbourhoods,THANET DC,,Public Bodies,,,2100248788,,Coastal Communities Fund - Thanet DC,CT8 1XZ,"81,790.00",Yes
366,Communities & Local Government,DCLG,05/12/2014,Current (non AEF) Grants to Local Authorities,Finance & Corporate Services,DURHAM & DARLINGTON FIRE RESCUE SER,,Public Bodies,,211684266,2100242016,,Regional Centre Centre Grant,DH1 1TW,"150,320.92",Yes
367,Communities & Local Government,DCLG,05/12/2014,Current (non AEF) Grants to Local Authorities,Finance & Corporate Services,GREATER LONDON AUTHORITY,,Large,,225353416,2100242003,,Regional Centre Centre Grant,SE10 1AP,"142,073.92",Yes
368,Communities & Local Government,DCLG,05/12/2014,Current (non AEF) Grants to Local Authorities,Finance & Corporate Services,GREATER MANCHESTER FIRE & RESCUE,,Public Bodies,,424873172,2100241990,,Regional Centre Centre Grant,M27 8US,"105,122.25",Yes
369,Communities & Local Government,DCLG,05/12/2014,Current (non AEF) Grants to Local Authorities,Neighbourhoods,ARUN DISTRICT COUNCIL,,,,,2100248785,,Coastal Communities Fund - Arun,BN17 6SL,"232,650.00",Yes
370,Communities & Local Government,DCLG,05/12/2014,Current (non AEF) Grants to Local Authorities,Neighbourhoods,CUMBRIA COUNTY COUNCIL,,Public Bodies,,211316542,2100248782,,Rent Officer Services and Pensions Liability,CA3 8NA,"4,041.47",Yes
371,Communities & Local Government,DCLG,05/12/2014,Current (non AEF) Grants to Local Authorities,Neighbourhoods,LONDON BOROUGH OF BRENT,,,,225383090,2100248784,,Rent Officer Services and Pensions Liability,HA9 9HD,"7,346.89",Yes
372,Communities & Local Government,DCLG,05/12/2014,Current (non AEF) Grants to Local Authorities,Neighbourhoods,WEST SUSSEX CC,,Public Bodies,,210659954,2100248783,,Rent Officer Services and Pensions Liability,DL98 1AD,986.92,Yes
373,Communities & Local Government,DCLG,05/12/2014,Grant in Aid to NDPBs (non budget),Finance & Corporate Services,COMMISSION LOCAL ADMINISTRATION,,,,215271508,2100248778,,Commission for Local Admin in England DCLG DEL,SW1P 4QP,"1,028,000.00",Yes
374,Communities & Local Government,DCLG,05/12/2014,Grant in Aid to NDPBs (non budget),Finance & Corporate Services,VALUATION TRIBUNAL SERVICE,,,,211218366,2100248843,,GIA to VTS - For Non Dom Rates Appeals,E1 8EU,"457,113.00",Yes
375,Communities & Local Government,DCLG,05/12/2014,IT - Service Contracts,Finance & Corporate Services,FUJITSU SERVICES LTD,,Large,,423375062,5106208606,IT Managed / Outsourced Services,"FY14/15 Desktop Charges ""D""Table Charges",WA3 9BD,"1,543.81",
376,Communities & Local Government,DCLG,05/12/2014,IT - Service Contracts,Finance & Corporate Services,FUJITSU SERVICES LTD,,Large,,423375062,5106208609,IT Managed / Outsourced Services,"FY14/15 Desktop Charges ""D""Table Charges",WA3 9BD,"6,450.48",
377,Communities & Local Government,DCLG,05/12/2014,IT - Service Contracts,Finance & Corporate Services,FUJITSU SERVICES LTD,,Large,,423375062,5106208612,IT Managed / Outsourced Services,"FY14/15 Storage Charges (""S""TableCharge)",WA3 9BD,"12,422.17",
378,Communities & Local Government,DCLG,05/12/2014,IT - Service Contracts,Finance & Corporate Services,FUJITSU SERVICES LTD,,Large,,423375062,5106208614,IT Managed / Outsourced Services,"SIAM Charges (""M""Table Charges)",WA3 9BD,"32,985.28",
379,Communities & Local Government,DCLG,05/12/2014,IT - Service Contracts,Finance & Corporate Services,FUJITSU SERVICES LTD,,Large,,423375062,5106208616,IT Managed / Outsourced Services,"FY14/15 Desktop Charges ""D""Table Charges",WA3 9BD,"43,657.15",
380,Communities & Local Government,DCLG,05/12/2014,IT - Service Contracts,Finance & Corporate Services,FUJITSU SERVICES LTD,,Large,,423375062,5106208618,IT Managed / Outsourced Services,"FY14/15WAN Management Charges(""W""Tables)",WA3 9BD,"2,188.77",
381,Communities & Local Government,DCLG,05/12/2014,IT - Service Contracts,Finance & Corporate Services,FUJITSU SERVICES LTD,,Large,,423375062,5106208621,IT Managed / Outsourced Services,"FY14/15 DRP Charges ""DRP1Table Charges",WA3 9BD,"11,882.89",
382,Communities & Local Government,DCLG,05/12/2014,IT - Service Contracts,Finance & Corporate Services,FUJITSU SERVICES LTD,,Large,,423375062,5106208697,IT Managed / Outsourced Services,"FY14/15 Desktop Charges ""D""Table Charges",WA3 9BD,"141,834.42",
383,Communities & Local Government,DCLG,05/12/2014,IT - Service Contracts,Finance & Corporate Services,FUJITSU SERVICES LTD,,Large,,423375062,5106208699,IT Managed / Outsourced Services,"FY14/15 Desktop Charges ""D""Table Charges",WA3 9BD,804.83,
384,Communities & Local Government,DCLG,05/12/2014,IT - Service Contracts,Finance & Corporate Services,FUJITSU SERVICES LTD,,Large,,423375062,5106208700,IT Managed / Outsourced Services,"FY14/15 Desktop Charges ""D""Table Charges",WA3 9BD,258.43,
385,Communities & Local Government,DCLG,05/12/2014,IT - Service Contracts,Finance & Corporate Services,FUJITSU SERVICES LTD,,Large,,423375062,5106208702,IT Managed / Outsourced Services,"FY14/15 Desktop Charges ""D""Table Charges",WA3 9BD,"2,437.93",
386,Communities & Local Government,DCLG,05/12/2014,IT - Service Contracts,Neighbourhoods,APTO SOLUTIONS LTD,,Small,,739026040,5106208709,IT Managed / Outsourced Services,Planning Portal 1 APP forms contract,BS8 3BA,"3,153.33",
387,Communities & Local Government,DCLG,05/12/2014,IT - Service Contracts,Neighbourhoods,APTO SOLUTIONS LTD,,Small,,739026040,5106208721,IT Managed / Outsourced Services,Support Services CRM Tool  2014/15,BS8 3BA,"1,813.33",
388,Communities & Local Government,DCLG,05/12/2014,Printing,"Strategy, Communications and Private Office",STATIONERY OFFICE LTD,,Large,,779375633,5106208729,Printing Services,Statutory Instruments Print: Non-Vatable,NR3 1PD,165.00,
389,Communities & Local Government,DCLG,05/12/2014,Printing,"Strategy, Communications and Private Office",STATIONERY OFFICE LTD,,Large,,779375633,5106208729,Printing Services,Statutory Instruments Print: Vatable,NR3 1PD,130.00,
390,Communities & Local Government,DCLG,05/12/2014,Printing,"Strategy, Communications and Private Office",WILLIAMS LEA LIMITED,,Large,,393456413,5106208725,Printing Services,Year 3 Print services,NR3 1PD,"3,370.92",
391,Communities & Local Government,DCLG,05/12/2014,Professional services,Localism,VALUATION OFFICE AGENCY,,Public Bodies,,215253886,2100248842,Environmental Services,December work on NNDR and council tax,W1B 5BU,"12,083,334.00",
392,Communities & Local Government,DCLG,05/12/2014,Training,Neighbourhoods,GOVERNMENT KNOWLEDGE EVENTS LTD,,Small,,,5106208677,Development and Training,High streets event - 25/2/15,WC2N 5BW,225.00,
393,Communities & Local Government,DCLG,05/12/2014,Work In Progress Pre-Cert 40373 Spend,Neighbourhoods,ARKWRIGHT SOCIETY LTD,,Small,,,7600011106,,Revenue Grant To Be Paid,DE4 3RQ,"1,242.41",Yes
394,Communities & Local Government,DCLG,05/12/2014,Work In Progress Pre-Cert 40373 Spend,Neighbourhoods,ARKWRIGHT SOCIETY LTD,,Small,,,7600011131,,Revenue Grant Clawback Offset,DE4 3RQ,-242.64,Yes
395,Communities & Local Government,DCLG,05/12/2014,Work In Progress Pre-Cert 40373 Spend,Neighbourhoods,ARKWRIGHT SOCIETY LTD,,Small,,,7600011131,,Revenue Grant To Be Paid,DE4 3RQ,"1,766.69",Yes
396,Communities & Local Government,DCLG,05/12/2014,Work In Progress Pre-Cert 40373 Spend,Neighbourhoods,BIORENEWABLES DEVELOPMENT CENTRE LT,,,,,7600011108,,Revenue Grant To Be Paid,YO10 5NY,"44,940.00",Yes
397,Communities & Local Government,DCLG,05/12/2014,Work In Progress Pre-Cert 40373 Spend,Neighbourhoods,BIRMINGHAM CITY UNIVERSITY,,Medium,,,7600011107,,Revenue Grant To Be Paid,B42 2SU,"8,536.90",Yes
398,Communities & Local Government,DCLG,05/12/2014,Work In Progress Pre-Cert 40373 Spend,Neighbourhoods,BRADFORD  MDC,,,,,7600011112,,Revenue Grant To Be Paid,BD1 1HY,"3,429.25",Yes
399,Communities & Local Government,DCLG,05/12/2014,Work In Progress Pre-Cert 40373 Spend,Neighbourhoods,BRADFORD  MDC,,,,,7600011121,,Revenue Grant Clawback Offset,BD1 1HY,-23.81,Yes
400,Communities & Local Government,DCLG,05/12/2014,Work In Progress Pre-Cert 40373 Spend,Neighbourhoods,BRADFORD  MDC,,,,,7600011121,,Revenue Grant To Be Paid,BD1 1HY,"59,541.94",Yes
401,Communities & Local Government,DCLG,05/12/2014,Work In Progress Pre-Cert 40373 Spend,Neighbourhoods,BRADFORD ENTERPRISE AGENCY LIMITED,,Micro,,,7600011116,,Revenue Grant To Be Paid,BD1 0AH,"24,986.18",Yes
402,Communities & Local Government,DCLG,05/12/2014,Work In Progress Pre-Cert 40373 Spend,Neighbourhoods,BRADFORD ENTERPRISE AGENCY LIMITED,,Micro,,,7600011117,,Revenue Grant To Be Paid,BD1 0AH,"18,914.47",Yes
403,Communities & Local Government,DCLG,05/12/2014,Work In Progress Pre-Cert 40373 Spend,Neighbourhoods,BROADWAY,,,,,7600011114,,Revenue Grant To Be Paid,N61 3AL,"15,156.97",Yes
404,Communities & Local Government,DCLG,05/12/2014,Work In Progress Pre-Cert 40373 Spend,Neighbourhoods,CALDERDALE METROPOLITAN BOROUGH COU,,Large,,,7600011084,,Revenue Grant To Be Paid,HX1 1UN,"57,662.03",Yes
405,Communities & Local Government,DCLG,05/12/2014,Work In Progress Pre-Cert 40373 Spend,Neighbourhoods,CHESTER & DISTRICT HOUSING TRUST,,,,,7600011065,,Revenue Grant To Be Paid,CH1 2HQ,"1,934.96",Yes
406,Communities & Local Government,DCLG,05/12/2014,Work In Progress Pre-Cert 40373 Spend,Neighbourhoods,CHESTER & DISTRICT HOUSING TRUST,,,,,7600011066,,Revenue Grant To Be Paid,CH1 2HQ,"4,102.38",Yes
407,Communities & Local Government,DCLG,05/12/2014,Work In Progress Pre-Cert 40373 Spend,Neighbourhoods,CITY COLLEGE BRIGHTON AND HOVE,,Large,,,7600011113,,Revenue Grant To Be Paid,BN1 4FA,"4,707.73",Yes
408,Communities & Local Government,DCLG,05/12/2014,Work In Progress Pre-Cert 40373 Spend,Neighbourhoods,CITY COLLEGE BRIGHTON AND HOVE,,Large,,,7600011115,,Revenue Grant To Be Paid,BN1 4FA,"4,921.48",Yes
409,Communities & Local Government,DCLG,05/12/2014,Work In Progress Pre-Cert 40373 Spend,Neighbourhoods,COVENTRY UNIVERSITY ENTERPRISES LTD,,Medium,,,7600011082,,Revenue Grant To Be Paid,CV1 2TT,"4,198.88",Yes
410,Communities & Local Government,DCLG,05/12/2014,Work In Progress Pre-Cert 40373 Spend,Neighbourhoods,COVENTRY UNIVERSITY ENTERPRISES LTD,,Medium,,,7600011090,,Revenue Grant To Be Paid,CV1 2TT,"7,935.61",Yes
411,Communities & Local Government,DCLG,05/12/2014,Work In Progress Pre-Cert 40373 Spend,Neighbourhoods,COVENTRY UNIVERSITY ENTERPRISES LTD,,Medium,,,7600011098,,Revenue Grant To Be Paid,CV1 2TT,"21,169.23",Yes
412,Communities & Local Government,DCLG,05/12/2014,Work In Progress Pre-Cert 40373 Spend,Neighbourhoods,COVENTRY UNIVERSITY ENTERPRISES LTD,,Medium,,,7600011109,,Revenue Grant To Be Paid,CV1 2TT,"8,985.43",Yes
413,Communities & Local Government,DCLG,05/12/2014,Work In Progress Pre-Cert 40373 Spend,Neighbourhoods,COVENTRY UNIVERSITY ENTERPRISES LTD,,Medium,,,7600011118,,Revenue Grant To Be Paid,CV1 2TT,"17,935.88",Yes
414,Communities & Local Government,DCLG,05/12/2014,Work In Progress Pre-Cert 40373 Spend,Neighbourhoods,DERBY CITY COUNCIL,,Large,,,7600011086,,Revenue Grant To Be Paid,DE1 2FE,"13,825.46",Yes
415,Communities & Local Government,DCLG,05/12/2014,Work In Progress Pre-Cert 40373 Spend,Neighbourhoods,EAST ANGLIA UNIVERSITY,,,,,7600011123,,Revenue Grant To Be Paid,NR4 7TJ,"32,511.16",Yes
416,Communities & Local Government,DCLG,05/12/2014,Work In Progress Pre-Cert 40373 Spend,Neighbourhoods,ENTERPRISE LOANS EAST MIDLANDS,,Small,,,7600011068,,Revenue Grant To Be Paid,NG7 5FU,"10,288.00",Yes
417,Communities & Local Government,DCLG,05/12/2014,Work In Progress Pre-Cert 40373 Spend,Neighbourhoods,GRIMSBY INSTITUTE OF F&H EDUCATION,,Large,,,7600011127,,Revenue Grant To Be Paid,DN34 5BQ,"52,830.50",Yes
418,Communities & Local Government,DCLG,05/12/2014,Work In Progress Pre-Cert 40373 Spend,Neighbourhoods,LANCASHIRE COUNTY COUNCIL,,Large,,,7600011099,,Revenue Grant To Be Paid,PR1 0LD,"505,939.12",Yes
419,Communities & Local Government,DCLG,05/12/2014,Work In Progress Pre-Cert 40373 Spend,Neighbourhoods,LEICESTERSHIRE COUNTY COUNCIL,,Small,,,7600011135,,Revenue Grant To Be Paid,LE13 0UL,"4,440.03",Yes
420,Communities & Local Government,DCLG,05/12/2014,Work In Progress Pre-Cert 40373 Spend,Neighbourhoods,LEICESTERSHIRE COUNTY COUNCIL,,Small,,,7600011136,,Revenue Grant Clawback Offset,LE13 0UL,-475.56,Yes
421,Communities & Local Government,DCLG,05/12/2014,Work In Progress Pre-Cert 40373 Spend,Neighbourhoods,LEICESTERSHIRE COUNTY COUNCIL,,Small,,,7600011136,,Revenue Grant To Be Paid,LE13 0UL,"10,532.39",Yes
422,Communities & Local Government,DCLG,05/12/2014,Work In Progress Pre-Cert 40373 Spend,Neighbourhoods,LIVERPOOL CITY COUNCIL,,,,,7600011091,,Revenue Grant To Be Paid,L2 2DH,"15,946.21",Yes
423,Communities & Local Government,DCLG,05/12/2014,Work In Progress Pre-Cert 40373 Spend,Neighbourhoods,LIVERPOOL CITY COUNCIL,,,,,7600011092,,Revenue Grant To Be Paid,L2 2DH,"432,970.75",Yes
424,Communities & Local Government,DCLG,05/12/2014,Work In Progress Pre-Cert 40373 Spend,Neighbourhoods,LIVERPOOL UNIVERSITY,,,,,7600011079,,Revenue Grant To Be Paid,L69 7ZX,"1,284.38",Yes
425,Communities & Local Government,DCLG,05/12/2014,Work In Progress Pre-Cert 40373 Spend,Neighbourhoods,LIVERPOOL UNIVERSITY,,,,,7600011080,,Revenue Grant To Be Paid,L69 7ZX,"4,114.74",Yes
426,Communities & Local Government,DCLG,05/12/2014,Work In Progress Pre-Cert 40373 Spend,Neighbourhoods,LIVERPOOL UNIVERSITY,,,,,7600011081,,Revenue Grant To Be Paid,L69 7ZX,"4,171.08",Yes
427,Communities & Local Government,DCLG,05/12/2014,Work In Progress Pre-Cert 40373 Spend,Neighbourhoods,LIVERPOOL UNIVERSITY,,,,,7600011104,,Revenue Grant To Be Paid,L69 7ZX,"1,399.75",Yes
428,Communities & Local Government,DCLG,05/12/2014,Work In Progress Pre-Cert 40373 Spend,Neighbourhoods,NOTTINGHAM TRENT UNIVERSITY,,Large,,,7600011102,,Revenue Grant To Be Paid,NG1 4FZ,"161,937.27",Yes
429,Communities & Local Government,DCLG,05/12/2014,Work In Progress Pre-Cert 40373 Spend,Neighbourhoods,OXFORDSHIRE COUNTY COUNCIL,,Large,,,7600011125,,Revenue Grant To Be Paid,OX1 1ND,"4,716.34",Yes
430,Communities & Local Government,DCLG,05/12/2014,Work In Progress Pre-Cert 40373 Spend,Neighbourhoods,RENEWAL TRUST,,Small,,,7600011096,,Revenue Grant To Be Paid,NG3 2DG,"8,624.02",Yes
431,Communities & Local Government,DCLG,05/12/2014,Work In Progress Pre-Cert 40373 Spend,Neighbourhoods,SALFORD CITY COUNCIL,,,,,7600011071,,Revenue Grant Clawback Offset,M27 5FJ,"-4,599.44",Yes
432,Communities & Local Government,DCLG,05/12/2014,Work In Progress Pre-Cert 40373 Spend,Neighbourhoods,SALFORD CITY COUNCIL,,,,,7600011071,,Revenue Grant To Be Paid,M27 5FJ,"270,641.80",Yes
433,Communities & Local Government,DCLG,05/12/2014,Work In Progress Pre-Cert 40373 Spend,Neighbourhoods,SEFTON MBC,,Large,,,7600011100,,Revenue Grant To Be Paid,L20 3EF,"8,134.21",Yes
434,Communities & Local Government,DCLG,05/12/2014,Work In Progress Pre-Cert 40373 Spend,Neighbourhoods,SHROPSHIRE COUNCIL,,Public Bodies,,,7600011078,,Revenue Grant To Be Paid,SY2 6ND,"9,393.85",Yes
435,Communities & Local Government,DCLG,05/12/2014,Work In Progress Pre-Cert 40373 Spend,Neighbourhoods,SHROPSHIRE COUNCIL,,Public Bodies,,,7600011130,,Revenue Grant To Be Paid,SY2 6ND,"6,239.46",Yes
436,Communities & Local Government,DCLG,05/12/2014,Work In Progress Pre-Cert 40373 Spend,Neighbourhoods,SKILLS FOR ENTERPRISE LTD,,Small,,,7600011133,,Revenue Grant To Be Paid,LE1 1QA,"1,094.73",Yes
437,Communities & Local Government,DCLG,05/12/2014,Work In Progress Pre-Cert 40373 Spend,Neighbourhoods,SOLIHULL METROPOLITAN BC,,Large,,,7600011069,,Revenue Grant To Be Paid,B91 3QS,"5,482.31",Yes
438,Communities & Local Government,DCLG,05/12/2014,Work In Progress Pre-Cert 40373 Spend,Neighbourhoods,SOLIHULL METROPOLITAN BC,,Large,,,7600011089,,Revenue Grant To Be Paid,B91 3QS,"14,959.67",Yes
439,Communities & Local Government,DCLG,05/12/2014,Work In Progress Pre-Cert 40373 Spend,Neighbourhoods,STAFFORDSHIRE COUNTY COUNCIL,,,,,7600011075,,Revenue Grant To Be Paid,ST16 2DH,"28,035.13",Yes
440,Communities & Local Government,DCLG,05/12/2014,Work In Progress Pre-Cert 40373 Spend,Neighbourhoods,STAFFORDSHIRE COUNTY COUNCIL,,,,,7600011110,,Revenue Grant To Be Paid,ST16 2DH,"35,733.95",Yes
441,Communities & Local Government,DCLG,05/12/2014,Work In Progress Pre-Cert 40373 Spend,Neighbourhoods,STAVELEY TOWN COUNCIL,,Small,,,7600011074,,Revenue Grant To Be Paid,S43 3TN,"1,275.00",Yes
442,Communities & Local Government,DCLG,05/12/2014,Work In Progress Pre-Cert 40373 Spend,Neighbourhoods,STH EAST CENTRE FOR BUILT ENVIRON,,Micro,,,7600011073,,Revenue Grant To Be Paid,RG2 6GP,"85,599.55",Yes
443,Communities & Local Government,DCLG,05/12/2014,Work In Progress Pre-Cert 40373 Spend,Neighbourhoods,STH EAST CENTRE FOR BUILT ENVIRON,,Micro,,,7600011097,,Revenue Grant To Be Paid,RG2 6GP,"14,276.06",Yes
444,Communities & Local Government,DCLG,05/12/2014,Work In Progress Pre-Cert 40373 Spend,Neighbourhoods,UNIVERSITY OF BIRMINGHAM,,Large,,,7600011105,,Revenue Grant To Be Paid,B15 2TT,"183,407.34",Yes
445,Communities & Local Government,DCLG,05/12/2014,Work In Progress Pre-Cert 40373 Spend,Neighbourhoods,UNIVERSITY OF BIRMINGHAM,,Large,,,7600011126,,Revenue Grant To Be Paid,B15 2TT,"10,235.25",Yes
446,Communities & Local Government,DCLG,05/12/2014,Work In Progress Pre-Cert 40373 Spend,Neighbourhoods,UNIVERSITY OF SHEFFIELD,,,,,7600011093,,Revenue Grant To Be Paid,S60 5TZ,"76,900.39",Yes
447,Communities & Local Government,DCLG,05/12/2014,Work In Progress Pre-Cert 40373 Spend,Neighbourhoods,UNIVERSITY OF SHEFFIELD,,,,,7600011095,,Revenue Grant To Be Paid,S60 5TZ,"26,674.66",Yes
448,Communities & Local Government,DCLG,05/12/2014,Work In Progress Pre-Cert 40373 Spend,Neighbourhoods,UNIVERSITY OF WOLVERHAMPTON,,Large,,,7600011077,,Revenue Grant To Be Paid,WV1 1SB,"16,359.95",Yes
449,Communities & Local Government,DCLG,05/12/2014,Work In Progress Pre-Cert 40373 Spend,Neighbourhoods,WALSALL METROPOLITAN BC,,Large,,,7600011083,,Revenue Grant To Be Paid,WS1 1TW,"1,221.00",Yes
450,Communities & Local Government,DCLG,05/12/2014,Work In Progress Pre-Cert 40373 Spend,Neighbourhoods,WALSALL METROPOLITAN BC,,Large,,,7600011085,,Revenue Grant To Be Paid,WS1 1TW,"4,383.32",Yes
451,Communities & Local Government,DCLG,05/12/2014,Work In Progress Pre-Cert 40373 Spend,Neighbourhoods,WEST MIDS MANUFACTURING CONSORTIUM,,Small,,,7600011087,,Revenue Grant To Be Paid,WV10 9TG,"63,551.52",Yes
452,Communities & Local Government,DCLG,05/12/2014,Work In Progress Pre-Cert 40373 Spend,Neighbourhoods,WOLVERHAMPTON CITY COUNCIL,,Large,,,7600011076,,Revenue Grant To Be Paid,WV1 1RL,"35,684.27",Yes
453,Communities & Local Government,DCLG,05/12/2014,Work In Progress Pre-Cert 40373 Spend,Neighbourhoods,WOLVERHAMPTON CITY COUNCIL,,Large,,,7600011111,,Revenue Grant To Be Paid,WV1 1RL,"7,131.90",Yes
454,Communities & Local Government,DCLG,05/12/2014,Work In Progress Pre-Cert 40373 Spend,Neighbourhoods,WORCESTERSHIRE COUNTY COUNCIL,,Public Bodies,,,7600011067,,Revenue Grant To Be Paid,WR5 2NP,"1,045.47",Yes
455,Communities & Local Government,DCLG,05/12/2014,Work In Progress Pre-Cert 40373 Spend,Neighbourhoods,WORCESTERSHIRE COUNTY COUNCIL,,Public Bodies,,,7600011122,,Revenue Grant To Be Paid,WR5 2NP,"2,149.23",Yes
456,Communities & Local Government,DCLG,05/12/2014,Work In Progress Pre-Cert 40373 Spend,Neighbourhoods,WORCESTERSHIRE COUNTY COUNCIL,,Public Bodies,,,7600011124,,Revenue Grant To Be Paid,WR5 2NP,465.32,Yes
457,Communities & Local Government,DCLG,05/12/2014,Work In Progress Pre-Cert 40373 Spend,Neighbourhoods,WORCESTERSHIRE COUNTY COUNCIL,,Public Bodies,,,7600011128,,Revenue Grant To Be Paid,WR5 2NP,"4,007.46",Yes
458,Communities & Local Government,DCLG,05/12/2014,Work In Progress Pre-Cert 40467 Spend,Neighbourhoods,ARKWRIGHT SOCIETY LTD,,Small,,,7600011106,,Capital Grant To Be Paid,DE4 3RQ,"47,459.85",Yes
459,Communities & Local Government,DCLG,05/12/2014,Work In Progress Pre-Cert 40467 Spend,Neighbourhoods,ARKWRIGHT SOCIETY LTD,,Small,,,7600011131,,Capital Grant Clawback Offset,DE4 3RQ,"-14,568.45",Yes
460,Communities & Local Government,DCLG,05/12/2014,Work In Progress Pre-Cert 40467 Spend,Neighbourhoods,ARKWRIGHT SOCIETY LTD,,Small,,,7600011131,,Capital Grant To Be Paid,DE4 3RQ,"106,487.79",Yes
461,Communities & Local Government,DCLG,05/12/2014,Work In Progress Pre-Cert 40467 Spend,Neighbourhoods,BIORENEWABLES DEVELOPMENT CENTRE LT,,,,,7600011108,,Capital Grant To Be Paid,YO10 5NY,"1,989,363.30",Yes
462,Communities & Local Government,DCLG,05/12/2014,Work In Progress Pre-Cert 40467 Spend,Neighbourhoods,BRADFORD  MDC,,,,,7600011094,,Capital Grant To Be Paid,BD1 1HY,"25,476.70",Yes
463,Communities & Local Government,DCLG,05/12/2014,Work In Progress Pre-Cert 40467 Spend,Neighbourhoods,BRADFORD  MDC,,,,,7600011112,,Capital Grant To Be Paid,BD1 1HY,"13,894.93",Yes
464,Communities & Local Government,DCLG,05/12/2014,Work In Progress Pre-Cert 40467 Spend,Neighbourhoods,BROADWAY,,,,,7600011114,,Capital Grant To Be Paid,N61 3AL,"54,235.63",Yes
465,Communities & Local Government,DCLG,05/12/2014,Work In Progress Pre-Cert 40467 Spend,Neighbourhoods,CHESTER & DISTRICT HOUSING TRUST,,,,,7600011065,,Capital Grant To Be Paid,CH1 2HQ,"28,858.77",Yes
466,Communities & Local Government,DCLG,05/12/2014,Work In Progress Pre-Cert 40467 Spend,Neighbourhoods,CHESTER & DISTRICT HOUSING TRUST,,,,,7600011066,,Capital Grant To Be Paid,CH1 2HQ,"182,164.17",Yes
467,Communities & Local Government,DCLG,05/12/2014,Work In Progress Pre-Cert 40467 Spend,Neighbourhoods,CHESTERFIELD COLLEGE,,Large,,,7600011134,,Capital Grant To Be Paid,S41 7NG,"329,924.33",Yes
468,Communities & Local Government,DCLG,05/12/2014,Work In Progress Pre-Cert 40467 Spend,Neighbourhoods,COVENTRY UNIVERSITY ENTERPRISES LTD,,Medium,,,7600011082,,Capital Grant To Be Paid,CV1 2TT,"11,000.00",Yes
469,Communities & Local Government,DCLG,05/12/2014,Work In Progress Pre-Cert 40467 Spend,Neighbourhoods,GRIMSBY INSTITUTE OF F&H EDUCATION,,Large,,,7600011127,,Capital Grant To Be Paid,DN34 5BQ,"105,595.39",Yes
470,Communities & Local Government,DCLG,05/12/2014,Work In Progress Pre-Cert 40467 Spend,Neighbourhoods,HEREFORDSHIRE COUNCIL,,,,,7600011120,,Capital Grant To Be Paid,HR1 0LE,"13,043.86",Yes
471,Communities & Local Government,DCLG,05/12/2014,Work In Progress Pre-Cert 40467 Spend,Neighbourhoods,HORNCASTLE GROUP PLC,,Medium,,,7600011119,,Capital Grant To Be Paid,HU15 2AT,"174,065.51",Yes
472,Communities & Local Government,DCLG,05/12/2014,Work In Progress Pre-Cert 40467 Spend,Neighbourhoods,LANCASHIRE COUNTY COUNCIL,,Large,,,7600011070,,Capital Grant To Be Paid,PR1 0LD,"234,297.20",Yes
473,Communities & Local Government,DCLG,05/12/2014,Work In Progress Pre-Cert 40467 Spend,Neighbourhoods,LANCASHIRE COUNTY COUNCIL,,Large,,,7600011088,,Capital Grant To Be Paid,PR1 0LD,"16,355.51",Yes
474,Communities & Local Government,DCLG,05/12/2014,Work In Progress Pre-Cert 40467 Spend,Neighbourhoods,LIVERPOOL UNIVERSITY,,,,,7600011079,,Capital Grant To Be Paid,L69 7ZX,"446,554.71",Yes
475,Communities & Local Government,DCLG,05/12/2014,Work In Progress Pre-Cert 40467 Spend,Neighbourhoods,LIVERPOOL UNIVERSITY,,,,,7600011080,,Capital Grant To Be Paid,L69 7ZX,"667,295.48",Yes
476,Communities & Local Government,DCLG,05/12/2014,Work In Progress Pre-Cert 40467 Spend,Neighbourhoods,LIVERPOOL UNIVERSITY,,,,,7600011081,,Capital Grant To Be Paid,L69 7ZX,"1,127,924.38",Yes
477,Communities & Local Government,DCLG,05/12/2014,Work In Progress Pre-Cert 40467 Spend,Neighbourhoods,LIVERPOOL UNIVERSITY,,,,,7600011104,,Capital Grant To Be Paid,L69 7ZX,"429,023.98",Yes
478,Communities & Local Government,DCLG,05/12/2014,Work In Progress Pre-Cert 40467 Spend,Neighbourhoods,MANCHESTER UNIVERSITY,,Large,,,7600011101,,Capital Grant To Be Paid,M13 9PL,"1,266,592.50",Yes
479,Communities & Local Government,DCLG,05/12/2014,Work In Progress Pre-Cert 40467 Spend,Neighbourhoods,NATIONAL MUSEUMS  OF LIVERPOOL,,Large,,,7600011064,,Capital Grant Clawback Offset,L2 2JH,"-24,908.02",Yes
480,Communities & Local Government,DCLG,05/12/2014,Work In Progress Pre-Cert 40467 Spend,Neighbourhoods,NATIONAL MUSEUMS  OF LIVERPOOL,,Large,,,7600011064,,Capital Grant To Be Paid,L2 2JH,"328,410.42",Yes
481,Communities & Local Government,DCLG,05/12/2014,Work In Progress Pre-Cert 40467 Spend,Neighbourhoods,ROTHERHAM METROPOLITAN BC,,,,,7600011129,,Capital Grant To Be Paid,S65 1DJ,"318,746.59",Yes
482,Communities & Local Government,DCLG,05/12/2014,Work In Progress Pre-Cert 40467 Spend,Neighbourhoods,SALFORD CITY COUNCIL,,,,,7600011071,,Capital Grant Clawback Offset,M27 5FJ,"-4,060.74",Yes
483,Communities & Local Government,DCLG,05/12/2014,Work In Progress Pre-Cert 40467 Spend,Neighbourhoods,SEFTON MBC,,Large,,,7600011100,,Capital Grant To Be Paid,L20 3EF,"1,022,549.99",Yes
484,Communities & Local Government,DCLG,05/12/2014,Work In Progress Pre-Cert 40467 Spend,Neighbourhoods,SOLIHULL METROPOLITAN BC,,Large,,,7600011069,,Capital Grant Clawback Offset,B91 3QS,"-5,031.61",Yes
485,Communities & Local Government,DCLG,05/12/2014,Work In Progress Pre-Cert 40467 Spend,Neighbourhoods,STAVELEY TOWN COUNCIL,,Small,,,7600011074,,Capital Grant To Be Paid,S43 3TN,"3,134.77",Yes
486,Communities & Local Government,DCLG,05/12/2014,Work In Progress Pre-Cert 40467 Spend,Neighbourhoods,TRANSPORT FOR GREATER MANCHESTER,,,,,7600011103,,Capital Grant To Be Paid,M1 3BG,"1,863,369.00",Yes
487,Communities & Local Government,DCLG,05/12/2014,Work In Progress Pre-Cert 40467 Spend,Neighbourhoods,UNIVERSITY OF SHEFFIELD,,,,,7600011095,,Capital Grant To Be Paid,S60 5TZ,"25,081.83",Yes
488,Communities & Local Government,DCLG,05/12/2014,Work In Progress Pre-Cert 40467 Spend,Neighbourhoods,WORCESTERSHIRE COUNTY COUNCIL,,Public Bodies,,,7600011067,,Capital Grant To Be Paid,WR5 2NP,577.50,Yes
489,Communities & Local Government,DCLG,05/12/2014,Work In Progress Pre-Cert 40467 Spend,Neighbourhoods,WORCESTERSHIRE COUNTY COUNCIL,,Public Bodies,,,7600011072,,Capital Grant To Be Paid,WR5 2NP,"3,900.00",Yes
490,Communities & Local Government,DCLG,05/12/2014,Work In Progress Pre-Cert 40467 Spend,Neighbourhoods,WORCESTERSHIRE COUNTY COUNCIL,,Public Bodies,,,7600011122,,Capital Grant To Be Paid,WR5 2NP,"82,500.00",Yes
491,Communities & Local Government,DCLG,05/12/2014,Work In Progress Pre-Cert 40467 Spend,Neighbourhoods,WORCESTERSHIRE COUNTY COUNCIL,,Public Bodies,,,7600011128,,Capital Grant To Be Paid,WR5 2NP,"32,500.00",Yes
492,Communities & Local Government,DCLG,05/12/2014,Work In Progress Pre-Cert 40467 Spend,Neighbourhoods,WYKELAND PROPERTIES LTD,,,,,7600011132,,Capital Grant To Be Paid,HU1 1UU,"4,515.65",Yes
493,Communities & Local Government,DCLG,08/12/2014,Accommodation - actuals,Finance & Corporate Services,REDFERN TRAVEL LIMITED,,Small,,213089972,2100248886,Business Travel Accommodation,Consolidated Monthly Travel November Hotels,BD1 3AZ,"1,251.03",
494,Communities & Local Government,DCLG,08/12/2014,Accommodation - actuals,Finance & Corporate Services,REDFERN TRAVEL LIMITED,,Small,,213089972,2100248886,Business Travel Accommodation,Consolidated Monthly Travel November Hotels,BD1 3AZ,785.35,
495,Communities & Local Government,DCLG,08/12/2014,Accommodation - actuals,Finance & Corporate Services,REDFERN TRAVEL LIMITED,,Small,,213089972,2100248886,Business Travel Accommodation,Consolidated Monthly Travel November Hotels,BD1 3AZ,-275.51,
496,Communities & Local Government,DCLG,08/12/2014,Accommodation - actuals,Finance & Corporate Services,REDFERN TRAVEL LIMITED,,Small,,213089972,2100248886,Business Travel Accommodation,Consolidated Monthly Travel November Hotels,BD1 3AZ,284.00,
497,Communities & Local Government,DCLG,08/12/2014,Accommodation - actuals,Localism,REDFERN TRAVEL LIMITED,,Small,,213089972,2100248886,Business Travel Accommodation,Consolidated Monthly Travel November Hotels,BD1 3AZ,685.00,
498,Communities & Local Government,DCLG,08/12/2014,Accommodation - actuals,Localism,REDFERN TRAVEL LIMITED,,Small,,213089972,2100248886,Business Travel Accommodation,Consolidated Monthly Travel November Hotels,BD1 3AZ,"1,393.45",
499,Communities & Local Government,DCLG,08/12/2014,Accommodation - actuals,Localism,REDFERN TRAVEL LIMITED,,Small,,213089972,2100248886,Business Travel Accommodation,Consolidated Monthly Travel November Hotels,BD1 3AZ,451.00,
500,Communities & Local Government,DCLG,08/12/2014,Accommodation - actuals,Localism,REDFERN TRAVEL LIMITED,,Small,,213089972,2100248886,Business Travel Accommodation,Consolidated Monthly Travel November Hotels,BD1 3AZ,"2,906.30",
501,Communities & Local Government,DCLG,08/12/2014,Accommodation - actuals,Localism,REDFERN TRAVEL LIMITED,,Small,,213089972,2100248886,Business Travel Accommodation,Consolidated Monthly Travel November Hotels,BD1 3AZ,387.40,
502,Communities & Local Government,DCLG,08/12/2014,Accommodation - actuals,Localism,REDFERN TRAVEL LIMITED,,Small,,213089972,2100248886,Business Travel Accommodation,Consolidated Monthly Travel November Hotels,BD1 3AZ,"1,027.80",
503,Communities & Local Government,DCLG,08/12/2014,Accommodation - actuals,Neighbourhoods,REDFERN TRAVEL LIMITED,,Small,,213089972,2100248886,Business Travel Accommodation,Consolidated Monthly Travel November Hotels,BD1 3AZ,413.30,
504,Communities & Local Government,DCLG,08/12/2014,Accommodation - actuals,Neighbourhoods,REDFERN TRAVEL LIMITED,,Small,,213089972,2100248886,Business Travel Accommodation,Consolidated Monthly Travel November Hotels,BD1 3AZ,"4,069.16",
505,Communities & Local Government,DCLG,08/12/2014,Accommodation - actuals,Neighbourhoods,REDFERN TRAVEL LIMITED,,Small,,213089972,2100248886,Business Travel Accommodation,Consolidated Monthly Travel November Hotels,BD1 3AZ,497.45,
506,Communities & Local Government,DCLG,08/12/2014,Accommodation - actuals,Neighbourhoods,REDFERN TRAVEL LIMITED,,Small,,213089972,2100248886,Business Travel Accommodation,Consolidated Monthly Travel November Hotels,BD1 3AZ,280.00,
507,Communities & Local Government,DCLG,08/12/2014,Accommodation - actuals,Neighbourhoods,REDFERN TRAVEL LIMITED,,Small,,213089972,2100248886,Business Travel Accommodation,Consolidated Monthly Travel November Hotels,BD1 3AZ,486.99,
508,Communities & Local Government,DCLG,08/12/2014,Accommodation - actuals,Neighbourhoods,REDFERN TRAVEL LIMITED,,Small,,213089972,2100248886,Business Travel Accommodation,Consolidated Monthly Travel November Hotels,BD1 3AZ,539.87,
509,Communities & Local Government,DCLG,08/12/2014,Accommodation - actuals,Neighbourhoods,REDFERN TRAVEL LIMITED,,Small,,213089972,2100248886,Business Travel Accommodation,Consolidated Monthly Travel November Hotels,BD1 3AZ,292.15,
510,Communities & Local Government,DCLG,08/12/2014,Accommodation - actuals,"Strategy, Communications and Private Office",REDFERN TRAVEL LIMITED,,Small,,213089972,2100248886,Business Travel Accommodation,Consolidated Monthly Travel November Hotels,BD1 3AZ,582.60,
511,Communities & Local Government,DCLG,08/12/2014,Accommodation - actuals,Troubled Families,REDFERN TRAVEL LIMITED,,Small,,213089972,2100248886,Business Travel Accommodation,Consolidated Monthly Travel November Hotels,BD1 3AZ,929.90,
512,Communities & Local Government,DCLG,08/12/2014,Accommodation - actuals,Localism,REDFERN TRAVEL LIMITED,,Small,,213089972,2100248886,Business Travel Accommodation,Consolidated Monthly Travel November Hotels,BD1 3AZ,"5,179.00",
513,Communities & Local Government,DCLG,08/12/2014,Accommodation - actuals,Neighbourhoods,REDFERN TRAVEL LIMITED,,Small,,213089972,2100248886,Business Travel Accommodation,Consolidated Monthly Travel November Hotels,BD1 3AZ,907.05,
514,Communities & Local Government,DCLG,08/12/2014,Air Travel,Finance & Corporate Services,REDFERN TRAVEL LIMITED,,Small,,213089972,2100248886,Air,Consolidated Monthly Travel November Air Tickets,BD1 3AZ,309.74,
515,Communities & Local Government,DCLG,08/12/2014,Air Travel,Neighbourhoods,REDFERN TRAVEL LIMITED,,Small,,213089972,2100248886,Air,Consolidated Monthly Travel November Air Tickets,BD1 3AZ,"-4,201.30",
516,Communities & Local Government,DCLG,08/12/2014,Air Travel,Neighbourhoods,REDFERN TRAVEL LIMITED,,Small,,213089972,2100248886,Air,Consolidated Monthly Travel November Air Tickets,BD1 3AZ,416.68,
517,Communities & Local Government,DCLG,08/12/2014,Air Travel,Neighbourhoods,REDFERN TRAVEL LIMITED,,Small,,213089972,2100248886,Air,Consolidated Monthly Travel November Air Tickets,BD1 3AZ,528.96,
518,Communities & Local Government,DCLG,08/12/2014,Air Travel,Neighbourhoods,REDFERN TRAVEL LIMITED,,Small,,213089972,2100248886,Air,Consolidated Monthly Travel November Air Tickets,BD1 3AZ,717.00,
519,Communities & Local Government,DCLG,08/12/2014,Air Travel,Neighbourhoods,REDFERN TRAVEL LIMITED,,Small,,213089972,2100248886,Air,Consolidated Monthly Travel November Air Tickets,BD1 3AZ,712.60,
520,Communities & Local Government,DCLG,08/12/2014,Air Travel,Neighbourhoods,REDFERN TRAVEL LIMITED,,Small,,213089972,2100248886,Air,Consolidated Monthly Travel November Air Tickets,BD1 3AZ,672.65,
521,Communities & Local Government,DCLG,08/12/2014,Air Travel,"Strategy, Communications and Private Office",REDFERN TRAVEL LIMITED,,Small,,213089972,2100248886,Air,Consolidated Monthly Travel November Air Tickets,BD1 3AZ,"2,021.64",
522,Communities & Local Government,DCLG,08/12/2014,Air Travel,"Strategy, Communications and Private Office",REDFERN TRAVEL LIMITED,,Small,,213089972,2100248886,Air,Consolidated Monthly Travel November Air Tickets,BD1 3AZ,"1,476.36",
523,Communities & Local Government,DCLG,08/12/2014,Air Travel,"Strategy, Communications and Private Office",REDFERN TRAVEL LIMITED,,Small,,213089972,2100248886,Air,Consolidated Monthly Travel November Air Tickets,BD1 3AZ,295.16,
524,Communities & Local Government,DCLG,08/12/2014,Air Travel,"Strategy, Communications and Private Office",REDFERN TRAVEL LIMITED,,Small,,213089972,2100248886,Air,Consolidated Monthly Travel November Air Tickets,BD1 3AZ,"3,129.60",
525,Communities & Local Government,DCLG,08/12/2014,Conferences and Meeting Facilities,Localism,M U ENTERPRISES LTD,,Small,,569582521,5106208760,Business Travel Accommodation,Public Service Transformation Network working seminar,SW1P 3RB,258.00,
526,Communities & Local Government,DCLG,08/12/2014,Electricity,Finance & Corporate Services,EDF ENERGY 1 LIMITED,,Large,,230840469,5106208553,Energy,EoE Waterbeach Electricity 2013-14 0%VAT,PL3 5XQ,-3.01,
527,Communities & Local Government,DCLG,08/12/2014,Electricity,Finance & Corporate Services,EDF ENERGY 1 LIMITED,,Large,,230840469,5106208553,Energy,EoE Waterbeach Electricity 2014-15,PL3 5XQ,"-3,822.34",
528,Communities & Local Government,DCLG,08/12/2014,Electricity,Finance & Corporate Services,EDF ENERGY 1 LIMITED,,Large,,230840469,5106208753,Energy,SW Taunton Electricity 2014-15,PL3 5XQ,"2,685.70",
529,Communities & Local Government,DCLG,08/12/2014,Electronic Data Storage,Finance & Corporate Services,TNT UK LIMITED,,Large,,,5106208759,Warehousing and Storage,Visions electronic storage,BL10 9GR,"4,049.69",
530,Communities & Local Government,DCLG,08/12/2014,Facilities Management (ISD use only),Finance & Corporate Services,GVA GRIMLEY LTD,,Large,,210158990,5106208671,Property Occupation,Property & Treasury Management fee MOTOs,B1 2JB,"1,440.00",
531,Communities & Local Government,DCLG,08/12/2014,Legal Fees,Finance & Corporate Services,DAVITT JONES BOULD LTD,,Medium,,,5106208736,Legal,Legal Advice,TA1 4EB,338.89,
532,Communities & Local Government,DCLG,08/12/2014,Legal Fees,Finance & Corporate Services,DAVITT JONES BOULD LTD,,Medium,,,5106208737,Legal,Legal Advice,TA1 4EB,591.79,
533,Communities & Local Government,DCLG,08/12/2014,Legal Fees,Finance & Corporate Services,DAVITT JONES BOULD LTD,,Medium,,,5106208738,Legal,Legal Advice,TA1 4EB,558.41,
534,Communities & Local Government,DCLG,08/12/2014,Legal Fees,Finance & Corporate Services,DAVITT JONES BOULD LTD,,Medium,,,5106208739,Legal,Legal Advice,TA1 4EB,"1,276.33",
535,Communities & Local Government,DCLG,08/12/2014,Legal Fees,Finance & Corporate Services,DAVITT JONES BOULD LTD,,Medium,,,5106208748,Legal,Legal Advice,TA1 4EB,305.05,
536,Communities & Local Government,DCLG,08/12/2014,Legal Fees,Finance & Corporate Services,SIMMONS & SIMMONS,,Large,,216616279,5106208754,Legal,Legal Advice,EC2Y 9SS,"1,200.00",
537,Communities & Local Government,DCLG,08/12/2014,Legal Fees,Finance & Corporate Services,TREASURY SOLICITOR,,Public Bodies,,215580680,2100248883,Legal,Legal Advice,WC2B 4TS,"14,200.00",
538,Communities & Local Government,DCLG,08/12/2014,Legal Fees,Finance & Corporate Services,TREASURY SOLICITORS DEPT,,Public Bodies,,215580680,5106208743,Legal,Legal Advice,WC2B 4TS,"1,392.44",
539,Communities & Local Government,DCLG,08/12/2014,Legal Fees,Finance & Corporate Services,TREASURY SOLICITORS DEPT,,Public Bodies,,215580680,5106208749,Legal,Legal Advice,WC2B 4TS,"119,151.91",
540,Communities & Local Government,DCLG,08/12/2014,Legal Fees,Finance & Corporate Services,TREASURY SOLICITORS DEPT,,Public Bodies,,215580680,5106208749,Legal,Legal Advice,WC2B 4TS,0.42,
541,Communities & Local Government,DCLG,08/12/2014,Mobile phone costs,Finance & Corporate Services,ORANGE (AIRTIME/LINE RENTAL),,Large,,210707540,2100248885,Telecoms,Quarterly consolodated phone costs Nov,S98 1DX,391.80,
542,Communities & Local Government,DCLG,08/12/2014,Office Supplies,Finance & Corporate Services,BANNER BUSINESS SUPPLIES LTD,,Large,,236638362,5106208740,Office Supplies,DELWEEKLY Banner A4 Recycled Copier Pape,NR3 1PD,254.16,
543,Communities & Local Government,DCLG,08/12/2014,"Rail, Underground and Eurostar",Finance & Corporate Services,REDFERN TRAVEL LIMITED,,Small,,213089972,2100248886,Rail,Consolidated Monthly Travel November Rail,BD1 3AZ,"1,758.64",
544,Communities & Local Government,DCLG,08/12/2014,"Rail, Underground and Eurostar",Finance & Corporate Services,REDFERN TRAVEL LIMITED,,Small,,213089972,2100248886,Rail,Consolidated Monthly Travel November Rail,BD1 3AZ,"3,178.59",
545,Communities & Local Government,DCLG,08/12/2014,"Rail, Underground and Eurostar",Finance & Corporate Services,REDFERN TRAVEL LIMITED,,Small,,213089972,2100248886,Rail,Consolidated Monthly Travel November Rail,BD1 3AZ,954.26,
546,Communities & Local Government,DCLG,08/12/2014,"Rail, Underground and Eurostar",Finance & Corporate Services,REDFERN TRAVEL LIMITED,,Small,,213089972,2100248886,Rail,Consolidated Monthly Travel November Rail,BD1 3AZ,501.06,
547,Communities & Local Government,DCLG,08/12/2014,"Rail, Underground and Eurostar",Finance & Corporate Services,REDFERN TRAVEL LIMITED,,Small,,213089972,2100248886,Rail,Consolidated Monthly Travel November Rail,BD1 3AZ,"2,278.95",
548,Communities & Local Government,DCLG,08/12/2014,"Rail, Underground and Eurostar",Finance & Corporate Services,REDFERN TRAVEL LIMITED,,Small,,213089972,2100248886,Rail,Consolidated Monthly Travel November Rail,BD1 3AZ,"6,324.68",
549,Communities & Local Government,DCLG,08/12/2014,"Rail, Underground and Eurostar",Finance & Corporate Services,REDFERN TRAVEL LIMITED,,Small,,213089972,2100248886,Rail,Consolidated Monthly Travel November Rail,BD1 3AZ,907.41,
550,Communities & Local Government,DCLG,08/12/2014,"Rail, Underground and Eurostar",Finance & Corporate Services,REDFERN TRAVEL LIMITED,,Small,,213089972,2100248886,Rail,Consolidated Monthly Travel November Rail,BD1 3AZ,828.02,
551,Communities & Local Government,DCLG,08/12/2014,"Rail, Underground and Eurostar",Finance & Corporate Services,REDFERN TRAVEL LIMITED,,Small,,213089972,2100248886,Rail,Consolidated Monthly Travel November Rail,BD1 3AZ,701.45,
552,Communities & Local Government,DCLG,08/12/2014,"Rail, Underground and Eurostar",Finance & Corporate Services,REDFERN TRAVEL LIMITED,,Small,,213089972,2100248886,Rail,Consolidated Monthly Travel November Rail,BD1 3AZ,355.41,
553,Communities & Local Government,DCLG,08/12/2014,"Rail, Underground and Eurostar",Finance & Corporate Services,REDFERN TRAVEL LIMITED,,Small,,213089972,2100248886,Rail,Consolidated Monthly Travel November Rail,BD1 3AZ,444.49,
554,Communities & Local Government,DCLG,08/12/2014,"Rail, Underground and Eurostar",Finance & Corporate Services,REDFERN TRAVEL LIMITED,,Small,,213089972,2100248886,Rail,Consolidated Monthly Travel November Rail,BD1 3AZ,323.70,
555,Communities & Local Government,DCLG,08/12/2014,"Rail, Underground and Eurostar",Finance & Corporate Services,REDFERN TRAVEL LIMITED,,Small,,213089972,2100248886,Rail,Consolidated Monthly Travel November Rail,BD1 3AZ,"1,267.83",
556,Communities & Local Government,DCLG,08/12/2014,"Rail, Underground and Eurostar",Finance & Corporate Services,REDFERN TRAVEL LIMITED,,Small,,213089972,2100248886,Rail,Consolidated Monthly Travel November Rail,BD1 3AZ,"2,080.53",
557,Communities & Local Government,DCLG,08/12/2014,"Rail, Underground and Eurostar",Finance & Corporate Services,REDFERN TRAVEL LIMITED,,Small,,213089972,2100248886,Rail,Consolidated Monthly Travel November Rail,BD1 3AZ,581.97,
558,Communities & Local Government,DCLG,08/12/2014,"Rail, Underground and Eurostar",Localism,REDFERN TRAVEL LIMITED,,Small,,213089972,2100248886,Rail,Consolidated Monthly Travel November Rail,BD1 3AZ,775.63,
559,Communities & Local Government,DCLG,08/12/2014,"Rail, Underground and Eurostar",Localism,REDFERN TRAVEL LIMITED,,Small,,213089972,2100248886,Rail,Consolidated Monthly Travel November Rail,BD1 3AZ,905.63,
560,Communities & Local Government,DCLG,08/12/2014,"Rail, Underground and Eurostar",Localism,REDFERN TRAVEL LIMITED,,Small,,213089972,2100248886,Rail,Consolidated Monthly Travel November Rail,BD1 3AZ,"1,651.44",
561,Communities & Local Government,DCLG,08/12/2014,"Rail, Underground and Eurostar",Localism,REDFERN TRAVEL LIMITED,,Small,,213089972,2100248886,Rail,Consolidated Monthly Travel November Rail,BD1 3AZ,520.46,
562,Communities & Local Government,DCLG,08/12/2014,"Rail, Underground and Eurostar",Localism,REDFERN TRAVEL LIMITED,,Small,,213089972,2100248886,Rail,Consolidated Monthly Travel November Rail,BD1 3AZ,420.45,
563,Communities & Local Government,DCLG,08/12/2014,"Rail, Underground and Eurostar",Localism,REDFERN TRAVEL LIMITED,,Small,,213089972,2100248886,Rail,Consolidated Monthly Travel November Rail,BD1 3AZ,"1,159.98",
564,Communities & Local Government,DCLG,08/12/2014,"Rail, Underground and Eurostar",Localism,REDFERN TRAVEL LIMITED,,Small,,213089972,2100248886,Rail,Consolidated Monthly Travel November Rail,BD1 3AZ,343.27,
565,Communities & Local Government,DCLG,08/12/2014,"Rail, Underground and Eurostar",Localism,REDFERN TRAVEL LIMITED,,Small,,213089972,2100248886,Rail,Consolidated Monthly Travel November Rail,BD1 3AZ,464.96,
566,Communities & Local Government,DCLG,08/12/2014,"Rail, Underground and Eurostar",Localism,REDFERN TRAVEL LIMITED,,Small,,213089972,2100248886,Rail,Consolidated Monthly Travel November Rail,BD1 3AZ,569.02,
567,Communities & Local Government,DCLG,08/12/2014,"Rail, Underground and Eurostar",Localism,REDFERN TRAVEL LIMITED,,Small,,213089972,2100248886,Rail,Consolidated Monthly Travel November Rail,BD1 3AZ,525.67,
568,Communities & Local Government,DCLG,08/12/2014,"Rail, Underground and Eurostar",Localism,REDFERN TRAVEL LIMITED,,Small,,213089972,2100248886,Rail,Consolidated Monthly Travel November Rail,BD1 3AZ,744.51,
569,Communities & Local Government,DCLG,08/12/2014,"Rail, Underground and Eurostar",Localism,REDFERN TRAVEL LIMITED,,Small,,213089972,2100248886,Rail,Consolidated Monthly Travel November Rail,BD1 3AZ,855.77,
570,Communities & Local Government,DCLG,08/12/2014,"Rail, Underground and Eurostar",Localism,REDFERN TRAVEL LIMITED,,Small,,213089972,2100248886,Rail,Consolidated Monthly Travel November Rail,BD1 3AZ,414.53,
571,Communities & Local Government,DCLG,08/12/2014,"Rail, Underground and Eurostar",Localism,REDFERN TRAVEL LIMITED,,Small,,213089972,2100248886,Rail,Consolidated Monthly Travel November Rail,BD1 3AZ,"1,743.78",
572,Communities & Local Government,DCLG,08/12/2014,"Rail, Underground and Eurostar",Localism,REDFERN TRAVEL LIMITED,,Small,,213089972,2100248886,Rail,Consolidated Monthly Travel November Rail,BD1 3AZ,"2,134.37",
573,Communities & Local Government,DCLG,08/12/2014,"Rail, Underground and Eurostar",Localism,REDFERN TRAVEL LIMITED,,Small,,213089972,2100248886,Rail,Consolidated Monthly Travel November Rail,BD1 3AZ,"1,615.30",
574,Communities & Local Government,DCLG,08/12/2014,"Rail, Underground and Eurostar",Localism,REDFERN TRAVEL LIMITED,,Small,,213089972,2100248886,Rail,Consolidated Monthly Travel November Rail,BD1 3AZ,"1,476.65",
575,Communities & Local Government,DCLG,08/12/2014,"Rail, Underground and Eurostar",Localism,REDFERN TRAVEL LIMITED,,Small,,213089972,2100248886,Rail,Consolidated Monthly Travel November Rail,BD1 3AZ,"1,598.05",
576,Communities & Local Government,DCLG,08/12/2014,"Rail, Underground and Eurostar",Localism,REDFERN TRAVEL LIMITED,,Small,,213089972,2100248886,Rail,Consolidated Monthly Travel November Rail,BD1 3AZ,686.46,
577,Communities & Local Government,DCLG,08/12/2014,"Rail, Underground and Eurostar",Localism,REDFERN TRAVEL LIMITED,,Small,,213089972,2100248886,Rail,Consolidated Monthly Travel November Rail,BD1 3AZ,611.25,
578,Communities & Local Government,DCLG,08/12/2014,"Rail, Underground and Eurostar",Localism,REDFERN TRAVEL LIMITED,,Small,,213089972,2100248886,Rail,Consolidated Monthly Travel November Rail,BD1 3AZ,589.71,
579,Communities & Local Government,DCLG,08/12/2014,"Rail, Underground and Eurostar",Localism,REDFERN TRAVEL LIMITED,,Small,,213089972,2100248886,Rail,Consolidated Monthly Travel November Rail,BD1 3AZ,773.49,
580,Communities & Local Government,DCLG,08/12/2014,"Rail, Underground and Eurostar",Localism,REDFERN TRAVEL LIMITED,,Small,,213089972,2100248886,Rail,Consolidated Monthly Travel November Rail,BD1 3AZ,"8,358.97",
581,Communities & Local Government,DCLG,08/12/2014,"Rail, Underground and Eurostar",Localism,REDFERN TRAVEL LIMITED,,Small,,213089972,2100248886,Rail,Consolidated Monthly Travel November Rail,BD1 3AZ,335.08,
582,Communities & Local Government,DCLG,08/12/2014,"Rail, Underground and Eurostar",Neighbourhoods,REDFERN TRAVEL LIMITED,,Small,,213089972,2100248886,Rail,Consolidated Monthly Travel November Rail,BD1 3AZ,493.60,
583,Communities & Local Government,DCLG,08/12/2014,"Rail, Underground and Eurostar",Neighbourhoods,REDFERN TRAVEL LIMITED,,Small,,213089972,2100248886,Rail,Consolidated Monthly Travel November Rail,BD1 3AZ,775.85,
584,Communities & Local Government,DCLG,08/12/2014,"Rail, Underground and Eurostar",Neighbourhoods,REDFERN TRAVEL LIMITED,,Small,,213089972,2100248886,Rail,Consolidated Monthly Travel November Rail,BD1 3AZ,296.62,
585,Communities & Local Government,DCLG,08/12/2014,"Rail, Underground and Eurostar",Neighbourhoods,REDFERN TRAVEL LIMITED,,Small,,213089972,2100248886,Rail,Consolidated Monthly Travel November Rail,BD1 3AZ,"1,470.55",
586,Communities & Local Government,DCLG,08/12/2014,"Rail, Underground and Eurostar",Neighbourhoods,REDFERN TRAVEL LIMITED,,Small,,213089972,2100248886,Rail,Consolidated Monthly Travel November Rail,BD1 3AZ,"3,645.73",
587,Communities & Local Government,DCLG,08/12/2014,"Rail, Underground and Eurostar",Neighbourhoods,REDFERN TRAVEL LIMITED,,Small,,213089972,2100248886,Rail,Consolidated Monthly Travel November Rail,BD1 3AZ,"4,988.50",
588,Communities & Local Government,DCLG,08/12/2014,"Rail, Underground and Eurostar",Neighbourhoods,REDFERN TRAVEL LIMITED,,Small,,213089972,2100248886,Rail,Consolidated Monthly Travel November Rail,BD1 3AZ,502.47,
589,Communities & Local Government,DCLG,08/12/2014,"Rail, Underground and Eurostar",Neighbourhoods,REDFERN TRAVEL LIMITED,,Small,,213089972,2100248886,Rail,Consolidated Monthly Travel November Rail,BD1 3AZ,472.68,
590,Communities & Local Government,DCLG,08/12/2014,"Rail, Underground and Eurostar",Neighbourhoods,REDFERN TRAVEL LIMITED,,Small,,213089972,2100248886,Rail,Consolidated Monthly Travel November Rail,BD1 3AZ,"1,306.61",
591,Communities & Local Government,DCLG,08/12/2014,"Rail, Underground and Eurostar",Neighbourhoods,REDFERN TRAVEL LIMITED,,Small,,213089972,2100248886,Rail,Consolidated Monthly Travel November Rail,BD1 3AZ,361.27,
592,Communities & Local Government,DCLG,08/12/2014,"Rail, Underground and Eurostar",Neighbourhoods,REDFERN TRAVEL LIMITED,,Small,,213089972,2100248886,Rail,Consolidated Monthly Travel November Rail,BD1 3AZ,918.79,
593,Communities & Local Government,DCLG,08/12/2014,"Rail, Underground and Eurostar",Neighbourhoods,REDFERN TRAVEL LIMITED,,Small,,213089972,2100248886,Rail,Consolidated Monthly Travel November Rail,BD1 3AZ,"6,015.74",
594,Communities & Local Government,DCLG,08/12/2014,"Rail, Underground and Eurostar",Neighbourhoods,REDFERN TRAVEL LIMITED,,Small,,213089972,2100248886,Rail,Consolidated Monthly Travel November Rail,BD1 3AZ,"5,102.23",
595,Communities & Local Government,DCLG,08/12/2014,"Rail, Underground and Eurostar",Neighbourhoods,REDFERN TRAVEL LIMITED,,Small,,213089972,2100248886,Rail,Consolidated Monthly Travel November Rail,BD1 3AZ,"2,444.46",
596,Communities & Local Government,DCLG,08/12/2014,"Rail, Underground and Eurostar",Neighbourhoods,REDFERN TRAVEL LIMITED,,Small,,213089972,2100248886,Rail,Consolidated Monthly Travel November Rail,BD1 3AZ,"4,872.48",
597,Communities & Local Government,DCLG,08/12/2014,"Rail, Underground and Eurostar",Neighbourhoods,REDFERN TRAVEL LIMITED,,Small,,213089972,2100248886,Rail,Consolidated Monthly Travel November Rail,BD1 3AZ,"1,556.84",
598,Communities & Local Government,DCLG,08/12/2014,"Rail, Underground and Eurostar",Neighbourhoods,REDFERN TRAVEL LIMITED,,Small,,213089972,2100248886,Rail,Consolidated Monthly Travel November Rail,BD1 3AZ,"3,026.18",
599,Communities & Local Government,DCLG,08/12/2014,"Rail, Underground and Eurostar",Neighbourhoods,REDFERN TRAVEL LIMITED,,Small,,213089972,2100248886,Rail,Consolidated Monthly Travel November Rail,BD1 3AZ,"2,356.13",
600,Communities & Local Government,DCLG,08/12/2014,"Rail, Underground and Eurostar",Neighbourhoods,REDFERN TRAVEL LIMITED,,Small,,213089972,2100248886,Rail,Consolidated Monthly Travel November Rail,BD1 3AZ,"1,028.61",
601,Communities & Local Government,DCLG,08/12/2014,"Rail, Underground and Eurostar",Neighbourhoods,REDFERN TRAVEL LIMITED,,Small,,213089972,2100248886,Rail,Consolidated Monthly Travel November Rail,BD1 3AZ,"1,372.09",
602,Communities & Local Government,DCLG,08/12/2014,"Rail, Underground and Eurostar",Neighbourhoods,REDFERN TRAVEL LIMITED,,Small,,213089972,2100248886,Rail,Consolidated Monthly Travel November Rail,BD1 3AZ,"1,790.06",
603,Communities & Local Government,DCLG,08/12/2014,"Rail, Underground and Eurostar",Neighbourhoods,REDFERN TRAVEL LIMITED,,Small,,213089972,2100248886,Rail,Consolidated Monthly Travel November Rail,BD1 3AZ,"5,303.42",
604,Communities & Local Government,DCLG,08/12/2014,"Rail, Underground and Eurostar",Neighbourhoods,REDFERN TRAVEL LIMITED,,Small,,213089972,2100248886,Rail,Consolidated Monthly Travel November Rail,BD1 3AZ,"2,283.19",
605,Communities & Local Government,DCLG,08/12/2014,"Rail, Underground and Eurostar","Strategy, Communications and Private Office",REDFERN TRAVEL LIMITED,,Small,,213089972,2100248886,Rail,Consolidated Monthly Travel November Rail,BD1 3AZ,459.46,
606,Communities & Local Government,DCLG,08/12/2014,"Rail, Underground and Eurostar","Strategy, Communications and Private Office",REDFERN TRAVEL LIMITED,,Small,,213089972,2100248886,Rail,Consolidated Monthly Travel November Rail,BD1 3AZ,397.30,
607,Communities & Local Government,DCLG,08/12/2014,"Rail, Underground and Eurostar","Strategy, Communications and Private Office",REDFERN TRAVEL LIMITED,,Small,,213089972,2100248886,Rail,Consolidated Monthly Travel November Rail,BD1 3AZ,271.56,
608,Communities & Local Government,DCLG,08/12/2014,"Rail, Underground and Eurostar","Strategy, Communications and Private Office",REDFERN TRAVEL LIMITED,,Small,,213089972,2100248886,Rail,Consolidated Monthly Travel November Rail,BD1 3AZ,408.31,
609,Communities & Local Government,DCLG,08/12/2014,"Rail, Underground and Eurostar","Strategy, Communications and Private Office",REDFERN TRAVEL LIMITED,,Small,,213089972,2100248886,Rail,Consolidated Monthly Travel November Rail,BD1 3AZ,"1,042.42",
610,Communities & Local Government,DCLG,08/12/2014,"Rail, Underground and Eurostar","Strategy, Communications and Private Office",REDFERN TRAVEL LIMITED,,Small,,213089972,2100248886,Rail,Consolidated Monthly Travel November Rail,BD1 3AZ,707.43,
611,Communities & Local Government,DCLG,08/12/2014,"Rail, Underground and Eurostar","Strategy, Communications and Private Office",REDFERN TRAVEL LIMITED,,Small,,213089972,2100248886,Rail,Consolidated Monthly Travel November Rail,BD1 3AZ,353.30,
612,Communities & Local Government,DCLG,08/12/2014,"Rail, Underground and Eurostar","Strategy, Communications and Private Office",REDFERN TRAVEL LIMITED,,Small,,213089972,2100248886,Rail,Consolidated Monthly Travel November Rail,BD1 3AZ,993.52,
613,Communities & Local Government,DCLG,08/12/2014,"Rail, Underground and Eurostar","Strategy, Communications and Private Office",REDFERN TRAVEL LIMITED,,Small,,213089972,2100248886,Rail,Consolidated Monthly Travel November Rail,BD1 3AZ,951.50,
614,Communities & Local Government,DCLG,08/12/2014,"Rail, Underground and Eurostar",Troubled Families,REDFERN TRAVEL LIMITED,,Small,,213089972,2100248886,Rail,Consolidated Monthly Travel November Rail,BD1 3AZ,"4,691.36",
615,Communities & Local Government,DCLG,08/12/2014,"Rail, Underground and Eurostar",Localism,REDFERN TRAVEL LIMITED,,Small,,213089972,2100248886,Rail,Consolidated Monthly Travel November Rail,BD1 3AZ,"6,288.82",
616,Communities & Local Government,DCLG,08/12/2014,"Rail, Underground and Eurostar",Neighbourhoods,REDFERN TRAVEL LIMITED,,Small,,213089972,2100248886,Rail,Consolidated Monthly Travel November Rail,BD1 3AZ,"3,075.14",
617,Communities & Local Government,DCLG,08/12/2014,Steady State Service Provision,Finance & Corporate Services,ALLPAY LIMITED,,Medium,,738359918,5106208720,Business Process Outsourcing Services,DC/DC Transaction Charges,HR1 3SE,453.15,
618,Communities & Local Government,DCLG,08/12/2014,Steady State Service Provision,Finance & Corporate Services,ALLPAY LIMITED,,Medium,,738359918,5106208720,Business Process Outsourcing Services,Monthly Management Fee Payments,HR1 3SE,500.00,
619,Communities & Local Government,DCLG,08/12/2014,Steady State Service Provision,Neighbourhoods,CEL GROUP,,Medium,,394794614,5106208779,Business Process Outsourcing Services,Extension of a contact to CEL Group upto 31/1/16,WA2 0YL,"58,528.00",
620,Communities & Local Government,DCLG,08/12/2014,Telecoms equipment (non-capitalised),Finance & Corporate Services,DAMOVO UK LTD,,Large,,221481042,5106208750,Telecoms,WiFi for Regional Offices,RH12 4QP,"1,104.00",
621,Communities & Local Government,DCLG,08/12/2014,Telecoms equipment (non-capitalised),Finance & Corporate Services,DAMOVO UK LTD,,Large,,221481042,5106208751,Telecoms,Recurring Damovo telephony contract monthly charge,RH12 4QP,"123,468.60",
622,Communities & Local Government,DCLG,08/12/2014,Telecoms equipment (non-capitalised),Finance & Corporate Services,DAMOVO UK LTD,,Large,,221481042,5106208780,Telecoms,WiFi for Regional Offices,RH12 4QP,"4,933.55",
627,Communities & Local Government,DCLG,08/12/2014,Work In Progress Pre-Cert 40373 Spend,Neighbourhoods,CORBY BOROUGH COUNCIL,,Large,,,7600011138,,Revenue Grant To Be Paid,NN17 1QB,"3,258.67",Yes
628,Communities & Local Government,DCLG,08/12/2014,Work In Progress Pre-Cert 40373 Spend,Neighbourhoods,COVENTRY UNIVERSITY ENTERPRISES LTD,,Medium,,,7600011159,,Revenue Grant To Be Paid,CV1 2TT,"12,744.30",Yes
629,Communities & Local Government,DCLG,08/12/2014,Work In Progress Pre-Cert 40373 Spend,Neighbourhoods,DERBY CITY COUNCIL,,Large,,,7600011143,,Revenue Grant To Be Paid,DE1 2FE,555.74,Yes
630,Communities & Local Government,DCLG,08/12/2014,Work In Progress Pre-Cert 40373 Spend,Neighbourhoods,DERBY CITY COUNCIL,,Large,,,7600011157,,Revenue Grant To Be Paid,DE1 2FE,"3,495.05",Yes
631,Communities & Local Government,DCLG,08/12/2014,Work In Progress Pre-Cert 40373 Spend,Neighbourhoods,DERBY CITY COUNCIL,,Large,,,7600011162,,Revenue Grant To Be Paid,DE1 2FE,"1,969.92",Yes
632,Communities & Local Government,DCLG,08/12/2014,Work In Progress Pre-Cert 40373 Spend,Neighbourhoods,INSTITUTE FOR SUSTAINABILITY,,Small,,,7600011147,,Revenue Grant To Be Paid,N1 6AH,"95,568.48",Yes
633,Communities & Local Government,DCLG,08/12/2014,Work In Progress Pre-Cert 40373 Spend,Neighbourhoods,KENT COUNTY COUNCIL,,Large,,,7600011153,,Revenue Grant To Be Paid,ME14 1XQ,"95,344.22",Yes
634,Communities & Local Government,DCLG,08/12/2014,Work In Progress Pre-Cert 40373 Spend,Neighbourhoods,NOTTINGHAM CITY COUNCIL,,Large,,,7600011160,,Revenue Grant To Be Paid,NG2 3NG,"201,986.54",Yes
635,Communities & Local Government,DCLG,08/12/2014,Work In Progress Pre-Cert 40373 Spend,Neighbourhoods,NOTTINGHAM UNIVERSITY,,Large,,,7600011139,,Revenue Grant To Be Paid,NG7 2RD,"93,859.84",Yes
636,Communities & Local Government,DCLG,08/12/2014,Work In Progress Pre-Cert 40373 Spend,Neighbourhoods,NOTTINGHAM UNIVERSITY,,Large,,,7600011144,,Revenue Grant To Be Paid,NG7 2RD,"67,137.35",Yes
637,Communities & Local Government,DCLG,08/12/2014,Work In Progress Pre-Cert 40373 Spend,Neighbourhoods,NOTTINGHAM UNIVERSITY,,Large,,,7600011154,,Revenue Grant To Be Paid,NG7 2RD,"31,698.87",Yes
638,Communities & Local Government,DCLG,08/12/2014,Work In Progress Pre-Cert 40373 Spend,Neighbourhoods,NOTTINGHAM UNIVERSITY,,Large,,,7600011164,,Revenue Grant Clawback Offset,NG7 2RD,-892.93,Yes
639,Communities & Local Government,DCLG,08/12/2014,Work In Progress Pre-Cert 40373 Spend,Neighbourhoods,NOTTINGHAM UNIVERSITY,,Large,,,7600011164,,Revenue Grant To Be Paid,NG7 2RD,"69,039.25",Yes
640,Communities & Local Government,DCLG,08/12/2014,Work In Progress Pre-Cert 40373 Spend,Neighbourhoods,STAFFORDSHIRE COUNTY COUNCIL,,,,,7600011152,,Revenue Grant To Be Paid,ST16 2DH,"5,105.66",Yes
641,Communities & Local Government,DCLG,08/12/2014,Work In Progress Pre-Cert 40373 Spend,Neighbourhoods,STOKE-ON-TRENT CITY COUNCIL,,Large,,,7600011145,,Revenue Grant To Be Paid,ST4 1HP,"7,191.03",Yes
642,Communities & Local Government,DCLG,08/12/2014,Work In Progress Pre-Cert 40373 Spend,Neighbourhoods,UNIVERSITY OF WARWICK,,Large,,,7600011137,,Revenue Grant Clawback Offset,CV4 8UW,"-14,704.24",Yes
643,Communities & Local Government,DCLG,08/12/2014,Work In Progress Pre-Cert 40373 Spend,Neighbourhoods,UNIVERSITY OF WARWICK,,Large,,,7600011137,,Revenue Grant To Be Paid,CV4 8UW,"187,193.24",Yes
644,Communities & Local Government,DCLG,08/12/2014,Work In Progress Pre-Cert 40373 Spend,Neighbourhoods,WOLVERHAMPTON CITY COUNCIL,,Large,,,7600011150,,Revenue Grant To Be Paid,WV1 1RL,"7,237.05",Yes
645,Communities & Local Government,DCLG,08/12/2014,Work In Progress Pre-Cert 40373 Spend,Neighbourhoods,WOLVERHAMPTON CITY COUNCIL,,Large,,,7600011156,,Revenue Grant To Be Paid,WV1 1RL,"28,860.06",Yes
646,Communities & Local Government,DCLG,08/12/2014,Work In Progress Pre-Cert 40373 Spend,Neighbourhoods,WORCESTERSHIRE COUNTY COUNCIL,,Public Bodies,,,7600011151,,Revenue Grant To Be Paid,WR5 2NP,"19,709.19",Yes
647,Communities & Local Government,DCLG,08/12/2014,Work In Progress Pre-Cert 40373 Spend,Neighbourhoods,WORCESTERSHIRE COUNTY COUNCIL,,Public Bodies,,,7600011158,,Revenue Grant To Be Paid,WR5 2NP,"1,802.84",Yes
648,Communities & Local Government,DCLG,08/12/2014,Work In Progress Pre-Cert 40467 Spend,Neighbourhoods,COVENTRY CITY COUNCIL,,Large,,,7600011161,,Capital Grant To Be Paid,CV1 5RR,"39,059.61",Yes
649,Communities & Local Government,DCLG,08/12/2014,Work In Progress Pre-Cert 40467 Spend,Neighbourhoods,DERBY CITY COUNCIL,,Large,,,7600011143,,Capital Grant To Be Paid,DE1 2FE,"62,896.10",Yes
650,Communities & Local Government,DCLG,08/12/2014,Work In Progress Pre-Cert 40467 Spend,Neighbourhoods,DERBY CITY COUNCIL,,Large,,,7600011149,,Capital Grant To Be Paid,DE1 2FE,"41,603.25",Yes
651,Communities & Local Government,DCLG,08/12/2014,Work In Progress Pre-Cert 40467 Spend,Neighbourhoods,DERBY CITY COUNCIL,,Large,,,7600011162,,Capital Grant To Be Paid,DE1 2FE,"188,085.53",Yes
652,Communities & Local Government,DCLG,08/12/2014,Work In Progress Pre-Cert 40467 Spend,Neighbourhoods,DERBY CITY COUNCIL,,Large,,,7600011163,,Capital Grant To Be Paid,DE1 2FE,"3,610.29",Yes
653,Communities & Local Government,DCLG,08/12/2014,Work In Progress Pre-Cert 40467 Spend,Neighbourhoods,DERBYSHIRE COUNTY COUNCIL,,Large,,,7600011140,,Capital Grant To Be Paid,DE4 3AG,"73,889.78",Yes
654,Communities & Local Government,DCLG,08/12/2014,Work In Progress Pre-Cert 40467 Spend,Neighbourhoods,DERBYSHIRE COUNTY COUNCIL,,Large,,,7600011155,,Capital Grant To Be Paid,DE4 3AG,"49,870.48",Yes
655,Communities & Local Government,DCLG,08/12/2014,Work In Progress Pre-Cert 40467 Spend,Neighbourhoods,KENT COUNTY COUNCIL,,Large,,,7600011153,,Capital Grant To Be Paid,ME14 1XQ,"68,236.00",Yes
656,Communities & Local Government,DCLG,08/12/2014,Work In Progress Pre-Cert 40467 Spend,Neighbourhoods,LANCASTER UNIVERISTY,,,,,7600011141,,Capital Grant To Be Paid,LA1 4YW,"5,270,501.94",Yes
657,Communities & Local Government,DCLG,08/12/2014,Work In Progress Pre-Cert 40467 Spend,Neighbourhoods,NOTTINGHAM CITY COUNCIL,,Large,,,7600011148,,Capital Grant To Be Paid,NG2 3NG,"264,225.88",Yes
658,Communities & Local Government,DCLG,08/12/2014,Work In Progress Pre-Cert 40467 Spend,Neighbourhoods,NOTTINGHAM CITY COUNCIL,,Large,,,7600011160,,Capital Grant To Be Paid,NG2 3NG,"252,489.57",Yes
659,Communities & Local Government,DCLG,08/12/2014,Work In Progress Pre-Cert 40467 Spend,Neighbourhoods,NOTTINGHAM UNIVERSITY,,Large,,,7600011164,,Capital Grant To Be Paid,NG7 2RD,474.60,Yes
660,Communities & Local Government,DCLG,08/12/2014,Work In Progress Pre-Cert 40467 Spend,Neighbourhoods,STAFFORDSHIRE COUNTY COUNCIL,,,,,7600011142,,Capital Grant To Be Paid,ST16 2DH,"70,000.00",Yes
661,Communities & Local Government,DCLG,08/12/2014,Work In Progress Pre-Cert 40467 Spend,Neighbourhoods,STAFFORDSHIRE COUNTY COUNCIL,,,,,7600011146,,Capital Grant To Be Paid,ST16 2DH,"27,500.00",Yes
662,Communities & Local Government,DCLG,08/12/2014,Work In Progress Pre-Cert 40467 Spend,Neighbourhoods,WORCESTERSHIRE COUNTY COUNCIL,,Public Bodies,,,7600011151,,Capital Grant To Be Paid,WR5 2NP,"51,155.20",Yes
663,Communities & Local Government,DCLG,08/12/2014,Work In Progress Pre-Cert 40467 Spend,Neighbourhoods,WORCESTERSHIRE COUNTY COUNCIL,,Public Bodies,,,7600011158,,Capital Grant To Be Paid,WR5 2NP,"23,205.41",Yes
664,Communities & Local Government,DCLG,09/12/2014,Agency Staff,Neighbourhoods,CAPITA BUS. SERV. LTD (CON LAB),,Large,,,5106208763,Contingent Labour,Interim Manager,DL1 9HB,"5,068.20",
665,Communities & Local Government,DCLG,09/12/2014,Conferences and Meeting Facilities,Localism,GHS ENTERPRISE LTD,,Micro,,,5106208649,Business Travel Accommodation,Community Rights Workshop in Preston,PR1 8JN,250.00,
666,Communities & Local Government,DCLG,09/12/2014,Conferences and Meeting Facilities,Localism,GHS ENTERPRISE LTD,,Micro,,,5106208649,Business Travel Accommodation,Community Rights workshop in Preston,PR1 8JN,60.00,
667,Communities & Local Government,DCLG,09/12/2014,Courier Services,Finance & Corporate Services,INTERSERVE (FACILITIES MANAGEMENT),,Large,,364834825,5106208816,Office Solutions,Rivergate Mail 14-15,BS32 4NH,"1,519.43",
668,Communities & Local Government,DCLG,09/12/2014,Current (non AEF) Grants to Local Authorities,Localism,SURREY COUNTY CNCL,,Public Bodies,,,2600061953,,Surrey County Council Bellwin 13-14 floods payment,KT1 2DN,"2,382,887.00",Yes
669,Communities & Local Government,DCLG,09/12/2014,Domestic Services,Finance & Corporate Services,INTERSERVE (FACILITIES MANAGEMENT),,Large,,364834825,5106208816,Building Operation,TQH Cleaning 14-15,BS32 4NH,"9,032.52",
670,Communities & Local Government,DCLG,09/12/2014,Domestic Services,Finance & Corporate Services,INTERSERVE (FACILITIES MANAGEMENT),,Large,,364834825,5106208816,Building Operation,Hemel Hemp Cleaning 14-15,BS32 4NH,"2,216.98",
671,Communities & Local Government,DCLG,09/12/2014,Domestic Services,Finance & Corporate Services,INTERSERVE (FACILITIES MANAGEMENT),,Large,,364834825,5106208816,Building Operation,Rivergate Cleaning 14-15,BS32 4NH,"5,167.99",
672,Communities & Local Government,DCLG,09/12/2014,Domestic Services,Finance & Corporate Services,INTERSERVE (FACILITIES MANAGEMENT),,Large,,364834825,5106208816,Building Operation,Citygate Cleaning 14-15,BS32 4NH,"3,090.56",
673,Communities & Local Government,DCLG,09/12/2014,Domestic Services,Finance & Corporate Services,INTERSERVE (FACILITIES MANAGEMENT),,Large,,364834825,5106208816,Building Operation,5SPP Cleaning 14-15,BS32 4NH,"6,906.82",
674,Communities & Local Government,DCLG,09/12/2014,Domestic Services,Finance & Corporate Services,INTERSERVE (FACILITIES MANAGEMENT),,Large,,364834825,5106208816,Building Operation,Paradise Cleaning 14-15,BS32 4NH,"3,159.23",
675,Communities & Local Government,DCLG,09/12/2014,Electricity,Finance & Corporate Services,EDF ENERGY 1 LIMITED,,Large,,230840469,5106208797,Energy,EoE Waterbeach Electricity 2013-14 0%VAT,PL3 5XQ,10.92,
676,Communities & Local Government,DCLG,09/12/2014,Electricity,Finance & Corporate Services,EDF ENERGY 1 LIMITED,,Large,,230840469,5106208797,Energy,EoE Waterbeach Electricity 2014-15,PL3 5XQ,"2,304.84",
677,Communities & Local Government,DCLG,09/12/2014,Electricity,Finance & Corporate Services,EDF ENERGY 1 LIMITED,,Large,,230840469,5106208805,Energy,Y&H Wakefield Electricity 2014-15,PL3 5XQ,"2,569.31",
678,Communities & Local Government,DCLG,09/12/2014,Electricity,Finance & Corporate Services,EDF ENERGY 1 LIMITED,,Large,,230840469,5106208807,Energy,EM Castle Don Electricity 2014-15,PL3 5XQ,"2,349.71",
679,Communities & Local Government,DCLG,09/12/2014,Facilities Management (ISD use only),Finance & Corporate Services,INTERSERVE (FACILITIES MANAGEMENT),,Large,,364834825,5106208816,Property Occupation,Eland House Off Site Management 14-15,BS32 4NH,"11,404.08",
680,Communities & Local Government,DCLG,09/12/2014,Facilities Management (ISD use only),Finance & Corporate Services,INTERSERVE (FACILITIES MANAGEMENT),,Large,,364834825,5106208816,Property Occupation,TQH Off Site Management 14-15,BS32 4NH,"8,076.85",
681,Communities & Local Government,DCLG,09/12/2014,Facilities Management (ISD use only),Finance & Corporate Services,INTERSERVE (FACILITIES MANAGEMENT),,Large,,364834825,5106208816,Property Occupation,TQH On Site Management 14-15,BS32 4NH,"3,181.33",
682,Communities & Local Government,DCLG,09/12/2014,Facilities Management (ISD use only),Finance & Corporate Services,INTERSERVE (FACILITIES MANAGEMENT),,Large,,364834825,5106208816,Property Occupation,TQH Reception 14-15,BS32 4NH,"1,663.29",
683,Communities & Local Government,DCLG,09/12/2014,Facilities Management (ISD use only),Finance & Corporate Services,INTERSERVE (FACILITIES MANAGEMENT),,Large,,364834825,5106208816,Property Occupation,Hemel Hemp Off Site Management 14-15,BS32 4NH,900.35,
684,Communities & Local Government,DCLG,09/12/2014,Facilities Management (ISD use only),Finance & Corporate Services,INTERSERVE (FACILITIES MANAGEMENT),,Large,,364834825,5106208816,Property Occupation,Rivergate Off Site Management 14-15,BS32 4NH,"3,682.20",
685,Communities & Local Government,DCLG,09/12/2014,Facilities Management (ISD use only),Finance & Corporate Services,INTERSERVE (FACILITIES MANAGEMENT),,Large,,364834825,5106208816,Property Occupation,Rivergate Reception 14-15,BS32 4NH,"1,653.74",
686,Communities & Local Government,DCLG,09/12/2014,Facilities Management (ISD use only),Finance & Corporate Services,INTERSERVE (FACILITIES MANAGEMENT),,Large,,364834825,5106208816,Property Occupation,Bridge House Off Site Management 14-15,BS32 4NH,"1,778.39",
687,Communities & Local Government,DCLG,09/12/2014,Facilities Management (ISD use only),Finance & Corporate Services,INTERSERVE (FACILITIES MANAGEMENT),,Large,,364834825,5106208816,Property Occupation,Citygate Off Site Management 14-15,BS32 4NH,"3,021.82",
688,Communities & Local Government,DCLG,09/12/2014,Facilities Management (ISD use only),Finance & Corporate Services,INTERSERVE (FACILITIES MANAGEMENT),,Large,,364834825,5106208816,Property Occupation,Citygate On Site Management 14-15,BS32 4NH,"2,529.53",
689,Communities & Local Government,DCLG,09/12/2014,Facilities Management (ISD use only),Finance & Corporate Services,INTERSERVE (FACILITIES MANAGEMENT),,Large,,364834825,5106208816,Property Occupation,Citygate Reception 14-15,BS32 4NH,"1,612.33",
690,Communities & Local Government,DCLG,09/12/2014,Facilities Management (ISD use only),Finance & Corporate Services,INTERSERVE (FACILITIES MANAGEMENT),,Large,,364834825,5106208816,Property Occupation,Queen Street Off Site Management 14-15,BS32 4NH,"1,637.09",
691,Communities & Local Government,DCLG,09/12/2014,Facilities Management (ISD use only),Finance & Corporate Services,INTERSERVE (FACILITIES MANAGEMENT),,Large,,364834825,5106208816,Property Occupation,5SPP Off Site Management 14-15,BS32 4NH,"2,986.62",
692,Communities & Local Government,DCLG,09/12/2014,Facilities Management (ISD use only),Finance & Corporate Services,INTERSERVE (FACILITIES MANAGEMENT),,Large,,364834825,5106208816,Property Occupation,5SPP On Site Management 14-15,BS32 4NH,"3,032.33",
693,Communities & Local Government,DCLG,09/12/2014,Facilities Management (ISD use only),Finance & Corporate Services,INTERSERVE (FACILITIES MANAGEMENT),,Large,,364834825,5106208816,Property Occupation,5SPP Reception 14-15,BS32 4NH,"2,854.01",
694,Communities & Local Government,DCLG,09/12/2014,Facilities Management (ISD use only),Finance & Corporate Services,INTERSERVE (FACILITIES MANAGEMENT),,Large,,364834825,5106208816,Property Occupation,Paradise Off Site Management 14-15,BS32 4NH,"1,716.91",
695,Communities & Local Government,DCLG,09/12/2014,Fixed Maintenance,Finance & Corporate Services,INTERSERVE (FACILITIES MANAGEMENT),,Large,,364834825,5106208816,Property Occupation,TQH Maintenance 14-15,BS32 4NH,"6,027.81",
696,Communities & Local Government,DCLG,09/12/2014,Fixed Maintenance,Finance & Corporate Services,INTERSERVE (FACILITIES MANAGEMENT),,Large,,364834825,5106208816,Property Occupation,Hemel Hemp Maintenance 14-15,BS32 4NH,"5,437.63",
697,Communities & Local Government,DCLG,09/12/2014,Fixed Maintenance,Finance & Corporate Services,INTERSERVE (FACILITIES MANAGEMENT),,Large,,364834825,5106208816,Property Occupation,Rivergate Maintenance 14-15,BS32 4NH,"3,840.85",
698,Communities & Local Government,DCLG,09/12/2014,Fixed Maintenance,Finance & Corporate Services,INTERSERVE (FACILITIES MANAGEMENT),,Large,,364834825,5106208816,Property Occupation,Citygate Maintenance 14-15,BS32 4NH,"3,637.07",
699,Communities & Local Government,DCLG,09/12/2014,Fixed Maintenance,Finance & Corporate Services,INTERSERVE (FACILITIES MANAGEMENT),,Large,,364834825,5106208816,Property Occupation,5SPP Maintenance 14-15,BS32 4NH,"10,952.47",
700,Communities & Local Government,DCLG,09/12/2014,Fixed Maintenance,Finance & Corporate Services,INTERSERVE (FACILITIES MANAGEMENT),,Large,,364834825,5106208816,Property Occupation,Paradise Maintenance 14-15,BS32 4NH,"7,911.01",
701,Communities & Local Government,DCLG,09/12/2014,IT - Service Contracts,Finance & Corporate Services,FUJITSU SERVICES LTD,,Large,,423375062,5106208801,IT Managed / Outsourced Services,CNFJDCLG096 PSN email/internet circuits,WA3 9BD,"22,813.18",
702,Communities & Local Government,DCLG,09/12/2014,IT - Service Contracts,Finance & Corporate Services,LOCKHEED MARTIN BUSINESS TECH SOLUT,,Large,,399909910,5106208670,IT Managed / Outsourced Services,CR124 Statement 12.09 Support Report,PA4 9LH,"4,380.00",
703,Communities & Local Government,DCLG,09/12/2014,IT - Service Contracts,Finance & Corporate Services,LOCKHEED MARTIN BUSINESS TECH SOLUT,,Large,,399909910,5106208811,IT Managed / Outsourced Services,EDRF Enhancements 2013=2014,PA4 9LH,"56,855.00",
704,Communities & Local Government,DCLG,09/12/2014,IT - Software Maintenance,Finance & Corporate Services,METHODS CONSULTING LTD,,Medium,,505275578,5106208787,IT Managed / Outsourced Services,PIMS Application Support 17mths,WC2H 8AD,"24,000.00",
705,Communities & Local Government,DCLG,09/12/2014,Legal Fees,Finance & Corporate Services,DAVITT JONES BOULD LTD,,Medium,,,5106208813,Legal,Legal Advice,TA1 4EB,"3,169.31",
706,Communities & Local Government,DCLG,09/12/2014,Legal Fees,Neighbourhoods,LEASE CONFERENCES LTD,,Small,,,5106208784,Legal,Legal Advice,EC4Y 8JX,"9,957.60",
707,Communities & Local Government,DCLG,09/12/2014,Photocopying,Finance & Corporate Services,INTERSERVE (FACILITIES MANAGEMENT),,Large,,364834825,5106208790,Business Support,DfECC/0041Prov of repro equip (TQH)14-15,BS32 4NH,"29,478.84",
708,Communities & Local Government,DCLG,09/12/2014,Photocopying,Finance & Corporate Services,INTERSERVE (FACILITIES MANAGEMENT),,Large,,364834825,5106208792,Business Support,DfECC/0041Prov of repro equip (TQH)14-15,BS32 4NH,"4,689.64",
709,Communities & Local Government,DCLG,09/12/2014,Photocopying,Finance & Corporate Services,INTERSERVE (FACILITIES MANAGEMENT),,Large,,364834825,5106208816,Business Support,TQH Reproduction 14-15,BS32 4NH,"6,529.09",
710,Communities & Local Government,DCLG,09/12/2014,Photocopying,Finance & Corporate Services,INTERSERVE (FACILITIES MANAGEMENT),,Large,,364834825,5106208816,Business Support,Hemel Hemp Reproduction 14-15,BS32 4NH,126.33,
711,Communities & Local Government,DCLG,09/12/2014,Photocopying,Finance & Corporate Services,INTERSERVE (FACILITIES MANAGEMENT),,Large,,364834825,5106208816,Business Support,5SPP Reproduction 14-15,BS32 4NH,353.08,
712,Communities & Local Government,DCLG,09/12/2014,Professional services,Localism,GOVT ACTUARYS DEPARTMENT,,Public Bodies,,217789766,5106208804,Financial,Acturial advice Top up funding,EC4A 1AB,568.55,
713,Communities & Local Government,DCLG,09/12/2014,Publicity,"Strategy, Communications and Private Office",GORKANA GROUP LTD,,Large,,210089876,5106208761,Advertising,Press cuttings,EC1Y 8QE,"2,318.88",
714,Communities & Local Government,DCLG,09/12/2014,Security,Finance & Corporate Services,INTERSERVE (FACILITIES MANAGEMENT),,Large,,364834825,5106208816,Security,TQH Security 14-15,BS32 4NH,"9,286.58",
715,Communities & Local Government,DCLG,09/12/2014,Security,Finance & Corporate Services,INTERSERVE (FACILITIES MANAGEMENT),,Large,,364834825,5106208816,Security,Hemel Hemp Security 14-15,BS32 4NH,"4,270.93",
716,Communities & Local Government,DCLG,09/12/2014,Security,Finance & Corporate Services,INTERSERVE (FACILITIES MANAGEMENT),,Large,,364834825,5106208816,Security,Rivergate Security 14-15,BS32 4NH,"6,764.25",
717,Communities & Local Government,DCLG,09/12/2014,Security,Finance & Corporate Services,INTERSERVE (FACILITIES MANAGEMENT),,Large,,364834825,5106208816,Security,Citygate Security 14-15,BS32 4NH,"2,546.81",
718,Communities & Local Government,DCLG,09/12/2014,Security,Finance & Corporate Services,INTERSERVE (FACILITIES MANAGEMENT),,Large,,364834825,5106208816,Security,5SPP Security 14-15,BS32 4NH,"4,816.46",
719,Communities & Local Government,DCLG,09/12/2014,Security,Finance & Corporate Services,INTERSERVE (FACILITIES MANAGEMENT),,Large,,364834825,5106208816,Security,Paradise Security 14-15,BS32 4NH,"2,145.00",
720,Communities & Local Government,DCLG,09/12/2014,Security,Finance & Corporate Services,SIEMENS FINANCIAL SERVICES LTD,,Large,,225115880,5106208815,Security,17 PCQ Rental-Security Equipment 2014/15,SL2 4JS,721.00,
721,Communities & Local Government,DCLG,09/12/2014,Telecoms equipment (non-capitalised),Finance & Corporate Services,DAMOVO UK LTD,,Large,,221481042,5106208808,Telecoms,PINS 100 Teleworkers CCN030,RH12 4QP,"1,707.00",
722,Communities & Local Government,DCLG,09/12/2014,Telecoms equipment (non-capitalised),Finance & Corporate Services,DAMOVO UK LTD,,Large,,221481042,5106208808,Telecoms,Routine Engineering and powerdowns,RH12 4QP,"1,638.72",
723,Communities & Local Government,DCLG,09/12/2014,Telecoms equipment (non-capitalised),Localism,B T PAYMENT SERVICES LTD,,Large,,215591378,5106208799,Telecoms,Late payment charges,DH98 1BT,13.50,
724,Communities & Local Government,DCLG,09/12/2014,Telecoms equipment (non-capitalised),Localism,B T PAYMENT SERVICES LTD,,Large,,215591378,5106208799,Telecoms,Leased Internet Lines Hemel,DH98 1BT,"3,204.00",
725,Communities & Local Government,DCLG,09/12/2014,Training,Finance & Corporate Services,CAPITA BUS. SERV. LTD (CSL),,Large,,215580993,5106208794,Development and Training,Management of Risk (M_o_R ) Foundation,DL1 9HB,426.00,
726,Communities & Local Government,DCLG,09/12/2014,Training,Finance & Corporate Services,CAPITA BUS. SERV. LTD (CSL),,Large,,215580993,5106208795,Development and Training,Presentation Skills,DL1 9HB,293.00,
727,Communities & Local Government,DCLG,09/12/2014,Training,Finance & Corporate Services,CAPITA BUS. SERV. LTD (CSL),,Large,,215580993,5106208817,Development and Training,(M_o_R ) Foundation Level,DL1 9HB,426.00,
728,Communities & Local Government,DCLG,09/12/2014,Training,Finance & Corporate Services,INSTITUTE OF INTERNAL AUDITORS,,Small,,292669967,5106208744,Development and Training,P4 Information Systems Auditing (Revisio,SW4 7BX,535.00,
729,Communities & Local Government,DCLG,09/12/2014,Training,Finance & Corporate Services,INSTITUTE OF INTERNAL AUDITORS,,Small,,292669967,5106208744,Development and Training,P4 Information Systems Auditing (Tuition,SW4 7BX,"1,150.00",
730,Communities & Local Government,DCLG,09/12/2014,Training,Finance & Corporate Services,WHITEHALL & INDUSTRY GROUP,,Small,,385853957,5106208764,Development and Training,Enhancing Personal Impact and Presence,SW1H 9EX,450.00,
731,Communities & Local Government,DCLG,09/12/2014,Variable Maintenance < 15k,Finance & Corporate Services,INTERSERVE (FACILITIES MANAGEMENT),,Large,,364834825,5106208515,Property Occupation,Eland House Variable Maint 14-15,BS32 4NH,"-27,591.43",
732,Communities & Local Government,DCLG,09/12/2014,Vehicle hire,Finance & Corporate Services,CYCLESCHEME LTD,,Large,,345537935,5106208800,Vehicle Hire and Lease,Salaried Cycle to work scheme,BA1 2LN,"1,000.00",
733,Communities & Local Government,DCLG,09/12/2014,Waste Disposal and pest control,Finance & Corporate Services,INTERSERVE (FACILITIES MANAGEMENT),,Large,,364834825,5106208816,Waste Management Services,TQH Waste 14-15,BS32 4NH,"1,301.76",
734,Communities & Local Government,DCLG,09/12/2014,Waste Disposal and pest control,Finance & Corporate Services,INTERSERVE (FACILITIES MANAGEMENT),,Large,,364834825,5106208816,Waste Management Services,Hemel Hemp Waste 14-15,BS32 4NH,271.36,
735,Communities & Local Government,DCLG,09/12/2014,Waste Disposal and pest control,Finance & Corporate Services,INTERSERVE (FACILITIES MANAGEMENT),,Large,,364834825,5106208816,Waste Management Services,Rivergate Waste 14-15,BS32 4NH,917.18,
736,Communities & Local Government,DCLG,09/12/2014,Waste Disposal and pest control,Finance & Corporate Services,INTERSERVE (FACILITIES MANAGEMENT),,Large,,364834825,5106208816,Waste Management Services,Citygate Waste 14-15,BS32 4NH,881.29,
737,Communities & Local Government,DCLG,09/12/2014,Waste Disposal and pest control,Finance & Corporate Services,INTERSERVE (FACILITIES MANAGEMENT),,Large,,364834825,5106208816,Waste Management Services,5SPP Waste 14-15,BS32 4NH,871.17,
738,Communities & Local Government,DCLG,09/12/2014,Waste Disposal and pest control,Finance & Corporate Services,INTERSERVE (FACILITIES MANAGEMENT),,Large,,364834825,5106208816,Waste Management Services,Paradise Waste 14-15,BS32 4NH,506.15,
739,Communities & Local Government,DCLG,09/12/2014,Water,Finance & Corporate Services,SEVERN TRENT WATER LTD,,Large,,234404465,5106208798,Operation of Water Supplies and Distribution,2014/15 St Philips B ham Annual Water,CV3 9FJ,662.27,
740,Communities & Local Government,DCLG,09/12/2014,Work In Progress Pre-Cert 40373 Spend,Neighbourhoods,ACCESS TO BUSINESS,,Small,,,7600011245,,Revenue Grant To Be Paid,WV2 1AA,"14,041.39",Yes
741,Communities & Local Government,DCLG,09/12/2014,Work In Progress Pre-Cert 40373 Spend,Neighbourhoods,ACCESS TO BUSINESS,,Small,,,7600011294,,Revenue Grant To Be Paid,WV2 1AA,"11,843.08",Yes
742,Communities & Local Government,DCLG,09/12/2014,Work In Progress Pre-Cert 40373 Spend,Neighbourhoods,ACCORD HOUSING ASSOCIATION LTD,,Large,,,7600011328,,Revenue Grant To Be Paid,B70 6QG,"13,492.73",Yes
743,Communities & Local Government,DCLG,09/12/2014,Work In Progress Pre-Cert 40373 Spend,Neighbourhoods,ADVANTAGE EARLY GROWTH LTD,,Small,,,7600011376,,Revenue Grant Clawback Offset,B79 0PF,-9.09,Yes
744,Communities & Local Government,DCLG,09/12/2014,Work In Progress Pre-Cert 40373 Spend,Neighbourhoods,ADVANTAGE EARLY GROWTH LTD,,Small,,,7600011376,,Revenue Grant To Be Paid,B79 0PF,"7,618.15",Yes
745,Communities & Local Government,DCLG,09/12/2014,Work In Progress Pre-Cert 40373 Spend,Neighbourhoods,ADVANTAGE EARLY GROWTH LTD,,Small,,,7600011384,,Revenue Grant To Be Paid,B79 0PF,"2,861.62",Yes
746,Communities & Local Government,DCLG,09/12/2014,Work In Progress Pre-Cert 40373 Spend,Neighbourhoods,ANGLIA RUSKIN UNIVERSITY,,,,,7600011239,,Revenue Grant Clawback Offset,CM1 1SQ,"-11,079.08",Yes
747,Communities & Local Government,DCLG,09/12/2014,Work In Progress Pre-Cert 40373 Spend,Neighbourhoods,ANGLIA RUSKIN UNIVERSITY,,,,,7600011239,,Revenue Grant To Be Paid,CM1 1SQ,"233,039.17",Yes
748,Communities & Local Government,DCLG,09/12/2014,Work In Progress Pre-Cert 40373 Spend,Neighbourhoods,ANGLIA RUSKIN UNIVERSITY,,,,,7600011375,,Revenue Grant To Be Paid,CM1 1SQ,"59,329.01",Yes
749,Communities & Local Government,DCLG,09/12/2014,Work In Progress Pre-Cert 40373 Spend,Neighbourhoods,APEX LEICESTER PROJECT LTD,,Small,,,7600011187,,Revenue Grant Clawback Offset,LE1 1FB,"-4,840.38",Yes
750,Communities & Local Government,DCLG,09/12/2014,Work In Progress Pre-Cert 40373 Spend,Neighbourhoods,APEX LEICESTER PROJECT LTD,,Small,,,7600011187,,Revenue Grant To Be Paid,LE1 1FB,"18,211.74",Yes
751,Communities & Local Government,DCLG,09/12/2014,Work In Progress Pre-Cert 40373 Spend,Neighbourhoods,ASTON UNIVERSITY,,Large,,,7600011184,,Revenue Grant To Be Paid,B4 7ET,"9,596.61",Yes
752,Communities & Local Government,DCLG,09/12/2014,Work In Progress Pre-Cert 40373 Spend,Neighbourhoods,ASTON UNIVERSITY,,Large,,,7600011199,,Revenue Grant To Be Paid,B4 7ET,"24,542.02",Yes
753,Communities & Local Government,DCLG,09/12/2014,Work In Progress Pre-Cert 40373 Spend,Neighbourhoods,ASTON UNIVERSITY,,Large,,,7600011258,,Revenue Grant To Be Paid,B4 7ET,"11,283.18",Yes
754,Communities & Local Government,DCLG,09/12/2014,Work In Progress Pre-Cert 40373 Spend,Neighbourhoods,ASTON UNIVERSITY,,Large,,,7600011271,,Revenue Grant To Be Paid,B4 7ET,"11,540.12",Yes
755,Communities & Local Government,DCLG,09/12/2014,Work In Progress Pre-Cert 40373 Spend,Neighbourhoods,ASTON UNIVERSITY,,Large,,,7600011321,,Revenue Grant To Be Paid,B4 7ET,"16,138.01",Yes
756,Communities & Local Government,DCLG,09/12/2014,Work In Progress Pre-Cert 40373 Spend,Neighbourhoods,ASTON UNIVERSITY,,Large,,,7600011378,,Revenue Grant To Be Paid,B4 7ET,"28,063.11",Yes
757,Communities & Local Government,DCLG,09/12/2014,Work In Progress Pre-Cert 40373 Spend,Neighbourhoods,ASTON UNIVERSITY,,Large,,,7600011400,,Revenue Grant To Be Paid,B4 7ET,"12,905.38",Yes
758,Communities & Local Government,DCLG,09/12/2014,Work In Progress Pre-Cert 40373 Spend,Neighbourhoods,BIOCITY NOTTINGHAM LIMITED,,Small,,,7600011195,,Revenue Grant To Be Paid,NG1 1GF,"9,406.27",Yes
759,Communities & Local Government,DCLG,09/12/2014,Work In Progress Pre-Cert 40373 Spend,Neighbourhoods,BIOCITY NOTTINGHAM LIMITED,,Small,,,7600011197,,Revenue Grant To Be Paid,NG1 1GF,730.72,Yes
760,Communities & Local Government,DCLG,09/12/2014,Work In Progress Pre-Cert 40373 Spend,Neighbourhoods,BIOCITY NOTTINGHAM LIMITED,,Small,,,7600011204,,Revenue Grant To Be Paid,NG1 1GF,546.06,Yes
761,Communities & Local Government,DCLG,09/12/2014,Work In Progress Pre-Cert 40373 Spend,Neighbourhoods,BIORENEWABLES DEVELOPMENT CENTRE LT,,,,,7600011318,,Revenue Grant To Be Paid,YO10 5NY,"62,158.83",Yes
762,Communities & Local Government,DCLG,09/12/2014,Work In Progress Pre-Cert 40373 Spend,Neighbourhoods,BIRMINGHAM CITY COUNCIL (NOT RATES),,Large,,,7600011168,,Revenue Grant To Be Paid,B1 1BB,"3,598.73",Yes
763,Communities & Local Government,DCLG,09/12/2014,Work In Progress Pre-Cert 40373 Spend,Neighbourhoods,BIRMINGHAM CITY COUNCIL (NOT RATES),,Large,,,7600011183,,Revenue Grant To Be Paid,B1 1BB,"17,167.81",Yes
764,Communities & Local Government,DCLG,09/12/2014,Work In Progress Pre-Cert 40373 Spend,Neighbourhoods,BIRMINGHAM CITY COUNCIL (NOT RATES),,Large,,,7600011196,,Revenue Grant To Be Paid,B1 1BB,"25,312.05",Yes
765,Communities & Local Government,DCLG,09/12/2014,Work In Progress Pre-Cert 40373 Spend,Neighbourhoods,BIRMINGHAM CITY COUNCIL (NOT RATES),,Large,,,7600011281,,Revenue Grant To Be Paid,B1 1BB,"66,208.53",Yes
766,Communities & Local Government,DCLG,09/12/2014,Work In Progress Pre-Cert 40373 Spend,Neighbourhoods,BIRMINGHAM CITY COUNCIL (NOT RATES),,Large,,,7600011309,,Revenue Grant To Be Paid,B1 1BB,"151,243.00",Yes
767,Communities & Local Government,DCLG,09/12/2014,Work In Progress Pre-Cert 40373 Spend,Neighbourhoods,BIRMINGHAM CITY COUNCIL (NOT RATES),,Large,,,7600011326,,Revenue Grant To Be Paid,B1 1BB,"3,984.71",Yes
768,Communities & Local Government,DCLG,09/12/2014,Work In Progress Pre-Cert 40373 Spend,Neighbourhoods,BIRMINGHAM CITY COUNCIL (NOT RATES),,Large,,,7600011380,,Revenue Grant To Be Paid,B1 1BB,"4,676.99",Yes
769,Communities & Local Government,DCLG,09/12/2014,Work In Progress Pre-Cert 40373 Spend,Neighbourhoods,BIRMINGHAM CITY COUNCIL (NOT RATES),,Large,,,7600011396,,Revenue Grant To Be Paid,B1 1BB,"78,363.57",Yes
770,Communities & Local Government,DCLG,09/12/2014,Work In Progress Pre-Cert 40373 Spend,Neighbourhoods,BIRMINGHAM SCIENCE PARK ASTON,,Small,,,7600011166,,Revenue Grant To Be Paid,B7 4BB,"25,811.52",Yes
771,Communities & Local Government,DCLG,09/12/2014,Work In Progress Pre-Cert 40373 Spend,Neighbourhoods,BIRMINGHAM SCIENCE PARK ASTON,,Small,,,7600011169,,Revenue Grant To Be Paid,B7 4BB,"29,516.89",Yes
772,Communities & Local Government,DCLG,09/12/2014,Work In Progress Pre-Cert 40373 Spend,Neighbourhoods,BIRMINGHAM SCIENCE PARK ASTON,,Small,,,7600011173,,Revenue Grant To Be Paid,B7 4BB,"52,925.16",Yes
773,Communities & Local Government,DCLG,09/12/2014,Work In Progress Pre-Cert 40373 Spend,Neighbourhoods,BIRMINGHAM SCIENCE PARK ASTON,,Small,,,7600011178,,Revenue Grant To Be Paid,B7 4BB,"13,703.75",Yes
774,Communities & Local Government,DCLG,09/12/2014,Work In Progress Pre-Cert 40373 Spend,Neighbourhoods,BIRMINGHAM SCIENCE PARK ASTON,,Small,,,7600011179,,Revenue Grant To Be Paid,B7 4BB,"16,624.97",Yes
775,Communities & Local Government,DCLG,09/12/2014,Work In Progress Pre-Cert 40373 Spend,Neighbourhoods,BIRMINGHAM SCIENCE PARK ASTON,,Small,,,7600011201,,Revenue Grant To Be Paid,B7 4BB,"45,334.09",Yes
776,Communities & Local Government,DCLG,09/12/2014,Work In Progress Pre-Cert 40373 Spend,Neighbourhoods,BISHOP GROSSETESTE UNIV COLL LINCOL,,Large,,,7600011174,,Revenue Grant To Be Paid,LN1 3DY,"3,451.77",Yes
777,Communities & Local Government,DCLG,09/12/2014,Work In Progress Pre-Cert 40373 Spend,Neighbourhoods,BOLSOVER DISTRICT COUNCIL,,Large,,,7600011181,,Revenue Grant To Be Paid,S44 6NF,"9,862.34",Yes
778,Communities & Local Government,DCLG,09/12/2014,Work In Progress Pre-Cert 40373 Spend,Neighbourhoods,BOLSOVER DISTRICT COUNCIL,,Large,,,7600011206,,Revenue Grant To Be Paid,S44 6NF,"20,389.94",Yes
779,Communities & Local Government,DCLG,09/12/2014,Work In Progress Pre-Cert 40373 Spend,Neighbourhoods,BOLSOVER DISTRICT COUNCIL,,Large,,,7600011210,,Revenue Grant Clawback Offset,S44 6NF,"-14,571.06",Yes
780,Communities & Local Government,DCLG,09/12/2014,Work In Progress Pre-Cert 40373 Spend,Neighbourhoods,BOLSOVER DISTRICT COUNCIL,,Large,,,7600011210,,Revenue Grant To Be Paid,S44 6NF,"23,375.00",Yes
781,Communities & Local Government,DCLG,09/12/2014,Work In Progress Pre-Cert 40373 Spend,Neighbourhoods,BOLSOVER DISTRICT COUNCIL,,Large,,,7600011215,,Revenue Grant To Be Paid,S44 6NF,"20,898.90",Yes
782,Communities & Local Government,DCLG,09/12/2014,Work In Progress Pre-Cert 40373 Spend,Neighbourhoods,BOLSOVER DISTRICT COUNCIL,,Large,,,7600011219,,Revenue Grant To Be Paid,S44 6NF,"5,328.61",Yes
783,Communities & Local Government,DCLG,09/12/2014,Work In Progress Pre-Cert 40373 Spend,Neighbourhoods,BRADFORD  MDC,,,,,7600011300,,Revenue Grant To Be Paid,BD1 1HY,"46,844.76",Yes
784,Communities & Local Government,DCLG,09/12/2014,Work In Progress Pre-Cert 40373 Spend,Neighbourhoods,BRAUNSTONE FOUNDATION,,Small,,,7600011320,,Revenue Grant Clawback Offset,LE3 1HR,"-1,313.02",Yes
785,Communities & Local Government,DCLG,09/12/2014,Work In Progress Pre-Cert 40373 Spend,Neighbourhoods,BRAUNSTONE FOUNDATION,,Small,,,7600011320,,Revenue Grant To Be Paid,LE3 1HR,"29,859.03",Yes
786,Communities & Local Government,DCLG,09/12/2014,Work In Progress Pre-Cert 40373 Spend,Neighbourhoods,BRAUNSTONE FOUNDATION,,Small,,,7600011331,,Revenue Grant To Be Paid,LE3 1HR,"20,688.13",Yes
787,Communities & Local Government,DCLG,09/12/2014,Work In Progress Pre-Cert 40373 Spend,Neighbourhoods,BROADWAY,,,,,7600011165,,Revenue Grant To Be Paid,N61 3AL,"7,456.07",Yes
788,Communities & Local Government,DCLG,09/12/2014,Work In Progress Pre-Cert 40373 Spend,Neighbourhoods,BUSINESS & ENTERPRISE COMMERCIAL,,Medium,,,7600011365,,Revenue Grant Clawback Offset,SR7 7TT,"-18,243.78",Yes
789,Communities & Local Government,DCLG,09/12/2014,Work In Progress Pre-Cert 40373 Spend,Neighbourhoods,BUSINESS & ENTERPRISE COMMERCIAL,,Medium,,,7600011365,,Revenue Grant To Be Paid,SR7 7TT,"136,158.25",Yes
790,Communities & Local Government,DCLG,09/12/2014,Work In Progress Pre-Cert 40373 Spend,Neighbourhoods,CALDERDALE METROPOLITAN BOROUGH COU,,Large,,,7600011262,,Revenue Grant To Be Paid,HX1 1UN,"76,425.66",Yes
791,Communities & Local Government,DCLG,09/12/2014,Work In Progress Pre-Cert 40373 Spend,Neighbourhoods,CALDERDALE METROPOLITAN BOROUGH COU,,Large,,,7600011263,,Revenue Grant To Be Paid,HX1 1UN,"31,515.54",Yes
792,Communities & Local Government,DCLG,09/12/2014,Work In Progress Pre-Cert 40373 Spend,Neighbourhoods,CAMBRIDGESHIRE COUNTY COUNCIL,,,,,7600011216,,Revenue Grant To Be Paid,CB3 0AP,"1,526.85",Yes
793,Communities & Local Government,DCLG,09/12/2014,Work In Progress Pre-Cert 40373 Spend,Neighbourhoods,CAMBRIDGESHIRE COUNTY COUNCIL,,,,,7600011218,,Revenue Grant To Be Paid,CB3 0AP,"6,243.11",Yes
794,Communities & Local Government,DCLG,09/12/2014,Work In Progress Pre-Cert 40373 Spend,Neighbourhoods,CENTRAL BEDFORDSHIRE COUNCIL,,Public Bodies,,,7600011270,,Revenue Grant To Be Paid,SG17 5TQ,"11,059.22",Yes
795,Communities & Local Government,DCLG,09/12/2014,Work In Progress Pre-Cert 40373 Spend,Neighbourhoods,CHESTERFIELD BOROUGH COUNCIL,,Large,,,7600011172,,Revenue Grant To Be Paid,S40 1LP,"2,239.64",Yes
796,Communities & Local Government,DCLG,09/12/2014,Work In Progress Pre-Cert 40373 Spend,Neighbourhoods,CHESTERFIELD BOROUGH COUNCIL,,Large,,,7600011207,,Revenue Grant To Be Paid,S40 1LP,"24,108.32",Yes
797,Communities & Local Government,DCLG,09/12/2014,Work In Progress Pre-Cert 40373 Spend,Neighbourhoods,COMMUNITY FOUNDATION FOR LEEDS,Yes,Micro,,,7600011234,,Revenue Grant To Be Paid,LS1 2TE,"5,175.15",Yes
798,Communities & Local Government,DCLG,09/12/2014,Work In Progress Pre-Cert 40373 Spend,Neighbourhoods,COMMUNITY FOUNDATION FOR LEEDS,Yes,Micro,,,7600011235,,Revenue Grant To Be Paid,LS1 2TE,"5,349.97",Yes
799,Communities & Local Government,DCLG,09/12/2014,Work In Progress Pre-Cert 40373 Spend,Neighbourhoods,COMMUNITY MEDIA SOLUTIONS LTD,,,,,7600011229,,Revenue Grant To Be Paid,S1 2BX,"27,121.88",Yes
800,Communities & Local Government,DCLG,09/12/2014,Work In Progress Pre-Cert 40373 Spend,Neighbourhoods,COMMUNITY MEDIA SOLUTIONS LTD,,,,,7600011322,,Revenue Grant To Be Paid,S1 2BX,"48,620.86",Yes
801,Communities & Local Government,DCLG,09/12/2014,Work In Progress Pre-Cert 40373 Spend,Neighbourhoods,CORBY BOROUGH COUNCIL,,Large,,,7600011403,,Revenue Grant To Be Paid,NN17 1QB,"56,364.02",Yes
802,Communities & Local Government,DCLG,09/12/2014,Work In Progress Pre-Cert 40373 Spend,Neighbourhoods,COVENTRY & WARKS CO-OP DEVEL AGENCY,,Small,,,7600011167,,Revenue Grant To Be Paid,CV1 5EA,"21,024.87",Yes
803,Communities & Local Government,DCLG,09/12/2014,Work In Progress Pre-Cert 40373 Spend,Neighbourhoods,COVENTRY CITY COUNCIL,,Large,,,7600011194,,Revenue Grant To Be Paid,CV1 5RR,"4,153.01",Yes
804,Communities & Local Government,DCLG,09/12/2014,Work In Progress Pre-Cert 40373 Spend,Neighbourhoods,COVENTRY CITY COUNCIL,,Large,,,7600011248,,Revenue Grant To Be Paid,CV1 5RR,"25,529.50",Yes
805,Communities & Local Government,DCLG,09/12/2014,Work In Progress Pre-Cert 40373 Spend,Neighbourhoods,COVENTRY CITY COUNCIL,,Large,,,7600011276,,Revenue Grant To Be Paid,CV1 5RR,"4,199.96",Yes
806,Communities & Local Government,DCLG,09/12/2014,Work In Progress Pre-Cert 40373 Spend,Neighbourhoods,COVENTRY CITY COUNCIL,,Large,,,7600011302,,Revenue Grant Clawback Offset,CV1 5RR,-7.49,Yes
807,Communities & Local Government,DCLG,09/12/2014,Work In Progress Pre-Cert 40373 Spend,Neighbourhoods,COVENTRY CITY COUNCIL,,Large,,,7600011302,,Revenue Grant To Be Paid,CV1 5RR,"2,742.52",Yes
808,Communities & Local Government,DCLG,09/12/2014,Work In Progress Pre-Cert 40373 Spend,Neighbourhoods,COVENTRY CITY COUNCIL,,Large,,,7600011315,,Revenue Grant To Be Paid,CV1 5RR,662.45,Yes
809,Communities & Local Government,DCLG,09/12/2014,Work In Progress Pre-Cert 40373 Spend,Neighbourhoods,COVENTRY CITY COUNCIL,,Large,,,7600011360,,Revenue Grant To Be Paid,CV1 5RR,"10,290.83",Yes
810,Communities & Local Government,DCLG,09/12/2014,Work In Progress Pre-Cert 40373 Spend,Neighbourhoods,COVENTRY CITY COUNCIL,,Large,,,7600011370,,Revenue Grant To Be Paid,CV1 5RR,"1,363.16",Yes
811,Communities & Local Government,DCLG,09/12/2014,Work In Progress Pre-Cert 40373 Spend,Neighbourhoods,COVENTRY CITY COUNCIL,,Large,,,7600011390,,Revenue Grant To Be Paid,CV1 5RR,"1,951.53",Yes
812,Communities & Local Government,DCLG,09/12/2014,Work In Progress Pre-Cert 40373 Spend,Neighbourhoods,COVENTRY CITY COUNCIL,,Large,,,7600011398,,Revenue Grant Clawback Offset,CV1 5RR,-268.89,Yes
813,Communities & Local Government,DCLG,09/12/2014,Work In Progress Pre-Cert 40373 Spend,Neighbourhoods,COVENTRY CITY COUNCIL,,Large,,,7600011398,,Revenue Grant To Be Paid,CV1 5RR,"31,807.03",Yes
814,Communities & Local Government,DCLG,09/12/2014,Work In Progress Pre-Cert 40373 Spend,Neighbourhoods,COVENTRY UNIVERSITY,,Large,,,7600011186,,Revenue Grant Clawback Offset,CV1 5FB,"-1,292.06",Yes
815,Communities & Local Government,DCLG,09/12/2014,Work In Progress Pre-Cert 40373 Spend,Neighbourhoods,COVENTRY UNIVERSITY,,Large,,,7600011186,,Revenue Grant To Be Paid,CV1 5FB,"26,519.86",Yes
816,Communities & Local Government,DCLG,09/12/2014,Work In Progress Pre-Cert 40373 Spend,Neighbourhoods,COVENTRY UNIVERSITY ENTERPRISES LTD,,Medium,,,7600011185,,Revenue Grant To Be Paid,CV1 2TT,"12,087.39",Yes
817,Communities & Local Government,DCLG,09/12/2014,Work In Progress Pre-Cert 40373 Spend,Neighbourhoods,COVENTRY UNIVERSITY ENTERPRISES LTD,,Medium,,,7600011191,,Revenue Grant To Be Paid,CV1 2TT,"9,732.48",Yes
818,Communities & Local Government,DCLG,09/12/2014,Work In Progress Pre-Cert 40373 Spend,Neighbourhoods,COVENTRY UNIVERSITY ENTERPRISES LTD,,Medium,,,7600011230,,Revenue Grant To Be Paid,CV1 2TT,"20,731.95",Yes
819,Communities & Local Government,DCLG,09/12/2014,Work In Progress Pre-Cert 40373 Spend,Neighbourhoods,COVENTRY UNIVERSITY ENTERPRISES LTD,,Medium,,,7600011273,,Revenue Grant To Be Paid,CV1 2TT,"39,518.83",Yes
820,Communities & Local Government,DCLG,09/12/2014,Work In Progress Pre-Cert 40373 Spend,Neighbourhoods,COVENTRY UNIVERSITY ENTERPRISES LTD,,Medium,,,7600011289,,Revenue Grant To Be Paid,CV1 2TT,"99,610.27",Yes
821,Communities & Local Government,DCLG,09/12/2014,Work In Progress Pre-Cert 40373 Spend,Neighbourhoods,COVENTRY UNIVERSITY ENTERPRISES LTD,,Medium,,,7600011296,,Revenue Grant To Be Paid,CV1 2TT,"26,132.96",Yes
822,Communities & Local Government,DCLG,09/12/2014,Work In Progress Pre-Cert 40373 Spend,Neighbourhoods,COVENTRY UNIVERSITY ENTERPRISES LTD,,Medium,,,7600011307,,Revenue Grant To Be Paid,CV1 2TT,"22,906.94",Yes
823,Communities & Local Government,DCLG,09/12/2014,Work In Progress Pre-Cert 40373 Spend,Neighbourhoods,COVENTRY UNIVERSITY ENTERPRISES LTD,,Medium,,,7600011337,,Revenue Grant To Be Paid,CV1 2TT,"95,546.16",Yes
824,Communities & Local Government,DCLG,09/12/2014,Work In Progress Pre-Cert 40373 Spend,Neighbourhoods,COVENTRY UNIVERSITY ENTERPRISES LTD,,Medium,,,7600011352,,Revenue Grant Clawback Offset,CV1 2TT,"-3,384.00",Yes
825,Communities & Local Government,DCLG,09/12/2014,Work In Progress Pre-Cert 40373 Spend,Neighbourhoods,COVENTRY UNIVERSITY ENTERPRISES LTD,,Medium,,,7600011352,,Revenue Grant To Be Paid,CV1 2TT,"32,471.39",Yes
826,Communities & Local Government,DCLG,09/12/2014,Work In Progress Pre-Cert 40373 Spend,Neighbourhoods,COVENTRY UNIVERSITY ENTERPRISES LTD,,Medium,,,7600011353,,Revenue Grant To Be Paid,CV1 2TT,"12,531.12",Yes
827,Communities & Local Government,DCLG,09/12/2014,Work In Progress Pre-Cert 40373 Spend,Neighbourhoods,COVENTRY UNIVERSITY ENTERPRISES LTD,,Medium,,,7600011383,,Revenue Grant To Be Paid,CV1 2TT,"87,923.87",Yes
828,Communities & Local Government,DCLG,09/12/2014,Work In Progress Pre-Cert 40373 Spend,Neighbourhoods,CREATIVE ENGLAND LTD,,Medium,,,7600011269,,Revenue Grant To Be Paid,BS1 5SP,"10,779.16",Yes
829,Communities & Local Government,DCLG,09/12/2014,Work In Progress Pre-Cert 40373 Spend,Neighbourhoods,DERBY CITY COUNCIL,,Large,,,7600011316,,Revenue Grant To Be Paid,DE1 2FE,"106,177.52",Yes
830,Communities & Local Government,DCLG,09/12/2014,Work In Progress Pre-Cert 40373 Spend,Neighbourhoods,DERBY CITY COUNCIL,,Large,,,7600011371,,Revenue Grant To Be Paid,DE1 2FE,"3,675.45",Yes
831,Communities & Local Government,DCLG,09/12/2014,Work In Progress Pre-Cert 40373 Spend,Neighbourhoods,DERBY CITY COUNCIL,,Large,,,7600011372,,Revenue Grant To Be Paid,DE1 2FE,"13,629.40",Yes
832,Communities & Local Government,DCLG,09/12/2014,Work In Progress Pre-Cert 40373 Spend,Neighbourhoods,DERBY UNIVERSITY,,Large,,,7600011180,,Revenue Grant To Be Paid,DE22 1XB,"9,103.37",Yes
833,Communities & Local Government,DCLG,09/12/2014,Work In Progress Pre-Cert 40373 Spend,Neighbourhoods,DERBY UNIVERSITY,,Large,,,7600011257,,Revenue Grant To Be Paid,DE22 1XB,"13,694.23",Yes
834,Communities & Local Government,DCLG,09/12/2014,Work In Progress Pre-Cert 40373 Spend,Neighbourhoods,DERBYSHIRE COUNTY COUNCIL,,Large,,,7600011291,,Revenue Grant To Be Paid,DE4 3AG,"18,816.00",Yes
835,Communities & Local Government,DCLG,09/12/2014,Work In Progress Pre-Cert 40373 Spend,Neighbourhoods,DERBYSHIRE COUNTY COUNCIL,,Large,,,7600011393,,Revenue Grant To Be Paid,DE4 3AG,"18,816.20",Yes
836,Communities & Local Government,DCLG,09/12/2014,Work In Progress Pre-Cert 40373 Spend,Neighbourhoods,DNCC LIMITED,,Medium,,,7600011232,,Revenue Grant To Be Paid,S41 7NA,"218,509.16",Yes
837,Communities & Local Government,DCLG,09/12/2014,Work In Progress Pre-Cert 40373 Spend,Neighbourhoods,DUDLEY METROPOLITAN BC,,Public Bodies,,,7600011332,,Revenue Grant To Be Paid,DY8 2AA,"12,776.66",Yes
838,Communities & Local Government,DCLG,09/12/2014,Work In Progress Pre-Cert 40373 Spend,Neighbourhoods,DUDLEY METROPOLITAN BC,,Public Bodies,,,7600011351,,Revenue Grant To Be Paid,DY8 2AA,"13,774.65",Yes
839,Communities & Local Government,DCLG,09/12/2014,Work In Progress Pre-Cert 40373 Spend,Neighbourhoods,E FACTOR ENTERPRISE (NEL) LTD,,Small,,,7600011256,,Revenue Grant To Be Paid,DN34 5BQ,"130,493.44",Yes
840,Communities & Local Government,DCLG,09/12/2014,Work In Progress Pre-Cert 40373 Spend,Neighbourhoods,EAST ANGLIA UNIVERSITY,,,,,7600011382,,Revenue Grant To Be Paid,NR4 7TJ,"15,238.79",Yes
841,Communities & Local Government,DCLG,09/12/2014,Work In Progress Pre-Cert 40373 Spend,Neighbourhoods,EAST MIDLANDS INCUBATION NETWORK (E,,Small,,,7600011267,,Revenue Grant To Be Paid,DE65 5GJ,"38,037.31",Yes
842,Communities & Local Government,DCLG,09/12/2014,Work In Progress Pre-Cert 40373 Spend,Neighbourhoods,EAST MIDLANDS INCUBATION NETWORK (E,,Small,,,7600011312,,Revenue Grant To Be Paid,DE65 5GJ,"11,671.56",Yes
843,Communities & Local Government,DCLG,09/12/2014,Work In Progress Pre-Cert 40373 Spend,Neighbourhoods,EAST RIDING COLLEGE,,Large,,,7600011231,,Revenue Grant To Be Paid,HU17 7DT,"4,348.02",Yes
844,Communities & Local Government,DCLG,09/12/2014,Work In Progress Pre-Cert 40373 Spend,Neighbourhoods,EAST RIDING OF YORKSHIRE COUNCIL,,,,,7600011361,,Revenue Grant To Be Paid,HU17 9BA,"19,818.27",Yes
845,Communities & Local Government,DCLG,09/12/2014,Work In Progress Pre-Cert 40373 Spend,Neighbourhoods,EAST RIDING OF YORKSHIRE COUNCIL,,,,,7600011366,,Revenue Grant To Be Paid,HU17 9BA,"15,628.78",Yes
846,Communities & Local Government,DCLG,09/12/2014,Work In Progress Pre-Cert 40373 Spend,Neighbourhoods,ESSEX COUNTY COUNCIL,,Small,,,7600011354,,Revenue Grant To Be Paid,CO1 1WD,"134,139.94",Yes
847,Communities & Local Government,DCLG,09/12/2014,Work In Progress Pre-Cert 40373 Spend,Neighbourhoods,ESSEX COUNTY COUNCIL,,Small,,,7600011356,,Revenue Grant To Be Paid,CO1 1WD,"22,241.48",Yes
848,Communities & Local Government,DCLG,09/12/2014,Work In Progress Pre-Cert 40373 Spend,Neighbourhoods,FOOD &  DRINK FORUM LTD (I-NET),,Small,,,7600011280,,Revenue Grant To Be Paid,NG5 9RG,"34,316.04",Yes
849,Communities & Local Government,DCLG,09/12/2014,Work In Progress Pre-Cert 40373 Spend,Neighbourhoods,GOODWIN DEVELOPMENT TRUST LTD,,,,,7600011285,,Revenue Grant To Be Paid,HU3 2HQ,"12,294.90",Yes
850,Communities & Local Government,DCLG,09/12/2014,Work In Progress Pre-Cert 40373 Spend,Neighbourhoods,HETHEL INNOVATION LTD,,Micro,,,7600011212,,Revenue Grant To Be Paid,NR14 8FB,"8,807.12",Yes
851,Communities & Local Government,DCLG,09/12/2014,Work In Progress Pre-Cert 40373 Spend,Neighbourhoods,HETHEL INNOVATION LTD,,Micro,,,7600011220,,Revenue Grant To Be Paid,NR14 8FB,"9,916.57",Yes
852,Communities & Local Government,DCLG,09/12/2014,Work In Progress Pre-Cert 40373 Spend,Neighbourhoods,HETHEL INNOVATION LTD,,Micro,,,7600011252,,Revenue Grant To Be Paid,NR14 8FB,"13,488.23",Yes
853,Communities & Local Government,DCLG,09/12/2014,Work In Progress Pre-Cert 40373 Spend,Neighbourhoods,HETHEL INNOVATION LTD,,Micro,,,7600011254,,Revenue Grant To Be Paid,NR14 8FB,"9,856.97",Yes
854,Communities & Local Government,DCLG,09/12/2014,Work In Progress Pre-Cert 40373 Spend,Neighbourhoods,HETHEL INNOVATION LTD,,Micro,,,7600011264,,Revenue Grant To Be Paid,NR14 8FB,"9,074.73",Yes
855,Communities & Local Government,DCLG,09/12/2014,Work In Progress Pre-Cert 40373 Spend,Neighbourhoods,HUDDERSFIELD UNIVERISTY,,,,,7600011208,,Revenue Grant To Be Paid,HD1 3DH,"9,300.03",Yes
856,Communities & Local Government,DCLG,09/12/2014,Work In Progress Pre-Cert 40373 Spend,Neighbourhoods,HUDDERSFIELD UNIVERISTY,,,,,7600011209,,Revenue Grant To Be Paid,HD1 3DH,"2,037.54",Yes
857,Communities & Local Government,DCLG,09/12/2014,Work In Progress Pre-Cert 40373 Spend,Neighbourhoods,HUDDERSFIELD UNIVERISTY,,,,,7600011236,,Revenue Grant To Be Paid,HD1 3DH,"24,983.44",Yes
858,Communities & Local Government,DCLG,09/12/2014,Work In Progress Pre-Cert 40373 Spend,Neighbourhoods,HUDDERSFIELD UNIVERISTY,,,,,7600011237,,Revenue Grant To Be Paid,HD1 3DH,"4,535.02",Yes
859,Communities & Local Government,DCLG,09/12/2014,Work In Progress Pre-Cert 40373 Spend,Neighbourhoods,IFM EDUCATION & CONSULTANCY SERVICE,,Small,,,7600011272,,Revenue Grant To Be Paid,CB3 0FS,"30,093.98",Yes
860,Communities & Local Government,DCLG,09/12/2014,Work In Progress Pre-Cert 40373 Spend,Neighbourhoods,INTERNATIONAL SYNERGIES LTD,,Small,,,7600011200,,Revenue Grant To Be Paid,B30 3ES,"28,635.25",Yes
861,Communities & Local Government,DCLG,09/12/2014,Work In Progress Pre-Cert 40373 Spend,Neighbourhoods,LEEDS CITY COUNCIL,,,,,7600011228,,Revenue Grant Clawback Offset,LS1 1UR,-911.68,Yes
862,Communities & Local Government,DCLG,09/12/2014,Work In Progress Pre-Cert 40373 Spend,Neighbourhoods,LEEDS CITY COUNCIL,,,,,7600011228,,Revenue Grant To Be Paid,LS1 1UR,"17,008.63",Yes
863,Communities & Local Government,DCLG,09/12/2014,Work In Progress Pre-Cert 40373 Spend,Neighbourhoods,LEICESTER CITY COUNCIL,,Large,,,7600011170,,Revenue Grant To Be Paid,LE1 6ZG,"4,455.87",Yes
864,Communities & Local Government,DCLG,09/12/2014,Work In Progress Pre-Cert 40373 Spend,Neighbourhoods,LEICESTER CITY COUNCIL,,Large,,,7600011301,,Revenue Grant To Be Paid,LE1 6ZG,"38,704.22",Yes
865,Communities & Local Government,DCLG,09/12/2014,Work In Progress Pre-Cert 40373 Spend,Neighbourhoods,LEICESTER UNIVERSITY,,Large,,,7600011198,,Revenue Grant To Be Paid,LE1 7RH,"6,751.24",Yes
866,Communities & Local Government,DCLG,09/12/2014,Work In Progress Pre-Cert 40373 Spend,Neighbourhoods,LEICESTER UNIVERSITY,,Large,,,7600011317,,Revenue Grant To Be Paid,LE1 7RH,"22,729.94",Yes
867,Communities & Local Government,DCLG,09/12/2014,Work In Progress Pre-Cert 40373 Spend,Neighbourhoods,LEICESTERSHIRE COUNTY COUNCIL,,Small,,,7600011299,,Revenue Grant To Be Paid,LE13 0UL,"11,840.58",Yes
868,Communities & Local Government,DCLG,09/12/2014,Work In Progress Pre-Cert 40373 Spend,Neighbourhoods,LEICESTERSHIRE COUNTY COUNCIL,,Small,,,7600011405,,Revenue Grant To Be Paid,LE13 0UL,"3,799.25",Yes
869,Communities & Local Government,DCLG,09/12/2014,Work In Progress Pre-Cert 40373 Spend,Neighbourhoods,LINCONSHIRE COUNTY COUNCIL,,Large,,,7600011177,,Revenue Grant To Be Paid,LN1 1YT,"6,778.57",Yes
870,Communities & Local Government,DCLG,09/12/2014,Work In Progress Pre-Cert 40373 Spend,Neighbourhoods,LINCONSHIRE COUNTY COUNCIL,,Large,,,7600011241,,Revenue Grant To Be Paid,LN1 1YT,"22,873.24",Yes
871,Communities & Local Government,DCLG,09/12/2014,Work In Progress Pre-Cert 40373 Spend,Neighbourhoods,LINCONSHIRE COUNTY COUNCIL,,Large,,,7600011303,,Revenue Grant To Be Paid,LN1 1YT,"64,659.32",Yes
872,Communities & Local Government,DCLG,09/12/2014,Work In Progress Pre-Cert 40373 Spend,Neighbourhoods,LOUGHBOROUGH UNIVERSITY,,Large,,,7600011189,,Revenue Grant To Be Paid,LE11 3TU,"28,501.32",Yes
873,Communities & Local Government,DCLG,09/12/2014,Work In Progress Pre-Cert 40373 Spend,Neighbourhoods,LOUGHBOROUGH UNIVERSITY,,Large,,,7600011386,,Revenue Grant To Be Paid,LE11 3TU,"105,243.69",Yes
874,Communities & Local Government,DCLG,09/12/2014,Work In Progress Pre-Cert 40373 Spend,Neighbourhoods,LOUGHBOROUGH UNIVERSITY,,Large,,,7600011394,,Revenue Grant To Be Paid,LE11 3TU,"1,929.35",Yes
875,Communities & Local Government,DCLG,09/12/2014,Work In Progress Pre-Cert 40373 Spend,Neighbourhoods,MANSFIELD DISTRICT COUNCIL,,Large,,,7600011203,,Revenue Grant To Be Paid,NG19 7BH,"17,279.47",Yes
876,Communities & Local Government,DCLG,09/12/2014,Work In Progress Pre-Cert 40373 Spend,Neighbourhoods,MARKETING BIRMINGHAM LIMITED,,Medium,,,7600011224,,Revenue Grant To Be Paid,B1 2ND,"164,002.37",Yes
877,Communities & Local Government,DCLG,09/12/2014,Work In Progress Pre-Cert 40373 Spend,Neighbourhoods,NBV (NOTTINGHAM BUSINESS VENTURE),,Small,,,7600011182,,Revenue Grant To Be Paid,NG7 7FN,"91,768.56",Yes
878,Communities & Local Government,DCLG,09/12/2014,Work In Progress Pre-Cert 40373 Spend,Neighbourhoods,NEWCASTLE UNIVERSITY,,,,,7600011350,,Revenue Grant Clawback Offset,NE1 7RU,-116.00,Yes
879,Communities & Local Government,DCLG,09/12/2014,Work In Progress Pre-Cert 40373 Spend,Neighbourhoods,NEWCASTLE UNIVERSITY,,,,,7600011350,,Revenue Grant To Be Paid,NE1 7RU,"10,105.45",Yes
880,Communities & Local Government,DCLG,09/12/2014,Work In Progress Pre-Cert 40373 Spend,Neighbourhoods,NORFOLK COUNTY COUNCIL,,,,,7600011222,,Revenue Grant To Be Paid,NR1 2SG,"18,491.17",Yes
881,Communities & Local Government,DCLG,09/12/2014,Work In Progress Pre-Cert 40373 Spend,Neighbourhoods,NORTH EAST ENTERPRISE AGENCY LTD,,,,,7600011363,,Revenue Grant To Be Paid,SR3 1AX,"26,188.46",Yes
882,Communities & Local Government,DCLG,09/12/2014,Work In Progress Pre-Cert 40373 Spend,Neighbourhoods,NORTH LINCOLNSHIRE COUNCIL,,Public Bodies,,,7600011249,,Revenue Grant To Be Paid,DN16 1AB,"5,716.57",Yes
883,Communities & Local Government,DCLG,09/12/2014,Work In Progress Pre-Cert 40373 Spend,Neighbourhoods,NORTH TYNESIDE COUNCIL,,,,,7600011404,,Revenue Grant Clawback Offset,NE27 0BY,"-5,692.03",Yes
884,Communities & Local Government,DCLG,09/12/2014,Work In Progress Pre-Cert 40373 Spend,Neighbourhoods,NORTH TYNESIDE COUNCIL,,,,,7600011404,,Revenue Grant To Be Paid,NE27 0BY,"66,606.12",Yes
885,Communities & Local Government,DCLG,09/12/2014,Work In Progress Pre-Cert 40373 Spend,Neighbourhoods,NORTHAMPTON UNIVERSITY,,Large,,,7600011284,,Revenue Grant To Be Paid,NN2 7AL,"21,006.80",Yes
886,Communities & Local Government,DCLG,09/12/2014,Work In Progress Pre-Cert 40373 Spend,Neighbourhoods,NOTTINGHAM CITY COUNCIL,,Large,,,7600011171,,Revenue Grant To Be Paid,NG2 3NG,"1,658.86",Yes
887,Communities & Local Government,DCLG,09/12/2014,Work In Progress Pre-Cert 40373 Spend,Neighbourhoods,NOTTINGHAM CITY COUNCIL,,Large,,,7600011193,,Revenue Grant To Be Paid,NG2 3NG,"44,364.09",Yes
888,Communities & Local Government,DCLG,09/12/2014,Work In Progress Pre-Cert 40373 Spend,Neighbourhoods,NOTTINGHAM TRENT UNIVERSITY,,Large,,,7600011205,,Revenue Grant To Be Paid,NG1 4FZ,"8,276.98",Yes
889,Communities & Local Government,DCLG,09/12/2014,Work In Progress Pre-Cert 40373 Spend,Neighbourhoods,NOTTINGHAM UNIVERSITY,,Large,,,7600011225,,Revenue Grant To Be Paid,NG7 2RD,"14,821.42",Yes
890,Communities & Local Government,DCLG,09/12/2014,Work In Progress Pre-Cert 40373 Spend,Neighbourhoods,NTH EAST SOCIAL ENTERPRISE PARTNERS,,,,,7600011336,,Revenue Grant Clawback Offset,NE33 4EB,"-4,618.54",Yes
891,Communities & Local Government,DCLG,09/12/2014,Work In Progress Pre-Cert 40373 Spend,Neighbourhoods,NTH EAST SOCIAL ENTERPRISE PARTNERS,,,,,7600011336,,Revenue Grant To Be Paid,NE33 4EB,"66,949.14",Yes
892,Communities & Local Government,DCLG,09/12/2014,Work In Progress Pre-Cert 40373 Spend,Neighbourhoods,NTH STAFFS CHAMBER OF COMM & IND,,Small,,,7600011211,,Revenue Grant To Be Paid,ST1 5BE,"39,814.37",Yes
893,Communities & Local Government,DCLG,09/12/2014,Work In Progress Pre-Cert 40373 Spend,Neighbourhoods,NTH STAFFS CHAMBER OF COMM & IND,,Small,,,7600011268,,Revenue Grant To Be Paid,ST1 5BE,"12,006.68",Yes
894,Communities & Local Government,DCLG,09/12/2014,Work In Progress Pre-Cert 40373 Spend,Neighbourhoods,NTH STAFFS CHAMBER OF COMM & IND,,Small,,,7600011282,,Revenue Grant Clawback Offset,ST1 5BE,"-1,394.10",Yes
895,Communities & Local Government,DCLG,09/12/2014,Work In Progress Pre-Cert 40373 Spend,Neighbourhoods,NTH STAFFS CHAMBER OF COMM & IND,,Small,,,7600011282,,Revenue Grant To Be Paid,ST1 5BE,"10,144.80",Yes
896,Communities & Local Government,DCLG,09/12/2014,Work In Progress Pre-Cert 40373 Spend,Neighbourhoods,ORBIS ENERGY,,,,,7600011399,,Revenue Grant To Be Paid,NR14 8LZ,"92,494.82",Yes
897,Communities & Local Government,DCLG,09/12/2014,Work In Progress Pre-Cert 40373 Spend,Neighbourhoods,PERA CONSULTING UK LTD,,Medium,,,7600011292,,Revenue Grant Clawback Offset,LE13 0PB,"-1,316.29",Yes
898,Communities & Local Government,DCLG,09/12/2014,Work In Progress Pre-Cert 40373 Spend,Neighbourhoods,PERA CONSULTING UK LTD,,Medium,,,7600011292,,Revenue Grant To Be Paid,LE13 0PB,"63,588.27",Yes
899,Communities & Local Government,DCLG,09/12/2014,Work In Progress Pre-Cert 40373 Spend,Neighbourhoods,PERA CONSULTING UK LTD,,Medium,,,7600011308,,Revenue Grant To Be Paid,LE13 0PB,"37,916.75",Yes
900,Communities & Local Government,DCLG,09/12/2014,Work In Progress Pre-Cert 40373 Spend,Neighbourhoods,PERA CONSULTING UK LTD,,Medium,,,7600011392,,Revenue Grant To Be Paid,LE13 0PB,"47,795.48",Yes
901,Communities & Local Government,DCLG,09/12/2014,Work In Progress Pre-Cert 40373 Spend,Neighbourhoods,PRINCE'S TRUST,,,,,7600011362,,Revenue Grant To Be Paid,EC2M 7LS,"173,796.00",Yes
902,Communities & Local Government,DCLG,09/12/2014,Work In Progress Pre-Cert 40373 Spend,Neighbourhoods,PRINCES TRUST,,Large,,,7600011246,,Revenue Grant To Be Paid,LS2 8NG,"11,550.33",Yes
903,Communities & Local Government,DCLG,09/12/2014,Work In Progress Pre-Cert 40373 Spend,Neighbourhoods,PRINCES TRUST,,Medium,,,7600011329,,Revenue Grant To Be Paid,B9 4AA,"54,049.14",Yes
904,Communities & Local Government,DCLG,09/12/2014,Work In Progress Pre-Cert 40373 Spend,Neighbourhoods,ROTHERHAM METROPOLITAN BC,,,,,7600011379,,Revenue Grant To Be Paid,S65 1DJ,"19,079.29",Yes
905,Communities & Local Government,DCLG,09/12/2014,Work In Progress Pre-Cert 40373 Spend,Neighbourhoods,ROYAL OPERA HOUSE,,,,,7600011406,,Revenue Grant To Be Paid,WC2E 9DD,"13,755.91",Yes
906,Communities & Local Government,DCLG,09/12/2014,Work In Progress Pre-Cert 40373 Spend,Neighbourhoods,ROYAL OPERA HOUSE,,,,,7600011407,,Revenue Grant Clawback Offset,WC2E 9DD,-165.99,Yes
907,Communities & Local Government,DCLG,09/12/2014,Work In Progress Pre-Cert 40373 Spend,Neighbourhoods,ROYAL OPERA HOUSE,,,,,7600011407,,Revenue Grant To Be Paid,WC2E 9DD,"12,854.90",Yes
908,Communities & Local Government,DCLG,09/12/2014,Work In Progress Pre-Cert 40373 Spend,Neighbourhoods,RTC NORTH LTD,,,,,7600011355,,Revenue Grant To Be Paid,SR5 3HD,"94,976.46",Yes
909,Communities & Local Government,DCLG,09/12/2014,Work In Progress Pre-Cert 40373 Spend,Neighbourhoods,SHROPSHIRE COUNCIL,,Public Bodies,,,7600011324,,Revenue Grant To Be Paid,SY2 6ND,"4,271.62",Yes
910,Communities & Local Government,DCLG,09/12/2014,Work In Progress Pre-Cert 40373 Spend,Neighbourhoods,SOLIHULL METROPOLITAN BC,,Large,,,7600011190,,Revenue Grant To Be Paid,B91 3QS,"14,862.54",Yes
911,Communities & Local Government,DCLG,09/12/2014,Work In Progress Pre-Cert 40373 Spend,Neighbourhoods,SOLIHULL METROPOLITAN BC,,Large,,,7600011202,,Revenue Grant To Be Paid,B91 3QS,"4,368.79",Yes
912,Communities & Local Government,DCLG,09/12/2014,Work In Progress Pre-Cert 40373 Spend,Neighbourhoods,SOLIHULL METROPOLITAN BC,,Large,,,7600011306,,Revenue Grant To Be Paid,B91 3QS,"3,130.23",Yes
913,Communities & Local Government,DCLG,09/12/2014,Work In Progress Pre-Cert 40373 Spend,Neighbourhoods,STH YORKS PROPERTY INV CO LTD (2),,Micro,,,7600011367,,Revenue Grant To Be Paid,S1 2HH,"3,926.91",Yes
914,Communities & Local Government,DCLG,09/12/2014,Work In Progress Pre-Cert 40373 Spend,Neighbourhoods,STH YORKS PROPERTY INV CO LTD (2),,Micro,,,7600011381,,Revenue Grant To Be Paid,S1 2HH,"2,838.84",Yes
915,Communities & Local Government,DCLG,09/12/2014,Work In Progress Pre-Cert 40373 Spend,Neighbourhoods,STOKE-ON-TRENT CITY COUNCIL,,Large,,,7600011192,,Revenue Grant To Be Paid,ST4 1HP,"6,075.78",Yes
916,Communities & Local Government,DCLG,09/12/2014,Work In Progress Pre-Cert 40373 Spend,Neighbourhoods,STOKE-ON-TRENT CITY COUNCIL,,Large,,,7600011341,,Revenue Grant To Be Paid,ST4 1HP,"7,056.93",Yes
917,Communities & Local Government,DCLG,09/12/2014,Work In Progress Pre-Cert 40373 Spend,Neighbourhoods,STOKE-ON-TRENT CITY COUNCIL,,Large,,,7600011342,,Revenue Grant To Be Paid,ST4 1HP,"9,305.17",Yes
918,Communities & Local Government,DCLG,09/12/2014,Work In Progress Pre-Cert 40373 Spend,Neighbourhoods,STOKE-ON-TRENT CITY COUNCIL,,Large,,,7600011343,,Revenue Grant To Be Paid,ST4 1HP,"4,521.80",Yes
919,Communities & Local Government,DCLG,09/12/2014,Work In Progress Pre-Cert 40373 Spend,Neighbourhoods,STOKE-ON-TRENT CITY COUNCIL,,Large,,,7600011357,,Revenue Grant To Be Paid,ST4 1HP,884.26,Yes
920,Communities & Local Government,DCLG,09/12/2014,Work In Progress Pre-Cert 40373 Spend,Neighbourhoods,STOKE-ON-TRENT CITY COUNCIL,,Large,,,7600011358,,Revenue Grant To Be Paid,ST4 1HP,"3,080.94",Yes
921,Communities & Local Government,DCLG,09/12/2014,Work In Progress Pre-Cert 40373 Spend,Neighbourhoods,TELFORD & WREKIN COUNCIL,,,,,7600011311,,Revenue Grant To Be Paid,TF3 4NT,"1,110.77",Yes
922,Communities & Local Government,DCLG,09/12/2014,Work In Progress Pre-Cert 40373 Spend,Neighbourhoods,THURROCK COUNCIL,,,,,7600011242,,Revenue Grant To Be Paid,RM17 6SL,"544,350.73",Yes
923,Communities & Local Government,DCLG,09/12/2014,Work In Progress Pre-Cert 40373 Spend,Neighbourhoods,THURROCK COUNCIL,,,,,7600011243,,Revenue Grant To Be Paid,RM17 6SL,"34,010.17",Yes
924,Communities & Local Government,DCLG,09/12/2014,Work In Progress Pre-Cert 40373 Spend,Neighbourhoods,THURROCK COUNCIL,,,,,7600011244,,Revenue Grant To Be Paid,RM17 6SL,"219,470.70",Yes
925,Communities & Local Government,DCLG,09/12/2014,Work In Progress Pre-Cert 40373 Spend,Neighbourhoods,UNITY PROPERTY SERVICES LTD,,,,,7600011344,,Revenue Grant To Be Paid,LS7 1HY,"2,909.57",Yes
926,Communities & Local Government,DCLG,09/12/2014,Work In Progress Pre-Cert 40373 Spend,Neighbourhoods,UNITY PROPERTY SERVICES LTD,,,,,7600011345,,Revenue Grant To Be Paid,LS7 1HY,"3,488.14",Yes
927,Communities & Local Government,DCLG,09/12/2014,Work In Progress Pre-Cert 40373 Spend,Neighbourhoods,UNIVERSITY OF BIRMINGHAM,,Large,,,7600011227,,Revenue Grant To Be Paid,B15 2TT,"13,799.83",Yes
928,Communities & Local Government,DCLG,09/12/2014,Work In Progress Pre-Cert 40373 Spend,Neighbourhoods,UNIVERSITY OF BIRMINGHAM,,Large,,,7600011323,,Revenue Grant To Be Paid,B15 2TT,"22,358.62",Yes
929,Communities & Local Government,DCLG,09/12/2014,Work In Progress Pre-Cert 40373 Spend,Neighbourhoods,UNIVERSITY OF BRADFORD,,,,,7600011346,,Revenue Grant To Be Paid,BD7 1DP,"11,236.62",Yes
930,Communities & Local Government,DCLG,09/12/2014,Work In Progress Pre-Cert 40373 Spend,Neighbourhoods,UNIVERSITY OF BRADFORD,,,,,7600011347,,Revenue Grant To Be Paid,BD7 1DP,"46,452.49",Yes
931,Communities & Local Government,DCLG,09/12/2014,Work In Progress Pre-Cert 40373 Spend,Neighbourhoods,UNIVERSITY OF BRADFORD,,,,,7600011348,,Revenue Grant To Be Paid,BD7 1DP,"11,662.11",Yes
932,Communities & Local Government,DCLG,09/12/2014,Work In Progress Pre-Cert 40373 Spend,Neighbourhoods,UNIVERSITY OF BRADFORD,,,,,7600011349,,Revenue Grant To Be Paid,BD7 1DP,"73,825.04",Yes
933,Communities & Local Government,DCLG,09/12/2014,Work In Progress Pre-Cert 40373 Spend,Neighbourhoods,UNIVERSITY OF LEEDS,,,,,7600011250,,Revenue Grant To Be Paid,LS2 9JT,"52,047.23",Yes
934,Communities & Local Government,DCLG,09/12/2014,Work In Progress Pre-Cert 40373 Spend,Neighbourhoods,UNIVERSITY OF LEEDS,,,,,7600011251,,Revenue Grant To Be Paid,LS2 9JT,"5,252.22",Yes
935,Communities & Local Government,DCLG,09/12/2014,Work In Progress Pre-Cert 40373 Spend,Neighbourhoods,UNIVERSITY OF SHEFFIELD,,,,,7600011283,,Revenue Grant To Be Paid,S60 5TZ,"8,462.46",Yes
936,Communities & Local Government,DCLG,09/12/2014,Work In Progress Pre-Cert 40373 Spend,Neighbourhoods,UNIVERSITY OF SHEFFIELD,,,,,7600011286,,Revenue Grant To Be Paid,S60 5TZ,"26,605.80",Yes
937,Communities & Local Government,DCLG,09/12/2014,Work In Progress Pre-Cert 40373 Spend,Neighbourhoods,UNIVERSITY OF SHEFFIELD,,,,,7600011313,,Revenue Grant To Be Paid,S60 5TZ,"53,084.42",Yes
938,Communities & Local Government,DCLG,09/12/2014,Work In Progress Pre-Cert 40373 Spend,Neighbourhoods,UNIVERSITY OF WARWICK,,Large,,,7600011310,,Revenue Grant To Be Paid,CV4 8UW,"84,150.20",Yes
939,Communities & Local Government,DCLG,09/12/2014,Work In Progress Pre-Cert 40373 Spend,Neighbourhoods,UNIVERSITY OF WOLVERHAMPTON,,Large,,,7600011247,,Revenue Grant To Be Paid,WV1 1SB,"19,658.56",Yes
940,Communities & Local Government,DCLG,09/12/2014,Work In Progress Pre-Cert 40373 Spend,Neighbourhoods,UNIVERSITY OF WOLVERHAMPTON,,Large,,,7600011279,,Revenue Grant To Be Paid,WV1 1SB,"19,685.77",Yes
941,Communities & Local Government,DCLG,09/12/2014,Work In Progress Pre-Cert 40373 Spend,Neighbourhoods,UNIVERSITY OF WOLVERHAMPTON,,Large,,,7600011287,,Revenue Grant To Be Paid,WV1 1SB,"55,746.23",Yes
942,Communities & Local Government,DCLG,09/12/2014,Work In Progress Pre-Cert 40373 Spend,Neighbourhoods,UNIVERSITY OF WOLVERHAMPTON,,Large,,,7600011325,,Revenue Grant To Be Paid,WV1 1SB,"41,580.74",Yes
943,Communities & Local Government,DCLG,09/12/2014,Work In Progress Pre-Cert 40373 Spend,Neighbourhoods,WALSALL METROPOLITAN BC,,Large,,,7600011261,,Revenue Grant To Be Paid,WS1 1TW,"1,221.06",Yes
944,Communities & Local Government,DCLG,09/12/2014,Work In Progress Pre-Cert 40373 Spend,Neighbourhoods,WALSALL METROPOLITAN BC,,Large,,,7600011397,,Revenue Grant To Be Paid,WS1 1TW,"9,324.96",Yes
945,Communities & Local Government,DCLG,09/12/2014,Work In Progress Pre-Cert 40373 Spend,Neighbourhoods,WEST MIDS MANUFACTURING CONSORTIUM,,Small,,,7600011334,,Revenue Grant To Be Paid,WV10 9TG,"79,051.47",Yes
946,Communities & Local Government,DCLG,09/12/2014,Work In Progress Pre-Cert 40373 Spend,Neighbourhoods,WOLVERHAMPTON CITY COUNCIL,,Large,,,7600011176,,Revenue Grant To Be Paid,WV1 1RL,"20,472.01",Yes
947,Communities & Local Government,DCLG,09/12/2014,Work In Progress Pre-Cert 40373 Spend,Neighbourhoods,WORCESTERSHIRE COUNTY COUNCIL,,Public Bodies,,,7600011175,,Revenue Grant Clawback Offset,WR5 2NP,-7.58,Yes
948,Communities & Local Government,DCLG,09/12/2014,Work In Progress Pre-Cert 40373 Spend,Neighbourhoods,WORCESTERSHIRE COUNTY COUNCIL,,Public Bodies,,,7600011175,,Revenue Grant To Be Paid,WR5 2NP,"16,574.33",Yes
949,Communities & Local Government,DCLG,09/12/2014,Work In Progress Pre-Cert 40373 Spend,Neighbourhoods,WORCESTERSHIRE COUNTY COUNCIL,,Public Bodies,,,7600011188,,Revenue Grant To Be Paid,WR5 2NP,"25,659.64",Yes
950,Communities & Local Government,DCLG,09/12/2014,Work In Progress Pre-Cert 40373 Spend,Neighbourhoods,WORCESTERSHIRE COUNTY COUNCIL,,Public Bodies,,,7600011214,,Revenue Grant To Be Paid,WR5 2NP,"32,656.53",Yes
951,Communities & Local Government,DCLG,09/12/2014,Work In Progress Pre-Cert 40373 Spend,Neighbourhoods,WORCESTERSHIRE COUNTY COUNCIL,,Public Bodies,,,7600011223,,Revenue Grant To Be Paid,WR5 2NP,"13,863.84",Yes
952,Communities & Local Government,DCLG,09/12/2014,Work In Progress Pre-Cert 40373 Spend,Neighbourhoods,WORCESTERSHIRE COUNTY COUNCIL,,Public Bodies,,,7600011304,,Revenue Grant To Be Paid,WR5 2NP,"5,331.34",Yes
953,Communities & Local Government,DCLG,09/12/2014,Work In Progress Pre-Cert 40373 Spend,Neighbourhoods,WORCESTERSHIRE COUNTY COUNCIL,,Public Bodies,,,7600011319,,Revenue Grant To Be Paid,WR5 2NP,"32,165.94",Yes
954,Communities & Local Government,DCLG,09/12/2014,Work In Progress Pre-Cert 40373 Spend,Neighbourhoods,WORCESTERSHIRE COUNTY COUNCIL,,Public Bodies,,,7600011377,,Revenue Grant Clawback Offset,WR5 2NP,-152.23,Yes
955,Communities & Local Government,DCLG,09/12/2014,Work In Progress Pre-Cert 40373 Spend,Neighbourhoods,WORCESTERSHIRE COUNTY COUNCIL,,Public Bodies,,,7600011377,,Revenue Grant To Be Paid,WR5 2NP,"8,943.84",Yes
956,Communities & Local Government,DCLG,09/12/2014,Work In Progress Pre-Cert 40373 Spend,Neighbourhoods,WSX ENTERPRISE,,Small,,,7600011217,,Revenue Grant To Be Paid,PO16 7BJ,"257,868.17",Yes
957,Communities & Local Government,DCLG,09/12/2014,Work In Progress Pre-Cert 40373 Spend,Neighbourhoods,WSX ENTERPRISE,,Small,,,7600011278,,Revenue Grant Clawback Offset,PO16 7BJ,-0.28,Yes
958,Communities & Local Government,DCLG,09/12/2014,Work In Progress Pre-Cert 40373 Spend,Neighbourhoods,WSX ENTERPRISE,,Small,,,7600011278,,Revenue Grant To Be Paid,PO16 7BJ,"8,511.32",Yes
959,Communities & Local Government,DCLG,09/12/2014,Work In Progress Pre-Cert 40373 Spend,Neighbourhoods,YMCA BLACK COUNTRY GROUP,,,,,7600011274,,Revenue Grant To Be Paid,B70 9LG,"2,440.00",Yes
960,Communities & Local Government,DCLG,09/12/2014,Work In Progress Pre-Cert 40373 Spend,Neighbourhoods,YTKO LIMITED,,,,,7600011338,,Revenue Grant To Be Paid,CB4 2QH,"82,488.76",Yes
961,Communities & Local Government,DCLG,09/12/2014,Work In Progress Pre-Cert 40467 Spend,Neighbourhoods,ANGLIA RUSKIN UNIVERSITY,,,,,7600011375,,Capital Grant To Be Paid,CM1 1SQ,"83,278.44",Yes
962,Communities & Local Government,DCLG,09/12/2014,Work In Progress Pre-Cert 40467 Spend,Neighbourhoods,BARNSLEY METROPOLITAN BC,,Public Bodies,,,7600011259,,Capital Grant To Be Paid,S70 9OO,"156,401.65",Yes
963,Communities & Local Government,DCLG,09/12/2014,Work In Progress Pre-Cert 40467 Spend,Neighbourhoods,BIOCITY NOTTINGHAM LIMITED,,Small,,,7600011197,,Capital Grant Clawback Offset,NG1 1GF,"-9,514.00",Yes
